Workbook

Sheet Config (hidden)
A1: Name | B1: Tên | C1: GIÁ TRỊ | E1: C:\Du toan GXD\Dulieu | F1: 1 | G1: HaNoi | I1: Trạng thái | K1: Hạng mục xây dựng | M1: Hạng mục thiết bị | P1: Checkbox | Q1: Value | Z1: 1 | AB1: ='THCP xay dung'!E17 -> T | AC1: ='THCP xay dung'!E18 -> C | AD1: ='THCP xay dung'!E19 -> TL | AE1: ='THCP xay dung'!E20 -> G | AF1: ='THCP xay dung'!E21 -> GTGT | AG1: ='THCP xay dung'!E22 -> GXD | AH1: ='THCP xay dung'!E23 -> GDP | AI1: ='THCP xay dung'!E24 -> GGTXD | AK1: T | AL1: C | AM1: TL | AN1: G | AO1: GTGT | AP1: GLD | AQ1: GDP | AR1: GGTXD
B2: Các tùy chọn | E2: C:\Du toan GXD\Dulieu\HaNoi\HaNoi2015.mdb | K2: ='Du toan XD'!F9 -> PHẦN MÓNG | L2: 2 | P2: Thiết bị | Q2: 0 | R2: =ROW('Tong hop kinh phi'!A24) -> 24 | Z2: 0 | AB2: ='THCP xay dung'!F17 -> 0 | AC2: ='THCP xay dung'!F18 -> 0.06151589002 | AD2: ='THCP xay dung'!F19 -> 0.055 | AE2: ='THCP xay dung'!F20 -> 0 | AF2: ='THCP xay dung'!F21 -> 0.1 | AG2: ='THCP xay dung'!F22 -> 0 | AH2: ='THCP xay dung'!F23 -> 0.075555 | AI2: ='THCP xay dung'!F24 -> 0 | AK2: ='THCP Lap dat'!F17 -> 0 | AL2: ='THCP Lap dat'!F18 -> 0.06151589002 | AM2: ='THCP Lap dat'!F19 -> 0.055 | AO2: ='THCP Lap dat'!F21 -> 0.1 | AQ2: ='THCP Lap dat'!F23 -> 0
A3: CF_TDGTH | B3: Tính đơn giá tổng hợp | C3: 1 | K3: ='Du toan XD'!F14 -> PHẦN THÂN | L3: ='Du toan XD'!F8 -> 0 | P3: Công trình | Q3: 0 | AB3: ='THCP xay dung'!F42 -> 0 | AC3: ='THCP xay dung'!F43 -> 0.06151589002 | AD3: ='THCP xay dung'!F44 -> 0.055 | AE3: ='THCP xay dung'!F45 -> 0 | AF3: ='THCP xay dung'!F46 -> 0.1 | AG3: ='THCP xay dung'!F47 -> 0 | AH3: ='THCP xay dung'!F48 -> 0.075555 | AI3: ='THCP xay dung'!F49 -> 0
A4: 2 | B4: Tra lại tên công việc khi thay đổi mã đơn giá | C4: 1 | P4: Mặc định | Q4: 1
A5: 3 | B5: Tính lại khi đơn giá khi thay đổi mã vữa | C5: 0 | P5: Chi phí tư vấn | Q5: 0
A6: 4 | B6: Lựa chọn nhóm nhân công | C6: 1 | P6: Xây dựng | Q6: 0
A7: 5 | B7: Sử dụng phụ lục vữa | C7: 0 | P7: Thẩm tra | Q7: 0
A8: 6 | B8: Tính giá vật liệu hiện trường khi phân tích toàn bộ | C8: 0 | P8: Tạm tính | Q8: 0
A9: 7 | B9: Tổng hợp theo tên vật tư | C9: 0 | Q9: 0
A10: 8 | B10: Bóc thép theo diễn giải | C10: 0
A11: 9 | B11: Phân tích đơn giá chi tiết theo vữa | C11: 0
A12: 10 | B12: Tính ĐGCT theo đơn giá đầy đủ | C12: 0
A13: 11 | B13: Dùng hệ số trong đơn giá chi tiết | C13: 1
A14: 12 | B14: Chiết tính đơn giá hàng ngang | C14: 3
A15: 13 | B15: Phân tích đơn giá khảo sát | C15: 0
A16: 14 | B16: Chi phí trực tiếp/Chi phí nhân công (1: Giá trị được chọn; 0: giá trị bỏ chọn) | C16: 1
A17: 15 | B17: Tính Giá ca máy | C17: 1
A18: 16 | B18: Nối giá vật tư từ bảng Tổng hợp và Chênh lệch | C18: 0
A19: 17 | B19: Nối giá vật tư từ bảng Giá trị vật tư | C19: 0
A20: 18 | B20: Nối đơn giá với bảng Dự toán | C20: 0
A21: 19 | B21: Nối giá vật liệu từ bảng Giá vật liệu đến hiện trường | C21: 1
A22: 20 | B22: Nối giá nhân công từ bảng Lương nhân công | C22: 1
A23: 21 | B23: Nối giá ca máy từ bảng Giá ca máy | C23: 1
A24: 22 | B24: Nối giá vữa từ bảng Phụ lục vữa | C24: 1
A25: 23 | B25: Nối giá vật liệu từ bảng Giá vật liệu đến hiện trường | C25: 0
A26: 24 | B26: Nối giá nhân công từ bảng Lương nhân công | C26: 0
A27: 25 | B27: Nối giá ca máy từ bảng Giá ca máy | C27: 0
A28: 26 | B28: Nối giá vữa từ bảng Phụ lục vữa | C28: 0
A29: 27 | B29: Đổi nhóm nhân công toàn bộ | C29: 0
A30: 28 | B30: Tổng hợp dự toán theo dạng bảng | C30: 1
A31: 29 | B31: Phương pháp lập dự toán | C31: 2
A32: 30 | B32: Tùy chọn kết xuất dữ liệu | C32: 0
A33: 31 | B33: Hiển thị trang tin khi khởi động | C33: 0
A34: CF_DTGT | B34: Tính dự toán gói thầu | C34: 0
B35: Các hệ số
A36: CF_HSVL | B36: Hệ số vật liệu | C36: =Ts!O51 -> 1
A37: CF_HSNC | B37: Hệ số nhân công | C37: =Ts!O52 -> 1
A38: CF_HSM | B38: Hệ số máy xây dựng | C38: =Ts!O53 -> 1
A39: CF_DGKL | B39: Ẩn hiện diễn giải khối lượng | C39: 1
B40: Các định nghĩa trong phần mềm
A41: CF_TITILE_VL | B41: Vật liệu
A42: CF_TITILE_VLP | B42: Vật liệu phụ
A43: CF_TITILE_VLK | B43: Vật liệu khác
A44: CF_TITILE_NC | B44: Nhân công
A45: CF_TITILE_MTC | B45: Máy thi công
A46: CF_TITILE_MK | B46: Máy khác
A47: 1 | B47: Các dòng chi phí
A48: 2 | B48: Chi phí trực tiếp khác (TT)
A49: 3 | B49: Chi phí trực tiếp (T)
A50: 4 | B50: Chi phí chung (C)
A51: 5 | B51: Thu nhập chịu thuế tính trước (TL)
A52: 6 | B52: Chi phí xây dựng trước thuế (G)
A53: 7 | B53: Thuế giá trị gia tăng (GTGT)
A54: 8 | B54: Chi phí nhà tạm tại hiện trường để ở và điều hành thi công (GXDNT)
A55: 9 | B55: Chi phí xây dựng sau thuế (GXD)
A56: 10 | B56: Tổng cộng
A58: 11 | B58: Giá thành khảo sát (G)
A59: 12 | B59: Chi phí lập phương án, báo cáo khảo sát (Gpa+Gbc)
A60: 13 | B60: Đơn giá khảo sát trước thuế (Gt)
A61: 14 | B61: Đơn giá khảo sát sau thuế (Gks)
A62: 15 | B62: Chi phí chỗ ở tạm thời (Gnt)
A63: 16 | B63: Chi phí chuyển máy, thiết bị (Gdc)
A64: 17 | B64: Chi phí dự phòng (GDP)
A65: 18 | B65: Chi phí trực tiếp (Ct)
A66: 19 | B66: Chi phí chung (P)
A67: 20 | B67: Thu nhập chịu thuế tính trước (Lt)
B68: Tên bảng
A69: 1 | B69: Bảng dự toán | C69: BẢNG DỰ TOÁN
A70: 2 | B70: Bảng tiên lượng | C70: BẢNG TIÊN LƯỢNG
A71: 3 | B71: Bảng giá ca máy mới | C71: BẢNG GIÁ CA MÁY VÀ THIẾT BỊ THI CÔNG XÂY DỰNG
A72: 4 | B72: Bảng giá ca máy tính theo phương pháp bù trực tiếp | C72: BẢNG TÍNH BÙ GIÁ CA MÁY THEO PHƯƠNG PHÁP BÙ TRỰC TIẾP
A73: 5 | B73: Bảng giá ca máy đơn giản | C73: BẢNG TÍNH BÙ GIÁ CA MÁY (ĐƠN GIẢN)
A74: 6 | B74: Bảng phân tích hao phí vật tư | C74: PHÂN TÍCH HAO PHÍ VẬT TƯ THEO ĐỊNH MỨC
A75: 7 | B75: Bảng đơn giá chi tiết | C75: BẢNG PHÂN TÍCH ĐƠN GIÁ CHI TIẾT
B77: Lập dự toán riêng
A79: CF_CPD | B79: Ẩn/hiện chi phí đuôi | C79: 1
A80: CF_HIDE_NCM | B80: Ẩn/hiện nhân công , máy | C80: 0
A81: CF_TYPE_DG | B81: Ẩn/hiện bảng phân tích vật tư | C81: 0
A82: Hiện chi phí tư vấn | C82: 3
A83: Hiện chi phí khác
A84: Hiện toàn bộ | C84: 0
A85: Tên chi phí tư vấn | C85: CHI TIẾT CÁC CHI PHÍ TƯ VẤN
A86: Tên chi phí khác | C86: CHI TIẾT CÁC CHI PHÍ KHÁC
C87: CHI TIẾT CÁC CHI PHÍ TƯ VẤN VÀ CHI PHÍ KHÁC
A88: Ẩn hiện DGTH
A89: Ẩn hiện vật tư XD | C89: 1
C90: 1
A91: Ẩn hiện vật tư LD | C91: 1
C92: 1
C93: Công trình
C94: Hạng mục
A95: [CF_GTHAU] | B95: Đơn giá thầu | C95: 1
A96: [CF_GTHAU] | B96: Đồng bộ giá vật tư | C96: 1
A97: Ký hiệu chuyên gia | C97: CG
A98: Ghi chú | B98: Hiển thị khi lấy giá bên ĐGCT sang | C98: Đơn giá địa phương chưa công bố
A99: [CF_TT] | B99: Tạm tính
A100: [CF_TDNCXD] | B100: Tùy chọn tính đơn giá nhân công (mặc định là tính theo TT01 sẽ bằng 0) | C100: 0

Sheet Ts
G1: CÁC THÔNG SỐ VỀ CÔNG TRÌNH | AF1: tỉnh | AG1: huyện thị | AL1: =ADDRESS(MATCH(K25,$AI$4:$AI$24)+ROW(AI4),COLUMN(AJ1))&":"&ADDRESS(MATCH(K25+1,$AI$4:$AI$24,0)+ROW(AI4)-2,COLUMN(AJ1)) -> $AJ$5:$AJ$7 | AM1: =ADDRESS(MATCH($K$25,$AI$4:$AI$24)+ROW(AI4),COLUMN(AK1))&":"&ADDRESS(MATCH($K$25+1,$AI$4:$AI$24,0)+ROW(AI4)-2,COLUMN(AK1)) -> $AK$5:$AK$7 | AN1: =ADDRESS(MATCH($K$25,$AI$4:$AI$24)+ROW(AJ4),COLUMN(AL1))&":"&ADDRESS(MATCH($K$25+1,$AI$4:$AI$24,0)+ROW(AJ4)-2,COLUMN(AL1)) -> $AL$5:$AL$7 | AO1: =ADDRESS(MATCH($K$25,$AI$4:$AI$24)+ROW(AK4),COLUMN(AM1))&":"&ADDRESS(MATCH($K$25+1,$AI$4:$AI$24,0)+ROW(AK4)-2,COLUMN(AM1)) -> $AM$5:$AM$7 | AP1: =ADDRESS(MATCH($K$25,$AI$4:$AI$24)+ROW(AL4),COLUMN(AN1))&":"&ADDRESS(MATCH($K$25+1,$AI$4:$AI$24,0)+ROW(AL4)-2,COLUMN(AN1)) -> $AN$5:$AN$7
G2: THÔNG TIN CHUNG | AF2: 1 | AG2: 2
AI3: STT | AJ3: LOẠI CÔNG TRÌNH | AK3: CKKL | AL3: Chi phí chung | AN3: TN | AP3: 1 | AQ3: Thiết kế 1 bước
H4: DỰ ÁN: | K4: HỆ THỐNG PHẦN MỀM CHUYÊN NGÀNH XÂY DỰNG - GXD | Y4: Tỉnh An Giang | Z4: Thành phố Châu Đốc | AA4: III | AB4: 1 | AC4: Thành phố Hà Nội | AD4: 1 | AE4: =INDEX($Y$4:$Z$711,MATCH(VLOOKUP($AF$2,$AB$4:$AC$66,2,0),$Y$4:$Y$711,0),2) -> Quận Hoàn Kiếm | AI4: 1 | AJ4: Công trình dân dụng | AP4: 2 | AQ4: Thiết kế 2 bước
Y5: Tỉnh An Giang | Z5: Thành phố Long Xuyên | AA5: II | AB5: 2 | AC5: Thành phố Hồ Chí Minh | AD5: 2 | AE5: =IF(ROW(AE4)-2<=COUNTIF($Y$4:$Y$711,VLOOKUP($AF$2,$AB$4:$AC$66,2,0)),INDEX($Y$4:$Z$711,MATCH(AE4,$Z$4:$Z$711,0)+1,2),"") -> Quận Thanh Xuân | AH5: 1 | AJ5: Thông thường | AK5: 2.5 | AL5: =$AR$37 -> 6.151589002 | AM5: Định mức chi phí chung tính trên chi phí trực tiếp (C) | AN5: 5.5 | AP5: 3 | AQ5: Thiết kế 3 bước
H6: CÔNG TRÌNH: | K6: CÁC PHẦN MỀM QUẢN LÝ CHI PHÍ ĐTXD CT | Y6: Tỉnh An Giang | Z6: Thị xã Tân Châu | AA6: III | AB6: 3 | AC6: Thành Phố Hải Phòng | AD6: 3 | AE6: Quận Ba Đình | AH6: 2 | AJ6: Công trình tu bổ, phục hồi di tích lịch sử, văn hóa | AK6: 2.5 | AL6: =$AR$38 -> 9.303178003 | AM6: Định mức chi phí chung tính trên chi phí trực tiếp (C) | AN6: 5.5 | AP6: 1 | AQ6: Cấp đặc biệt
Y7: Tỉnh An Giang | Z7: Huyện An Phú | AA7: IV | AB7: 4 | AC7: Thành phố Đà Nẵng | AD7: 4 | AE7: Quận Hai Bà Trưng | AH7: 3 | AJ7: Thông thường | AK7: 2.5 | AL7: =$AR$37 -> 6.151589002 | AM7: Định mức chi phí chung tính trên chi phí trực tiếp (C) | AN7: 5.5 | AP7: 2 | AQ7: Cấp I
H8: HẠNG MỤC: | K8: PHẦN MỀM DỰ TOÁN GXD 10 | Y8: Tỉnh An Giang | Z8: Huyện Phú Tân | AA8: IV | AB8: 5 | AC8: Thành phố Cần Thơ | AD8: 5 | AE8: Quận Đống Đa | AI8: 2 | AJ8: Công trình công nghiệp | AP8: 3 | AQ8: Cấp II
X9: theo 122 | Y9: Tỉnh An Giang | Z9: Huyện Châu Thành | AA9: III | AB9: 6 | AC9: Tỉnh An Giang | AD9: 6 | AE9: Quận Cầu Giấy | AH9: 1 | AJ9: Thông thường | AK9: 2 | AL9: =$AR$39 -> 5.151589002 | AM9: Định mức chi phí chung tính trên chi phí trực tiếp (C) | AN9: 6 | AP9: 4 | AQ9: Cấp III
H10: ĐỊA ĐIỂM: | K10: SỐ 2A/55 NGUYỄN NGỌC NẠI, THANH XUÂN, HÀ NỘI | Y10: Tỉnh An Giang | Z10: Huyện Tịnh Biên | AA10: IV | AB10: 7 | AC10: Tỉnh Bà Rịa-Vũng Tàu | AD10: 7 | AE10: Quận Tây Hồ | AH10: 2 | AJ10: Công trình xây dựng hầm lò, hầm thủy điện | AK10: 6.5 | AL10: =$AR$40 -> 6.360635601 | AM10: Định mức chi phí chung tính trên chi phí trực tiếp (C) | AN10: 6 | AP10: 5 | AQ10: Cấp IV
Y11: Tỉnh An Giang | Z11: Huyện Chợ Mới (AG) | AA11: IV | AB11: 8 | AC11: Tỉnh Bạc Liêu | AD11: 8 | AE11: Quận Nam Từ Liêm | AH11: 3 | AJ11: Công tác lắp đặt thiết bị công nghệ, thí nghiệm hiệu chỉnh đường dây và trạm biến áp | AK11: 2 | AL11: =$AR$54 -> 65 | AM11: Định mức chi phí chung tính trên chi phí nhân công (C) | AN11: 6
H12: CHỦ ĐẦU TƯ: | K12: CÔNG TY CỔ PHẦN GIÁ XÂY DỰNG | X12: theo 122 | Y12: Tỉnh An Giang | Z12: Huyện Châu Phú | AA12: III | AB12: 9 | AC12: Tỉnh Bắc Giang | AD12: 9 | AE12: Quận Hoàng Mai | AI12: 3 | AJ12: Công trình giao thông | AP12: Phân loại công trình
X13: theo 122 | Y13: Tỉnh An Giang | Z13: Huyện Thoại Sơn | AA13: III | AB13: 10 | AC13: Tỉnh Bắc Kạn | AD13: 10 | AE13: Quận Bắc Từ Liêm | AH13: 1 | AJ13: Thông thường | AK13: 2 | AL13: =$AR$41 -> 5.151589002 | AM13: Định mức chi phí chung tính trên chi phí trực tiếp (C) | AN13: 6 | AP13: =VLOOKUP($K$25,$AI$4:$AJ$20,2,0) -> Công trình dân dụng
H14: ĐƠN VỊ THIẾT KẾ: | K14: PHÒNG NGHIÊN CỨU VÀ PHÁT TRIỂN GXD | Y14: Tỉnh An Giang | Z14: Huyện Tri Tôn | AA14: IV | AB14: 11 | AC14: Tỉnh Bắc Ninh | AD14: 11 | AE14: Quận Hà Đông | AH14: 2 | AJ14: Công trình hầm giao thông | AK14: 6.5 | AL14: =$AR$42 -> 6.360635601 | AM14: Định mức chi phí chung tính trên chi phí trực tiếp (C) | AN14: 6 | AP14: =VLOOKUP($K$27,$AP$6:$AQ$10,2,0) -> Cấp IV
Y15: Tỉnh Bà Rịa-Vũng Tàu | Z15: Thành phố Vũng Tàu | AA15: I | AB15: 12 | AC15: Tỉnh Bến Tre | AD15: 12 | AE15: Quận Long Biên | AH15: 3 | AJ15: Công tác duy tu sửa chữa thường xuyên đường bộ, đường sắt, đường thủy nội địa, hệ thống báo hiệu hàng hải và đường thủy nội địa | AK15: 2 | AL15: =$AR$52 -> 66 | AM15: Định mức chi phí chung tính trên chi phí nhân công (C) | AN15: 6 | AP15: =VLOOKUP($K$28,$AP$3:$AQ$5,2,0) -> Thiết kế 2 bước
H16: ĐƠN VỊ THẨM TRA: | K16: Công ty Cổ phần HTT | Y16: Tỉnh Bà Rịa-Vũng Tàu | Z16: Huyện Tân Thành | AA16: II | AB16: 13 | AC16: Tỉnh Bình Dương | AD16: 13 | AE16: Huyện Thanh Trì | AI16: 4 | AJ16: Công trình nông nghiệp và phát triển nông thôn
Y17: Tỉnh Bà Rịa-Vũng Tàu | Z17: Huyện Xuyên Mộc | AA17: III | AB17: 14 | AC17: Tỉnh Bình Định | AD17: 14 | AE17: Huyện Đan Phượng | AH17: 1 | AJ17: Thông thường | AK17: 2 | AL17: =$AR$43 -> 5.151589002 | AM17: Định mức chi phí chung tính trên chi phí trực tiếp (C) | AN17: 5.5
H18: HĐKT SỐ: | K18: 137/2014-HĐKT-GXD-HTT | M18: NGÀY KÝ: | N18: 13 tháng 7 năm 2014 | Y18: Tỉnh Bà Rịa-Vũng Tàu | Z18: Huyện đảo Côn Đảo | AA18: III | AB18: 15 | AC18: Tỉnh Bình Phước | AD18: 15 | AE18: Huyện Hoài Đức | AH18: 2 | AJ18: Công tác đào, đắp đất công trình nông nghiệp và phát triển nông thôn bằng thủ công | AK18: 2 | AL18: =$AR$53 -> 51 | AM18: Định mức chi phí chung tính trên chi phí nhân công (C) | AN18: 5.5
Y19: Tỉnh Bà Rịa-Vũng Tàu | Z19: Huyện Long Điền | AA19: III | AB19: 16 | AC19: Tỉnh Bình Thuận | AD19: 16 | AE19: Thị xã Sơn Tây | AH19: 3 | AJ19: Thông thường | AK19: 2 | AL19: =$AR$43 -> 5.151589002 | AM19: Định mức chi phí chung tính trên chi phí trực tiếp (C) | AN19: 5.5
H20: ĐƠN VỊ THẨM ĐỊNH: | K20: Phòng tư vấn xây dựng GXD | Y20: Tỉnh Bà Rịa-Vũng Tàu | Z20: Thành phố Bà Rịa | AA20: II | AB20: 17 | AC20: Tỉnh Cà Mau | AD20: 17 | AE20: Huyện Gia Lâm | AI20: 5 | AJ20: Công trình hạ tầng kỹ thuật
Y21: Tỉnh Bà Rịa-Vũng Tàu | Z21: Huyện Đất Đỏ | AA21: III | AB21: 18 | AC21: Tỉnh Cao Bằng | AD21: 18 | AE21: Huyện Phúc Thọ | AH21: 1 | AJ21: Thông thường | AK21: 2 | AL21: =$AR$44 -> 5 | AM21: Định mức chi phí chung tính trên chi phí trực tiếp (C) | AN21: 5.5
Y22: Tỉnh Bà Rịa-Vũng Tàu | Z22: Huyện Châu Đức | AA22: III | AB22: 19 | AC22: Tỉnh Đăk Lăk | AD22: 19 | AE22: Huyện Thanh Oai | AH22: 2 | AJ22: Thông thường | AK22: 2 | AL22: =$AR$44 -> 5 | AM22: Định mức chi phí chung tính trên chi phí trực tiếp (C) | AN22: 5.5
G23: LOẠI, CẤP CÔNG TRÌNH, SỐ BƯỚC THIẾT KẾ, LOẠI BÁO CÁO… | Y23: Tỉnh Bình Dương | Z23: Thị xã Dĩ An | AA23: I | AB23: 20 | AC23: Tỉnh Đăk Nông | AD23: 20 | AE23: Huyện Thường Tín | AH23: 3 | AJ23: Thông thường | AK23: 2 | AL23: =$AR$44 -> 5 | AM23: Định mức chi phí chung tính trên chi phí trực tiếp (C) | AN23: 5.5
Y24: Tỉnh Bình Dương | Z24: Thị xã Thuận An | AA24: I | AB24: 21 | AC24: Tỉnh Điện Biên | AD24: 21 | AE24: Huyện Mê Linh | AI24: 6
H25: Loại công trình | K25: 1 | Y25: Tỉnh Bình Dương | Z25: Thị xã Tân Uyên | AA25: I | AB25: 22 | AC25: Tỉnh Đồng Nai | AD25: 22 | AE25: Huyện Quốc Oai
K26: 1 | Y26: Tỉnh Bình Dương | Z26: Thành phố Thủ Dầu Một | AA26: I | AB26: 23 | AC26: Tỉnh Đồng Tháp | AD26: 23 | AE26: Huyện Phú Xuyên
H27: Cấp công trình | K27: 5 | Y27: Tỉnh Bình Dương | Z27: Thị xã Bến Cát | AA27: I | AB27: 24 | AC27: Tỉnh Gia Lai | AD27: 24 | AE27: Huyện Đông Anh
H28: Số bước thiết kế | K28: 2 | N28: =IF(AND(baocao_=2,K28=1),"",IF(AND(baocao_=1,K28>1),"",IF(baocao_=1,"BCNC khả thi không thể thiết kế 1 bước","BCKTKT chỉ có 1 bước thiết kế"))) ->  | Y28: Tỉnh Bình Dương | Z28: Huyện Bàu Bàng | AA28: I | AB28: 25 | AC28: Tỉnh Hà Giang | AD28: 25 | AE28: Huyện Ứng Hòa
H29: Loại báo cáo | K29: 1 | Y29: Tỉnh Bình Dương | Z29: Huyện Bắc Tân Uyên | AA29: I | AB29: 26 | AC29: Tỉnh Hà Nam | AD29: 26 | AE29: Huyện Thạch Thất
Y30: Tỉnh Bình Dương | Z30: Huyện Phú Giáo | AA30: II | AB30: 27 | AC30: Tỉnh Hà Tĩnh | AD30: 27 | AE30: Huyện Mỹ Đức | AJ30: Gt | AK30: Ga | AL30: Gb
G31: THÔNG TIN VỀ TỔNG MỨC ĐẦU TƯ XÂY DỰNG | Y31: Tỉnh Bình Dương | Z31: Huyện Dầu Tiếng | AA31: II | AB31: 28 | AC31: Tỉnh Hải Dương | AD31: 28 | AE31: Huyện Chương Mỹ | AJ31: =N34/10^9 -> 74.22986974 | AK31: =IF($AJ$31<=15,$AK35,OFFSET($AK35,0,MATCH($AJ$31,$AK$35:$AO$35,1)-1)) -> 15 | AL31: =IF($AJ$31<=15,$AK35,IF($AJ$31>1000,$AO35,OFFSET($AK35,0,MATCH($AJ$31,$AK$35:$AO$35,1)))) -> 100
Y32: Tỉnh Bình Phước | Z32: Thị xã Phước Long | AA32: III | AB32: 29 | AC32: Tỉnh Hậu Giang | AD32: 29 | AE32: Huyện Sóc Sơn | AI32: Bảng 3.7: ĐỊNH MỨC CHI PHÍ CHUNG TÍNH TRÊN CHI PHÍ TRỰC TIẾP
H33: Tổng mức đầu tư xây dựng: | Q33: Giá trị tính ra sau khi thử | R33: Hiệu giữ giá trị tính ra và giá trị đưa vào thử | Y33: Tỉnh Bình Phước | Z33: Thị xã Bình Long | AA33: III | AB33: 30 | AC33: Tỉnh Hòa Bình | AD33: 30 | AE33: Huyện Ba Vì | AQ33: Đơn vị tính: %
H34: Chi phí xây dựng trước thuế: | N34: =S50 -> 7.422986974e+10 | Q34: =GXDtt -> 7.422986975e+10 | R34: =Q34-N34 -> 17.02697754 | S34: Số lần thử | Y34: Tỉnh Bình Phước | Z34: Thị xã Đồng Xoài | AA34: II | AB34: 31 | AC34: Tỉnh Hưng Yên | AI34: TT | AJ34: Loại công trình | AK34: Chi phí XD trước thuế trong TMĐT xây dựng của DA được duyệt (tỷ đồng) | AP34: Ka | AQ34: Kb | AR34: DMTL
H35: Chi phí thiết bị: | Y35: Tỉnh Bình Phước | Z35: Huyện Bù Đốp | AA35: IV | AB35: 32 | AC35: Tỉnh Kiên Giang | AD35: Mức lương cơ sở đầu vào theo PL1 - Thông tư 05/2016/TT-BXD | AK35: 15 | AL35: 100 | AM35: 500 | AN35: 1000 | AO35: 1000
H36: Chi phí quản lý dự án: | Y36: Tỉnh Bình Phước | Z36: Huyện Chơn Thành | AA36: II | AB36: 33 | AC36: Tỉnh Kon Tum | AD36: Vùng I | AE36: 2.350.000 ÷ 2.530.000 | AI36: [1] | AJ36: [2] | AK36: [3] | AL36: [4] | AM36: [5] | AN36: [6] | AO36: [7]
H37: Chi phí tư vấn: | Y37: Tỉnh Bình Phước | Z37: Huyện Hớn Quản | AA37: III | AB37: 34 | AC37: Tỉnh Khánh Hòa | AD37: Vùng II | AE37: 2.150.000 ÷ 2.320.000 | AI37: 1 | AJ37: Công trình dân dụng | AK37: 6.5 | AL37: 6 | AM37: 5.6 | AN37: 5.4 | AO37: 5.2 | AP37: =IF($AJ$31<=15,$AK37,OFFSET($AK37,0,MATCH($AJ$31,$AK$35:$AO$35,1)-1)) -> 6.5 | AQ37: =IF($AJ$31<=15,$AK37,OFFSET($AK37,0,MATCH($AJ$31,$AK$35:$AO$35,1))) -> 6 | AR37: =IF($AJ$31 <=10,AK37,IF($AJ$31>1000,AO37,FORECAST($AJ$31,AP37:AQ37,$AK$31:$AL$31))) -> 6.151589002
H38: Chi phí khác: | Y38: Tỉnh Bình Phước | Z38: Huyện Lộc Ninh | AA38: IV | AB38: 35 | AC38: Tỉnh Lai Châu | AD38: Vùng III | AE38: 2.000.000 ÷ 2.154.000 | AJ38: Riêng công trình tu bổ, phục hồi di tích lịch sử, văn hoá | AK38: 10 | AL38: 9 | AM38: 8.6 | AN38: 8.4 | AO38: 8.2 | AP38: 10 | AQ38: 9 | AR38: 9.303178003
H39: Chi phí dự phòng: | Y39: Tỉnh Bình Phước | Z39: Huyện Đồng Phú | AA39: III | AB39: 36 | AC39: Tỉnh Lạng Sơn | AD39: Vùng IV | AE39: 1.900.000 ÷ 2.050.000 | AI39: 2 | AJ39: Công trình công nghiệp | AK39: 5.5 | AL39: 5 | AM39: 4.6 | AN39: 4.4 | AO39: 4.2 | AP39: 5.5 | AQ39: 5 | AR39: 5.151589002
H40: Chi phí bồi thường, hỗ trợ và tái định cư | Y40: Tỉnh Bình Phước | Z40: Huyện Bù Đăng | AA40: IV | AB40: 37 | AC40: Tỉnh Lào Cai | AJ40: Riêng công trình xây dựng đường hầm, hầm lò | AK40: 6.5 | AL40: 6.3 | AM40: 6 | AN40: 5.8 | AO40: 5.7 | AP40: 6.5 | AQ40: 6.3 | AR40: 6.360635601
H41: Tổng mức đầu tư sau khi trừ biến phí: | N41: =N33-N42 -> 0 | Y41: Tỉnh Bình Phước | Z41: Huyện Bù Gia Mập | AA41: IV | AB41: 38 | AC41: Tỉnh Lâm Đồng | AI41: 3 | AJ41: Công trình giao thông | AK41: 5.5 | AL41: 5 | AM41: 4.6 | AN41: 4.4 | AO41: 4.2 | AP41: 5.5 | AQ41: 5 | AR41: 5.151589002
H42: Các khoản biến phí: | N42: =N39+N40+SUM(N43:N46) -> 0 | Y42: Tỉnh Bình Thuận | Z42: Huyện đảo Phú Quý | AA42: IV | AB42: 39 | AC42: Tỉnh Long An | AJ42: Riêng công trình hầm giao thông | AK42: 6.5 | AL42: 6.3 | AM42: 6 | AN42: 5.8 | AO42: 5.7 | AP42: 6.5 | AQ42: 6.3 | AR42: 6.360635601
H43: Chi phí đánh giá tác động môi trường | Y43: Tỉnh Bình Thuận | Z43: Thị xã La Gi | AA43: III | AB43: 40 | AC43: Tỉnh Nam Định | AI43: 4 | AJ43: Công trình nông nghiệp và phát triển nông thôn | AK43: 5.5 | AL43: 5 | AM43: 4.6 | AN43: 4.4 | AO43: 4.2 | AP43: 5.5 | AQ43: 5 | AR43: 5.151589002
H44: Lệ phí thẩm định tổng dự toán | Y44: Tỉnh Bình Thuận | Z44: Thành phố Phan Thiết | AA44: II | AB44: 41 | AC44: Tỉnh Ninh Bình | AI44: 5 | AJ44: Công trình hạ tầng kỹ thuật | AK44: 5 | AL44: 5 | AM44: 4.1 | AN44: 3.9 | AO44: 3.7 | AP44: 5 | AQ44: 5 | AR44: 5
H45: … | Y45: Tỉnh Bình Thuận | Z45: Huyện Đức Linh | AA45: IV | AB45: 42 | AC45: Tỉnh Ninh Thuận
Y46: Tỉnh Bình Thuận | Z46: Huyện Hàm Tân | AA46: IV | AB46: 43 | AC46: Tỉnh Nghệ An
H47: Quy mô dự án | K47: 9000 | L47: m2 sàn | S47: 7.447350721e+10 | T47: lần 1 | Y47: Tỉnh Bình Thuận | Z47: Huyện Tuy Phong | AA47: IV | AB47: 44 | AC47: Tỉnh Phú Thọ | AI47: Bảng 3.8: ĐỊNH MỨC CHI PHÍ CHUNG TÍNH TRÊN CHI PHÍ NHÂN CÔNG
S48: 7.422886757e+10 | T48: lần 2 | Y48: Tỉnh Bình Thuận | Z48: Huyện Hàm Thuận Nam | AA48: III | AB48: 45 | AC48: Tỉnh Phú Yên
G49: CÁC HỆ SỐ, ĐỊNH MỨC TỶ LỆ | S49: 7.422987388e+10 | T49: lần 3 | Y49: Tỉnh Bình Thuận | Z49: Huyện Tánh Linh | AA49: IV | AB49: 46 | AC49: Tỉnh Quảng Bình | AI49: TT | AJ49: Loại công tác | AK49: Chi phí nhân công trong chi phí trực tiếp (tỷ đồng) | AP49: Ka | AQ49: Kb | AR49: DMTL
S50: 7.422986974e+10 | T50: lần 4 | Y50: Tỉnh Bình Thuận | Z50: Huyện Hàm Thuận Bắc | AA50: III | AB50: 47 | AC50: Tỉnh Quảng Nam | AK50: 15 | AL50: 100 | AM50: 100
H51: Hệ số vật liệu | O51: 1 | Y51: Tỉnh Bình Thuận | Z51: Huyện Bắc Bình | AA51: IV | AB51: 48 | AC51: Tỉnh Quảng Ninh | AI51: [1] | AJ51: [2] | AK51: [3] | AL51: [4] | AM51: [5]
H52: Hệ số nhân công | O52: 1 | Y52: Tỉnh Bình Định | Z52: Huyện Tuy Phước | AA52: IV | AB52: 49 | AC52: Tỉnh Quảng Ngãi | AI52: 1 | AJ52: Công tác duy tu sửa chữa đường bộ, đường sắt, đường thuỷ nội địa, hệ thống báo hiệu hàng hải và đường thuỷ nội địa | AK52: 66 | AL52: 60 | AM52: 56 | AN52: 56 | AP52: =IF($AP$56<=15,$AK52,OFFSET($AK52,0,MATCH($AP$56,$AK$50:$AM$50,1)-1)) -> 66 | AQ52: =IF($AP$56<=15,$AK52,OFFSET($AK52,0,MATCH($AP$56,$AK$50:$AM$50,1))) -> 66 | AR52: =IF($AP$56 <=15,AK52,IF($AP$56>100,AM52,FORECAST($AP$56,AP52:AQ52,$AQ$56:$AR$56))) -> 66
H53: Hệ số máy xây dựng | O53: 1 | Y53: Tỉnh Bình Định | Z53: Thị xã An Nhơn | AA53: IV | AB53: 50 | AC53: Tỉnh Quảng Trị | AI53: 2 | AJ53: Công tác đào, đắp đất công trình nông nghiệp và phát triển nông thôn hoàn toàn bằng thủ công | AK53: 51 | AL53: 45 | AM53: 42 | AN53: 42 | AP53: =IF($AP$56<=15,$AK53,OFFSET($AK53,0,MATCH($AP$56,$AK$50:$AM$50,1)-1)) -> 51 | AQ53: =IF($AP$56<=15,$AK53,OFFSET($AK53,0,MATCH($AP$56,$AK$50:$AM$50,1))) -> 51 | AR53: =IF($AP$56 <=15,AK53,IF($AP$56>100,AM53,FORECAST($AP$56,AP53:AQ53,$AQ$56:$AR$56))) -> 51
H54: =INDEX(INDIRECT($AO$1),$K$26) -> Định mức chi phí chung tính trên chi phí trực tiếp (C) | O54: =INDEX(INDIRECT($AN$1),$K$26)/100 -> 0.06151589002 | Y54: Tỉnh Bình Định | Z54: Thành phố Qui Nhơn | AA54: III | AB54: 51 | AC54: Tỉnh Sóc Trăng | AI54: 3 | AJ54: Công tác lắp đặt thiết bị công nghệ trong các công trình xây dựng, công tác xây lắp đường dây, thí nghiệm hiệu chỉnh điện đường dây và trạm biến áp, thí nghiệm vật liệu, cấu kiện và kết cấu xây dựng | AK54: 65 | AL54: 59 | AM54: 55 | AN54: 55 | AP54: 65 | AQ54: 65 | AR54: 65
H55: Định mức thu nhập chịu thuế tính trước (TL) | O55: =INDEX(INDIRECT($AP$1),$K$26)/100 -> 0.055 | Y55: Tỉnh Bình Định | Z55: Huyện Hoài Nhơn | AA55: IV | AB55: 52 | AC55: Tỉnh Sơn La | AP55: Gt | AQ55: Ga | AR55: Gb
H56: Thuế suất thuế giá trị gia tăng (TGTGT-XD) | O56: 0.1 | Y56: Tỉnh Bình Định | Z56: Huyện Phù Mỹ | AA56: IV | AB56: 53 | AC56: Tỉnh Tây Ninh | AP56: =THCP_NC/10^9 -> 12.47684219 | AQ56: =IF($AP$56<=15,$AK50,OFFSET($AK50,0,MATCH($AP$56,$AK$50:$AM$50,1)-1)) -> 15 | AR56: =IF(AP56<=15,$AK50,IF($AP$56>100,$AM50,OFFSET($AK50,0,MATCH($AP$56,$AK$50:$AM$50,1)))) -> 15
H57: Định mức chi phí một số công tác không xác định được khối lượng từ thiết kế (CKKL) | O57: =INDEX(INDIRECT($AM$1),$K$26)/100 -> 0.025 | Y57: Tỉnh Bình Định | Z57: Huyện Phù Cát | AA57: IV | AB57: 54 | AC57: Tỉnh Tiền Giang
H58: Định mức chi phí xây dựng nhà tạm tại hiện trường để ở và điều hành thi công (CNT) | O58: 0.01 | Y58: Tỉnh Bình Định | Z58: Huyện Tây Sơn | AA58: IV | AB58: 55 | AC58: Tỉnh Tuyên Quang
Y59: Tỉnh Bình Định | Z59: Huyện An Lão | AA59: IV | AB59: 56 | AC59: Tỉnh Thái Bình
G60: CHẾ ĐỘ TIỀN LƯƠNG - GIÁ NHIÊN LIỆU, NĂNG LƯỢNG (TRƯỚC VAT) | Y60: Tỉnh Bình Định | Z60: Huyện Vĩnh Thạnh | AA60: IV | AB60: 57 | AC60: Tỉnh Thái Nguyên
Y61: Tỉnh Bình Định | Z61: Huyện Hoài Ân | AA61: IV | AB61: 58 | AC61: Tỉnh Thanh Hóa
H62: Địa phương: | K62: 1 | O62: ="Vùng "&VLOOKUP(VLOOKUP($AG$2,$AD$4:$AE$33,2,0),$Z$4:$AA$711,2,0) -> Vùng I | Y62: Tỉnh Bình Định | Z62: Huyện Vân Canh | AA62: IV | AB62: 59 | AC62: Tỉnh Thừa Thiên-Huế
Y63: Tỉnh Bạc Liêu | Z63: Thành phố Bạc Liêu | AA63: III | AB63: 60 | AC63: Tỉnh Trà Vinh
H64: Mức lương cơ sở đầu vào để xác định đơn giá nhân công theo Thông tư số 05/2016/TT-BXD | Y64: Tỉnh Bạc Liêu | Z64: Huyện Vĩnh Lợi | AA64: IV | AB64: 61 | AC64: Tỉnh Vĩnh Long
I65: =VLOOKUP($O$62,$AD$36:$AE$39,2,0) -> 2.350.000 ÷ 2.530.000 | L65: đồng/tháng | X65: theo 122 | Y65: Tỉnh Bạc Liêu | Z65: Thị xã Giá Rai | AA65: III | AB65: 62 | AC65: Tỉnh Vĩnh Phúc
H66: Căn cứ vào Văn bản hướng dẫn của địa phương, nhập mức lương cơ sở đầu vào ô dưới đây | Y66: Tỉnh Bạc Liêu | Z66: Huyện Phước Long | AA66: IV | AB66: 63 | AC66: Tỉnh Yên Bái
L67: đồng/tháng | Y67: Tỉnh Bạc Liêu | Z67: Huyện Hoà Bình | AA67: IV
Y68: Tỉnh Bạc Liêu | Z68: Huyện Hồng Dân | AA68: IV
I69: Mức lương tối thiểu chung (LTTC) | N69: 1050000 | O69: đ/tháng | Y69: Tỉnh Bạc Liêu | Z69: Huyện Đông Hải | AA69: IV
I70: Mức lương tối thiểu vùng (LTTV) | N70: 2000000 | O70: đ/tháng | Y70: Tỉnh Bắc Giang | Z70: Thành phố Bắc Giang | AA70: III
I71: Phụ cấp lưu động (%LTTC) | N71: 0.2 | Y71: Tỉnh Bắc Giang | Z71: Huyện Việt Yên | AA71: III
I72: Lương phụ (%LCB) | N72: 0.12 | Y72: Tỉnh Bắc Giang | Z72: Huyện Yên Dũng | AA72: III
I73: Chi phí khoán trực tiếp (%LCB) | N73: 0.04 | Y73: Tỉnh Bắc Giang | Z73: Huyện Hiệp Hòa | AA73: III
I74: Phụ cấp không ổn định sản xuất (%LCB) | Y74: Tỉnh Bắc Giang | Z74: Huyện Tân Yên | AA74: III
I75: Phụ cấp khu vực (%LTTC) | Y75: Tỉnh Bắc Giang | Z75: Huyện Lạng Giang | AA75: III
I76: Phụ cấp thu hút (%LCB) | Y76: Tỉnh Bắc Giang | Z76: Huyện Yên Thế | AA76: IV
I77: Phụ cấp độc hại (%LTTC) | Y77: Tỉnh Bắc Giang | Z77: Huyện Lục Nam | AA77: IV
I78: Phụ cấp đặc biệt (%LCB) | Y78: Tỉnh Bắc Giang | Z78: Huyện Sơn Động | AA78: IV
I79: Phụ cấp làm ca đêm (%LCB) | Y79: Tỉnh Bắc Giang | Z79: Huyện Lục Ngạn | AA79: IV
Y80: Tỉnh Bắc Kạn | Z80: Thị xã Bắc Kạn | AA80: IV
I81: Giá xăng | N81: 19909 | Y81: Tỉnh Bắc Kạn | Z81: Huyện Pác Nặm | AA81: IV
I82: Giá dầu Diezel | N82: 19545 | Y82: Tỉnh Bắc Kạn | Z82: Huyện Bạch Thông | AA82: IV
I83: Giá dầu Mazut | N83: 12000 | Y83: Tỉnh Bắc Kạn | Z83: Huyện Chợ Mới | AA83: IV
I84: Giá điện | N84: 1622.01 | Y84: Tỉnh Bắc Kạn | Z84: Huyện Ngân Sơn | AA84: IV
G85: CÁC CHỈ TIÊU KINH TẾ | Y85: Tỉnh Bắc Kạn | Z85: Huyện Ba Bể | AA85: IV
Y86: Tỉnh Bắc Kạn | Z86: Huyện Na Rì | AA86: IV
H87: Dự toán xây dựng công trình | L87: ='Tong hop kinh phi'!H24 -> 92057586000 | M87: =IF(L87<>0,"đồng","") -> đồng | Y87: Tỉnh Bắc Kạn | Z87: Huyện Chợ Đồn | AA87: IV
H88: Suất vốn đầu tư: | L88: =ROUND(L87/(K47*1000000),3) -> 10.229 | M88: =IF(L88<>0,"triệu đồng/"&L47,"") -> triệu đồng/m2 sàn | Y88: Tỉnh Bắc Ninh | Z88: Thị xã Từ Sơn | AA88: II
H89: Suất chi phí phần xây dựng: | L89: =ROUND('Tong hop kinh phi'!H8/(K47*1000000),3) -> 9.073 | M89: =IF(L89<>0,"triệu đồng/"&L47,"") -> triệu đồng/m2 sàn | Y89: Tỉnh Bắc Ninh | Z89: Thành phố Bắc Ninh | AA89: II
H90: Suất chi phí phần thiết bị: | L90: =ROUND('Tong hop kinh phi'!H11/(K47*1000000),3) -> 0 | M90: =IF(L90<>0,"triệu đồng/"&L47,"") ->  | Y90: Tỉnh Bắc Ninh | Z90: Huyện Yên Phong | AA90: II
Y91: Tỉnh Bắc Ninh | Z91: Huyện Tiên Du | AA91: II
H92: Tỷ trọng các khoản mục chi phí trong chi phí trực tiếp phần Xây dựng | Y92: Tỉnh Bắc Ninh | Z92: Huyện Lương Tài | AA92: III
H93: Tỷ trọng các khoản mục chi phí trong chi phí trực tiếp phần Lắp đặt thiết bị | Y93: Tỉnh Bắc Ninh | Z93: Huyện Gia Bình | AA93: III
Y94: Tỉnh Bắc Ninh | Z94: Huyện Thuận Thành | AA94: II
Y95: Tỉnh Bắc Ninh | Z95: Huyện Quế Võ | AA95: II
Y96: Tỉnh Bến Tre | Z96: Thành phố Bến Tre | AA96: III
Y97: Tỉnh Bến Tre | Z97: Huyện Mỏ Cày Bắc | AA97: IV
Y98: Tỉnh Bến Tre | Z98: Huyện Chợ Lách | AA98: IV
Y99: Tỉnh Bến Tre | Z99: Huyện Mỏ Cày Nam | AA99: IV
Y100: Tỉnh Bến Tre | Z100: Huyện Châu Thành (BTr) | AA100: III
Y101: Tỉnh Bến Tre | Z101: Huyện Giồng Trôm | AA101: IV
Y102: Tỉnh Bến Tre | Z102: Huyện Ba Tri | AA102: IV
Y103: Tỉnh Bến Tre | Z103: Huyện Bình Đại | AA103: IV
Y104: Tỉnh Bến Tre | Z104: Huyện Thạnh Phú | AA104: IV
Y105: Tỉnh Cao Bằng | Z105: Thành phố Cao Bằng | AA105: III
Y106: Tỉnh Cao Bằng | Z106: Huyện Phục Hòa | AA106: IV
Y107: Tỉnh Cao Bằng | Z107: Huyện Trà Lĩnh | AA107: IV
Y108: Tỉnh Cao Bằng | Z108: Huyện Thông Nông | AA108: IV
Y109: Tỉnh Cao Bằng | Z109: Huyện Quảng Uyên | AA109: IV
Y110: Tỉnh Cao Bằng | Z110: Huyện Hà Quảng | AA110: IV
Y111: Tỉnh Cao Bằng | Z111: Huyện Hạ Lang | AA111: IV
Y112: Tỉnh Cao Bằng | Z112: Huyện Trùng Khánh | AA112: IV
Y113: Tỉnh Cao Bằng | Z113: Huyện Hòa An | AA113: IV
Y114: Tỉnh Cao Bằng | Z114: Huyện Thạch An | AA114: IV
Y115: Tỉnh Cao Bằng | Z115: Huyện Nguyên Bình | AA115: IV
Y116: Tỉnh Cao Bằng | Z116: Huyện Bảo Lâm | AA116: IV
Y117: Tỉnh Cao Bằng | Z117: Huyện Bảo Lạc | AA117: IV
Y118: Tỉnh Cà Mau | Z118: Thành phố Cà Mau | AA118: II
Y119: Tỉnh Cà Mau | Z119: Huyện Cái Nước | AA119: III
Y120: Tỉnh Cà Mau | Z120: Huyện Phú Tân | AA120: IV
Y121: Tỉnh Cà Mau | Z121: Huyện Năm Căn | AA121: III
Y122: Tỉnh Cà Mau | Z122: Huyện Thới Bình | AA122: IV
Y123: Tỉnh Cà Mau | Z123: Huyện Trần Văn Thời | AA123: III
Y124: Tỉnh Cà Mau | Z124: Huyện Ngọc Hiển | AA124: IV
Y125: Tỉnh Cà Mau | Z125: Huyện U Minh | AA125: III
Y126: Tỉnh Cà Mau | Z126: Huyện Đầm Dơi | AA126: IV
Y127: Thành phố Cần Thơ | Z127: Quận Ninh Kiều | AA127: II
Y128: Thành phố Cần Thơ | Z128: Quận Cái Răng | AA128: II
Y129: Thành phố Cần Thơ | Z129: Quận Bình Thủy | AA129: II
Y130: Thành phố Cần Thơ | Z130: Quận Thốt Nốt | AA130: II
Y131: Thành phố Cần Thơ | Z131: Huyện Phong Điền | AA131: III
Y132: Thành phố Cần Thơ | Z132: Quận Ô Môn | AA132: II
Y133: Thành phố Cần Thơ | Z133: Huyện Thới Lai | AA133: III
Y134: Thành phố Cần Thơ | Z134: Huyện Vĩnh Thạnh | AA134: III
Y135: Thành phố Cần Thơ | Z135: Huyện Cờ Đỏ | AA135: III
Y136: Tỉnh Gia Lai | Z136: Thị xã An Khê | AA136: IV
Y137: Tỉnh Gia Lai | Z137: Thành phố Pleiku | AA137: III
Y138: Tỉnh Gia Lai | Z138: Thị xã Ayun Pa | AA138: IV
Y139: Tỉnh Gia Lai | Z139: Huyện Phú Thiện | AA139: IV
Y140: Tỉnh Gia Lai | Z140: Huyện Đắk Pơ | AA140: IV
Y141: Tỉnh Gia Lai | Z141: Huyện Chư Sê | AA141: IV
Y142: Tỉnh Gia Lai | Z142: Huyện Chư Pưh | AA142: IV
Y143: Tỉnh Gia Lai | Z143: Huyện Đức Cơ | AA143: IV
Y144: Tỉnh Gia Lai | Z144: Huyện Ia Pa | AA144: IV
Y145: Tỉnh Gia Lai | Z145: Huyện Chư Păh | AA145: IV
Y146: Tỉnh Gia Lai | Z146: Huyện Đăk Đoa | AA146: IV
Y147: Tỉnh Gia Lai | Z147: Huyện Ia Grai | AA147: IV
Y148: Tỉnh Gia Lai | Z148: Huyện Mang Yang | AA148: IV
Y149: Tỉnh Gia Lai | Z149: Huyện Kông Chro | AA149: IV
Y150: Tỉnh Gia Lai | Z150: Huyện Krông Pa | AA150: IV
Y151: Tỉnh Gia Lai | Z151: Huyện Chư Prông | AA151: IV
Y152: Tỉnh Gia Lai | Z152: Huyện KBang | AA152: IV
Y153: Tỉnh Hòa Bình | Z153: Thành phố Hoà Bình | AA153: III
Y154: Tỉnh Hòa Bình | Z154: Huyện Kỳ Sơn | AA154: IV
Y155: Tỉnh Hòa Bình | Z155: Huyện Cao Phong | AA155: IV
Y156: Tỉnh Hòa Bình | Z156: Huyện Yên Thủy | AA156: IV
Y157: Tỉnh Hòa Bình | Z157: Huyện Lạc Thủy | AA157: IV
Y158: Tỉnh Hòa Bình | Z158: Huyện Lương Sơn | AA158: III
Y159: Tỉnh Hòa Bình | Z159: Huyện Tân Lạc | AA159: IV
Y160: Tỉnh Hòa Bình | Z160: Huyện Kim Bôi | AA160: IV
Y161: Tỉnh Hòa Bình | Z161: Huyện Mai Châu | AA161: IV
Y162: Tỉnh Hòa Bình | Z162: Huyện Lạc Sơn | AA162: IV
Y163: Tỉnh Hòa Bình | Z163: Huyện Đà Bắc | AA163: IV
Y164: Tỉnh Hà Giang | Z164: Thành phố Hà Giang | AA164: III
Y165: Tỉnh Hà Giang | Z165: Huyện Đồng Văn | AA165: IV
Y166: Tỉnh Hà Giang | Z166: Huyện Quản Bạ | AA166: IV
Y167: Tỉnh Hà Giang | Z167: Huyện Mèo Vạc | AA167: IV
Y168: Tỉnh Hà Giang | Z168: Huyện Xín Mần | AA168: IV
Y169: Tỉnh Hà Giang | Z169: Huyện Hoàng Su Phì | AA169: IV
Y170: Tỉnh Hà Giang | Z170: Huyện Quang Bình | AA170: IV
Y171: Tỉnh Hà Giang | Z171: Huyện Yên Minh | AA171: IV
Y172: Tỉnh Hà Giang | Z172: Huyện Bắc Mê | AA172: IV
Y173: Tỉnh Hà Giang | Z173: Huyện Bắc Quang | AA173: IV
Y174: Tỉnh Hà Giang | Z174: Huyện Vị Xuyên | AA174: IV
Y175: Tỉnh Hà Nam | Z175: Thành phố Phủ Lý | AA175: III
Y176: Tỉnh Hà Nam | Z176: Huyện Duy Tiên | AA176: III
Y177: Tỉnh Hà Nam | Z177: Huyện Bình Lục | AA177: IV
Y178: Tỉnh Hà Nam | Z178: Huyện Thanh Liêm | AA178: IV
Y179: Tỉnh Hà Nam | Z179: Huyện Kim Bảng | AA179: III
Y180: Tỉnh Hà Nam | Z180: Huyện Lý Nhân | AA180: IV
Y181: Thành phố Hà Nội | Z181: Quận Hoàn Kiếm | AA181: I
Y182: Thành phố Hà Nội | Z182: Quận Thanh Xuân | AA182: I
Y183: Thành phố Hà Nội | Z183: Quận Ba Đình | AA183: I
Y184: Thành phố Hà Nội | Z184: Quận Hai Bà Trưng | AA184: I
Y185: Thành phố Hà Nội | Z185: Quận Đống Đa | AA185: I
Y186: Thành phố Hà Nội | Z186: Quận Cầu Giấy | AA186: I
Y187: Thành phố Hà Nội | Z187: Quận Tây Hồ | AA187: I
Y188: Thành phố Hà Nội | Z188: Quận Nam Từ Liêm | AA188: I
Y189: Thành phố Hà Nội | Z189: Quận Hoàng Mai | AA189: I
Y190: Thành phố Hà Nội | Z190: Quận Bắc Từ Liêm | AA190: I
Y191: Thành phố Hà Nội | Z191: Quận Hà Đông | AA191: I
Y192: Thành phố Hà Nội | Z192: Quận Long Biên | AA192: I
Y193: Thành phố Hà Nội | Z193: Huyện Thanh Trì | AA193: I
Y194: Thành phố Hà Nội | Z194: Huyện Đan Phượng | AA194: II
Y195: Thành phố Hà Nội | Z195: Huyện Hoài Đức | AA195: I
Y196: Thành phố Hà Nội | Z196: Thị xã Sơn Tây | AA196: I
Y197: Thành phố Hà Nội | Z197: Huyện Gia Lâm | AA197: I
Y198: Thành phố Hà Nội | Z198: Huyện Phúc Thọ | AA198: II
Y199: Thành phố Hà Nội | Z199: Huyện Thanh Oai | AA199: I
Y200: Thành phố Hà Nội | Z200: Huyện Thường Tín | AA200: I
... 511 more rows

Sheet Bia (hidden)
A2: CÔNG TY CP GIÁ XÂY DỰNG | F2: CỘNG HÒA XÃ HỘI CHỦ NGHĨA VIỆT NAM
A3: WWW.GIAXAYDUNG.VN | F3: Độc lập - Tự do - Hạnh phúc
A5: Số : ……./……….
A9: DỰ TOÁN XÂY DỰNG
D11: DỰ ÁN: | E11: =UPPER(Ts!K4) -> HỆ THỐNG PHẦN MỀM CHUYÊN NGÀNH XÂY DỰNG - GXD
D12: CÔNG TRÌNH: | E12: =UPPER(Ts!K6) -> CÁC PHẦN MỀM QUẢN LÝ CHI PHÍ ĐTXD CT
D13: ĐỊA ĐIỂM: | E13: =E44 -> SỐ 2A/55 NGUYỄN NGỌC NẠI, THANH XUÂN, HÀ NỘI
D14: CHỦ ĐẦU TƯ: | E14: =E45 -> CÔNG TY CỔ PHẦN GIÁ XÂY DỰNG
D16: Giá trị dự toán: | E16: ='Tong hop kinh phi'!H24 -> 92057586000 | I16: đồng
D17: ="(Bằng chữ: "&vnd(E16)&")" -> (Bằng chữ: Chín mươi hai tỷ không trăm năm mươi bảy triệu năm trăm tám mươi sáu nghìn đồng.)
H20: Hà Nội, | I20: ngày | J20: =NOW() -> 2016-04-11T17:22:51.280 | K20: tháng | L20: =NOW() -> 2016-04-11T17:22:51.280 | M20: năm | N20: =NOW() -> 2016-04-11T17:22:51.280
I21: GIÁM ĐỐC
I27: NGUYỄN THÀNH CÔNG
A30: CÔNG TY CP GIÁ XÂY DỰNG | F30: CỘNG HOÀ XÃ HỘI CHỦ NGHĨA VIỆT NAM
A31: WWW.GIAXAYDUNG.VN | F31: Độc lập - Tự do - Hạnh phúc
A39: DỰ TOÁN XÂY DỰNG
A40: Số : ……./…….
D42: CÔNG TRÌNH: | E42: =IF(Ts!K6="","",UPPER(Ts!K6)) -> CÁC PHẦN MỀM QUẢN LÝ CHI PHÍ ĐTXD CT
D43: HẠNG MỤC: | E43: =IF(Ts!K8="","",UPPER(Ts!K8)) -> PHẦN MỀM DỰ TOÁN GXD 10
D44: ĐỊA ĐIỂM: | E44: =UPPER(Ts!K10) -> SỐ 2A/55 NGUYỄN NGỌC NẠI, THANH XUÂN, HÀ NỘI
D45: CHỦ ĐẦU TƯ: | E45: =Ts!K12 -> CÔNG TY CỔ PHẦN GIÁ XÂY DỰNG

Sheet Bia1
A2: CÔNG TY CP GIÁ XÂY DỰNG | F2: CỘNG HÒA XÃ HỘI CHỦ NGHĨA VIỆT NAM
A3: WWW.GIAXAYDUNG.VN | F3: Độc lập - Tự do - Hạnh phúc
A5: Số : ……./……….
A9: DỰ TOÁN CHI PHÍ XÂY DỰNG
D11: DỰ ÁN: | E11: =Bia!E11 -> HỆ THỐNG PHẦN MỀM CHUYÊN NGÀNH XÂY DỰNG - GXD
D12: CÔNG TRÌNH: | E12: =UPPER(Ts!K6) -> CÁC PHẦN MỀM QUẢN LÝ CHI PHÍ ĐTXD CT
D13: ĐỊA ĐIỂM: | E13: =E44 -> SỐ 2A/55 NGUYỄN NGỌC NẠI, THANH XUÂN, HÀ NỘI
D14: CHỦ ĐẦU TƯ: | E14: =E45 -> CÔNG TY CỔ PHẦN GIÁ XÂY DỰNG
D16: Giá trị dự toán: | E16: =TM!F51 -> 47496675000 | I16: đồng
D17: ="(Bằng chữ: "&vnd(E16)&")" -> (Bằng chữ: Bốn mươi bảy tỷ bốn trăm chín mươi sáu triệu sáu trăm bảy mươi lăm nghìn đồng.)
H20: Hà Nội, | I20: ngày | J20: =NOW() -> 2016-04-11T17:22:51.280 | K20: tháng | L20: =NOW() -> 2016-04-11T17:22:51.280 | M20: năm | N20: =NOW() -> 2016-04-11T17:22:51.280
I21: GIÁM ĐỐC
I27: NGUYỄN THÀNH CÔNG
A30: CÔNG TY CP GIÁ XÂY DỰNG | F30: CỘNG HOÀ XÃ HỘI CHỦ NGHĨA VIỆT NAM
A31: WWW.GIAXAYDUNG.VN | F31: Độc lập - Tự do - Hạnh phúc
A39: DỰ TOÁN CHI PHÍ XÂY DỰNG
A40: Số : ……./…….
D42: CÔNG TRÌNH: | E42: =IF(Ts!K6="","",UPPER(Ts!K6)) -> CÁC PHẦN MỀM QUẢN LÝ CHI PHÍ ĐTXD CT
D43: HẠNG MỤC: | E43: =IF(Ts!K8="","",UPPER(Ts!K8)) -> PHẦN MỀM DỰ TOÁN GXD 10
D44: ĐỊA ĐIỂM: | E44: =UPPER(Ts!K10) -> SỐ 2A/55 NGUYỄN NGỌC NẠI, THANH XUÂN, HÀ NỘI
D45: CHỦ ĐẦU TƯ: | E45: =UPPER(Ts!K12) -> CÔNG TY CỔ PHẦN GIÁ XÂY DỰNG

Sheet TM
C1: THUYẾT MINH LẬP DỰ TOÁN
C2: =Bia!D42&Bia!E42 -> CÔNG TRÌNH: CÁC PHẦN MỀM QUẢN LÝ CHI PHÍ ĐTXD CT
C3: =Bia!D43&Bia!E43 -> HẠNG MỤC: PHẦN MỀM DỰ TOÁN GXD 10
B5: MHVB | C5: CƠ SỞ LẬP DỰ TOÁN:
C6: 1. Các văn bản: | P6: Tại cột B có thể gõ từ khóa của văn bản cần tìm để tra cứu danh mục văn bản
D7: - Nghị định số 32/2015/NĐ-CP ngày 25/03/2015 của Chính phủ về quản lý chi phí đầu tư xây dựng. | P7: Tại cột A có thể căn chỉnh dòng cho vừa trang in. Gõ phím m+Enter để Merge dòng sau đó gõ phím w+Enter để wrap text.
D8: - Thông tư số 06/2016/TT-BXD ngày 10/3/2016 của Bộ Xây dựng hướng dẫn xác định và quản lý chi phí đầu tư xây dựng công trình.
C11: 2. Định mức dự toán:
D12: - Định mức dự toán XDCT phần Xây dựng công bố kèm theo văn bản số 1776/2007/BXD-VP ngày 16/08/2007 của Bộ Xây dựng.
D13: - Định mức dự toán XDCT phần Lắp đặt công bố kèm theo văn bản số 1777/2007/BXD-VP ngày 16/08/2007 của Bộ Xây dựng.
D14: - Định mức dự toán XDCT sửa đổi, bổ sung.
D15: - Định mức dự toán XDCT sửa đổi, bổ sung.
C17: 3. Đơn giá áp dụng:
D18: - Đơn giá xây dựng công trình phần Xây dựng công bố kèm theo quyết định số .../QĐ-UBND ngày .../.../20.. của UBND tỉnh ..
D19: - Đơn giá xây dựng công trình phần Lắp đặt công bố kèm theo quyết định số .../QĐ-UBND ngày .../.../20.. của UBND tỉnh ..
C21: 4. Giá vật liệu:
D22: - Công bố giá vật liệu Liên Sở Xây dựng - Tài chính tỉnh…
D23: - Báo giá vật liệu thị trường đối với một số loại vật liệu không có trong công bố giá
D24: - Báo giá vật liệu từ một số công trình tương tự.
D25: - Quyết định công bố cước vận chuyển số …/QĐ-UBND ngày ../../20.. của UBND tỉnh …
C27: 5. Giá nhân công:
D28: - Thông tư số 05/2016/TT-BXD ngày 10/3/2016 của Bộ Xây dựng hướng dẫn xác định đơn giá nhân công trong quản lý chi phí đầu tư xây dựng
C30: 6. Giá ca máy:
D31: - Bảng giá ca máy và thiết bị thi công công bố kèm theo quyết định số .../QĐ-UBND ngày .../.../20.. của Tỉnh ....
D32: - Quyết định số 1134/QĐ-BXD ngày 08/10/2015 của Bộ Xây dựng v/v công bố định mức các hao phí xác định giá ca máy và thiết bị thi công xây dựng
D33: - Giá nhiên liệu theo thông cáo báo chí xăng dầu tại thời điểm lập dự toán
D34: - Giá năng lượng theo Quyết định số 2256/QĐ-BCT ngày 12/3/2015 của Bộ Công thương quy định về giá bán điện
C36: 7. Văn bản hướng dẫn điều chỉnh dự toán:
D37: - Văn bản số …/QĐ-UBND của UBND ... công bố hệ số điều chỉnh chi phí nhân công, chi phí máy
C39: 8. Phần mềm công cụ và cơ sở dữ liệu:
D40: - Sử dụng phần mềm Dự toán GXD và cơ sở dữ liệu csv, mdb do Công ty Giá Xây Dựng sản xuất.
D41: - Cơ sở dữ liệu các công trình tương tự lưu trữ tại Công ty Tư vấn …
C43: 9. Hồ sơ thiết kế của công trình:
D44: - Quyết định số …/QĐ-... của … phê duyệt dự án và tổng mức đầu tư
D45: - Quyết định số …/QĐ-... của … phê duyệt kế hoạch đấu thầu
D46: - Báo cáo khảo sát địa chất, địa hình do Công ty … thực hiện
D47: - Bản vẽ thiết kế và thuyết minh biện pháp thi công do Công ty Cổ phần … lập
D48: - Một số tài liệu có liên quan khác
E50: Giá trị dự toán | F50: =IF('Tong hop kinh phi'!H13>0,'Tong hop kinh phi'!H24,'THCP xay dung'!D22) -> 4.74966753e+10
E51: Làm tròn | F51: =ROUND(F50,-3) -> 47496675000 | H51: đồng
E52: ="(Bằng chữ: "&vnd(F51)&")" -> (Bằng chữ: Bốn mươi bảy tỷ bốn trăm chín mươi sáu triệu sáu trăm bảy mươi lăm nghìn đồng.)

Sheet Bao cao tham tra (hidden)
C1: =IF(S2=W2,Ts!K16,Ts!K20) -> Công ty Cổ phần HTT | H1: CỘNG HÒA XÃ HỘI CHỦ NGHĨA VIỆT NAM
H2: Độc lập - tự do - hạnh phúc | Q2: Tùy chọn | R2: Thẩm tra | S2: =VLOOKUP($R$2,$V$2:$W$4,2,0) -> c | V2: Thẩm tra | W2: c | X2: thẩm tra | Y2: a | Z2: ="Thực hiện nhiệm vụ của "&Ts!K12&" giao "&Ts!K20&" về việc thẩm định dự toán xây dựng công trình "&Ts!K10&". Sau khi nghiên cứu hồ sơ "&Ts!K20&" có ý kiến như sau:" -> Thực hiện nhiệm vụ của CÔNG TY CỔ PHẦN GIÁ XÂY DỰNG giao Phòng tư vấn xây dựng GXD về việc thẩm định dự toán xây dựng công trình SỐ 2A/55 NGUYỄN NGỌC NẠI, THANH XUÂN, HÀ NỘI. Sau khi nghiên cứu hồ sơ Phòng tư vấn xây dựng GXD có ý kiến như sau: | AA2: Thẩm định
C3: Số: 137/BCTT-GXD | V3: Thẩm định theo nhiệm vụ | W3: a | X3: thẩm định | Y3: b | Z3: ="Theo đề nghị của "&Ts!K12&" về việc thẩm định dự toán xây dựng công trình "&Ts!K6&" . Sau khi nghiên cứu hồ sơ "&Ts!K20&" có ý kiến như sau:" -> Theo đề nghị của CÔNG TY CỔ PHẦN GIÁ XÂY DỰNG về việc thẩm định dự toán xây dựng công trình CÁC PHẦN MỀM QUẢN LÝ CHI PHÍ ĐTXD CT . Sau khi nghiên cứu hồ sơ Phòng tư vấn xây dựng GXD có ý kiến như sau: | AA3: Thẩm định
C4: ="V/v: "&IF(S2=W2,"Thẩm tra","Thẩm định")&" dự toán công trình "&Ts!K6 -> V/v: Thẩm tra dự toán công trình CÁC PHẦN MỀM QUẢN LÝ CHI PHÍ ĐTXD CT | O4: ..., ngày ... tháng ... năm 2015 | V4: Thẩm định theo đề nghị | W4: b | X4: thẩm định | Y4: c | Z4: ="Theo hợp đồng kinh tế số "&Ts!K18&" ngày "&Ts!N18&" ký giữa "&Ts!K12&" và " &Ts!K16&" về việc thẩm tra dự toán xây dựng công trình "&Ts!K6&". Sau khi nghiên cứu hồ sơ "&Ts!K16&" có ý kiến như sau:" -> Theo hợp đồng kinh tế số 137/2014-HĐKT-GXD-HTT ngày 13 tháng 7 năm 2014 ký giữa CÔNG TY CỔ PHẦN GIÁ XÂY DỰNG và Công ty Cổ phần HTT về việc thẩm tra dự toán xây dựng công trình CÁC PHẦN MỀM QUẢN LÝ CHI PHÍ ĐTXD CT. Sau khi nghiên cứu hồ sơ Công ty Cổ phần HTT có ý kiến như sau: | AA4: Thẩm tra
C7: ="BÁO CÁO KẾT QUẢ "&IF(S2=W2,"THẨM TRA","THẨM ĐỊNH") -> BÁO CÁO KẾT QUẢ THẨM TRA
C8: DỰ TOÁN XÂY DỰNG CÔNG TRÌNH
C9: ="Công trình: "&Ts!$K$6&"" -> Công trình: CÁC PHẦN MỀM QUẢN LÝ CHI PHÍ ĐTXD CT
C10: ="Địa điểm: "&Ts!$K$10&"" -> Địa điểm: SỐ 2A/55 NGUYỄN NGỌC NẠI, THANH XUÂN, HÀ NỘI
C11: ="Kính gửi: "&Ts!K12 -> Kính gửi: CÔNG TY CỔ PHẦN GIÁ XÂY DỰNG
D12: =VLOOKUP($S$2,$Y$2:$Z$4,2,0) -> Theo hợp đồng kinh tế số 137/2014-HĐKT-GXD-HTT ngày 13 tháng 7 năm 2014 ký giữa CÔNG TY CỔ PHẦN GIÁ XÂY DỰNG và Công ty Cổ phần HTT về việc thẩm tra dự toán xây dựng công trình CÁC PHẦN MỀM QUẢN LÝ CHI PHÍ ĐTXD CT. Sau khi nghiên cứu hồ sơ Công ty Cổ phần HTT có ý kiến như sau:
B17: Tra cứu VB | C17: ="1. Căn cứ "&IF(S2=W2,"thẩm tra","thẩm định") -> 1. Căn cứ thẩm tra | P17: Tại cột B có thể gõ từ khóa của văn bản cần tìm để tra cứu danh mục văn bản
D18: - Nghị định số 32/2015/NĐ-CP ngày 25/3/2015 của Chính phủ về quản lý chi phí đầu tư xây dựng; | P18: Tại cột A có thể căn chỉnh dòng cho vừa trang in. Gõ phím m+Enter để Merge dòng sau đó gõ phím w+Enter để wrap text.
D19: - Thông tư của Bộ Xây dựng hướng dẫn lập và quản lý chi phí đầu tư xây dựng;
D20: - (Các văn bản khác có liên quan của nhà nước, của các Bộ, ngành, địa phương..)
C21: 2. Giới thiệu chung về công trình
D22: ="- Tên công trình: "&Ts!K6 -> - Tên công trình: CÁC PHẦN MỀM QUẢN LÝ CHI PHÍ ĐTXD CT
D23: ="- Địa điểm: "&Ts!K10 -> - Địa điểm: SỐ 2A/55 NGUYỄN NGỌC NẠI, THANH XUÂN, HÀ NỘI
D24: ="- Chủ đầu tư: "&Ts!K12 -> - Chủ đầu tư: CÔNG TY CỔ PHẦN GIÁ XÂY DỰNG
D25: ="- Đơn vị tư vấn lập thiết kế, lập dự toán công trình: "&Ts!K14 -> - Đơn vị tư vấn lập thiết kế, lập dự toán công trình: PHÒNG NGHIÊN CỨU VÀ PHÁT TRIỂN GXD
C27: 3. Nhận xét về chất lượng hồ sơ dự toán xây dựng công trình
D28: - Nhận xét phương pháp lập dự toán được lựa chọn;
D29: - Nhận xét về các cơ sở để xác định các khoản mục chi phí trong trong dự toán xây dựng công trình;
D31: - Kết luận về đủ hay không đủ điều kiện thẩm định / thẩm tra.
C32: ="4. Nguyên tắc "&IF(S2=W2,"thẩm tra","thẩm định") -> 4. Nguyên tắc thẩm tra
D33: - Về sự phù hợp giữa khối lượng chủ yếu của dự toán với khối lượng thiết kế;
D34: - Về tính đúng đắn, hợp lý của việc áp dụng, vận dụng định mức dự toán, giá xây dựng của công trình, định mức chi phí, dự toán chi phí tư vấn và dự toán các khoản mục chi phí khác trong dự toán xây dựng công trình;
D37: - Về giá trị dự toán xây dựng công trình.
C38: ="5. Kết quả "&IF(S2=W2,"thẩm tra","thẩm định") -> 5. Kết quả thẩm tra
D39: ="Dựa vào các căn cứ và nguyên tắc nêu trên thì giá trị dự toán xây dựng công trình sau "&IF(S2=W2,"thẩm tra","thẩm định")&" như sau: " -> Dựa vào các căn cứ và nguyên tắc nêu trên thì giá trị dự toán xây dựng công trình sau thẩm tra như sau:
C41: TT | D41: Nội dung chi phí | G41: Giá trị đề nghị | J41: ="Giá trị "&IF(S2=W2,"thẩm tra","thẩm định") -> Giá trị thẩm tra | M41: Tăng, giảm
C42: 1 | D42: Chi phí xây dựng | J42: ='Tong hop kinh phi'!H8 -> 8.165285673e+10 | M42: =J42-G42 -> 8.165285673e+10
C43: 2 | D43: Chi phí thiết bị | J43: ='Tong hop kinh phi'!H11 -> 0 | M43: =J43-G43 -> 0
C44: 3 | D44: Chi phí quản lý dự án | J44: ='Tong hop kinh phi'!H12 -> 1284176747 | M44: 1284176747
C45: 4 | D45: Chi phí tư vấn đầu tư xây dựng | J45: ='Tong hop kinh phi'!H13 -> 0 | M45: 0
C46: 5 | D46: Chi phí khác | J46: ='Tong hop kinh phi'!H17 -> 2857850000 | M46: 2857850000
C47: 6 | D47: Chi phí dự phòng | J47: ='Tong hop kinh phi'!H20 -> 6262702253 | M47: 6262702253
C48: Tổng cộng | G48: =SUM(G42:I47) -> 0 | J48: =SUM(J42:L47) -> 9.205758573e+10 | M48: 9.205758573e+10
C50: 6. Nguyên nhân tăng, giảm
C58: 7. Kết luận và kiến nghị
D59: - Khối lượng trong dự toán là tương đối phù hợp với hồ sơ thiết kế;
D60: - Các định mức, đơn giá, trong dự toán được lập cơ bản phù hợp với các quy định hiện hành tại thời điểm lập dự toán;
D62: - Giá một số vật liệu không có trong thông báo giá của Nhà nước, các loại vật tư tạm tính (TT) trong dự toán XDCT là phù hợp với giá thị trường tại thời điểm thẩm tra. Tuy nhiên giá trên chỉ mang tính chất tham khảo để Chủ đầu tư quản lý giá, không phải là giá trị thanh toán, trong quá trình thi công Chủ đầu tư căn cứ vào điều kiện thi công, các yêu cầu kỹ thuật của hồ sơ thiết kế, giá cả của từng loại vật liệu, thiết bị để xác định mức bù trừ hợp lý;
D67: - Một số công tác tính thiếu khối lượng đã nêu ở trên đề nghị Chủ đầu tư yêu cầu đơn vị thiết kế sửa chữa hoàn thiện để triển khai các bước tiếp theo;
C70: Với những nội dung như báo cáo trên đây, chúng tôi đề nghị đơn vị thiết kế điều chỉnh dự toán để Chủ đầu tư có cơ sở xem xét phê duyệt phục vụ các bước tiếp theo.
C73: ="NGƯỜI "&IF(S2=W2,"THẨM TRA","THẨM ĐỊNH") -> NGƯỜI THẨM TRA | H73: NGƯỜI CHỦ TRÌ
G78: Chứng chỉ hành nghề định giá XD hạng ..., số …
D80: Nơi nhận | G80: ="THỦ TRƯỞNG ĐƠN VỊ "&IF(S2=W2,"THẨM TRA","THẨM ĐỊNH") -> THỦ TRƯỞNG ĐƠN VỊ THẨM TRA
C81: - Như trên
C82: - …
C84: - Lưu ….
G85: NGUYỄN GIÁM ĐỐC

Sheet Tong hop kinh phi
A1: BẢNG TỔNG HỢP DỰ TOÁN XÂY DỰNG CÔNG TRÌNH
A2: =Bia!D11& Bia!E11 -> DỰ ÁN: HỆ THỐNG PHẦN MỀM CHUYÊN NGÀNH XÂY DỰNG - GXD
A3: =Bia!D42&Bia!E42 -> CÔNG TRÌNH: CÁC PHẦN MỀM QUẢN LÝ CHI PHÍ ĐTXD CT
H4: ĐVT: đồng
A5: STT | B5: NỘI DUNG CHI PHÍ | C5: ĐMTL | D5: HỆ SỐ | E5: CÁCH TÍNH | F5: GIÁ TRỊ TRƯỚC THUẾ | G5: THUẾ GTGT | H5: GIÁ TRỊ SAU THUẾ | I5: KÝ HIỆU | X5: CỞ SỞ PL | Y5: GHI CHÚ
B7: Chi phí bồi thường, hỗ trợ và tái định cư | E7: bảng tính | I7: GBT, TĐC
A8: 1 | B8: Chi phí xây dựng | E8: bảng tính | F8: =SUM(F9:F10) -> 7.422986975e+10 | G8: =SUM(G9:G10) -> 7422986975 | H8: =SUM(H9:H10) -> 8.165285673e+10 | I8: GXD
A9: 1.1 | B9: ="Hạng mục: "&'Du toan XD'!F9 -> Hạng mục: PHẦN MÓNG | F9: ='THCP xay dung'!D20 -> 4.317879573e+10 | G9: ='THCP xay dung'!D21 -> 4317879573 | H9: ='THCP xay dung'!D22 -> 4.74966753e+10
A10: 1.2 | B10: ="Hạng mục: "&'Du toan XD'!F14 -> Hạng mục: PHẦN THÂN | F10: ='THCP xay dung'!D45 -> 3.105107403e+10 | G10: ='THCP xay dung'!D46 -> 3105107403 | H10: ='THCP xay dung'!D47 -> 3.415618143e+10
A11: 2 | B11: Chi phí thiết bị | E11: bảng tính | F11: ='THCP thiet bi'!D12 -> 0 | G11: ='THCP thiet bi'!E12 -> 0 | H11: ='THCP thiet bi'!F12 -> 0 | I11: GTB
A12: 3 | B12: Chi phí quản lý dự án | C12: ='QD957'!H4 -> 1.73 | E12: =IF(D12<>0,"ĐMTL*(GXDtt+GTBtt)*Hệ số","ĐMTL*(GXDtt+GTBtt)") -> ĐMTL*(GXDtt+GTBtt) | F12: =PRODUCT(C12*(GXDtt+GTBtt)/100,D12) -> 1284176747 | H12: =F12 -> 1284176747 | I12: GQLDA
A13: 4 | B13: Chi phí tư vấn đầu tư xây dựng | F13: ='THCP tu van'!G10 -> 0 | G13: ='THCP tu van'!H10 -> 0 | H13: ='THCP tu van'!I10 -> 0 | I13: GTV
A17: 5 | B17: Chi phí khác | F17: ='THCP khac'!G10 -> 2598045000 | G17: ='THCP khac'!H10 -> 259805000 | H17: ='THCP khac'!I10 -> 2857850000 | I17: GK
A18: 5.1 | B18: Chi phí hạng mục chung | E18: bảng tính | F18: ='CP HMC'!F14+'CP HMC'!F27 -> 2598045441 | G18: ='CP HMC'!G14+'CP HMC'!G27 -> 259804544.1 | H18: =F18+G18 -> 2857849986 | I18: CHMC
A20: 6 | B20: Chi phí dự phòng (GDP1 + GDP2) | E20: GDP1 + GDP2 | F20: =H20/1.1 -> 5693365684 | G20: =H20-F20 -> 569336568.4 | H20: ='CP Du phong'!D45 -> 6262702253 | I20: GDP
A21: 6.1 | B21: Chi phí dự phòng cho yếu tố khối lượng phát sinh | F21: =H21/1.1 -> 3899767431 | G21: =H21-F21 -> 389976743.1 | H21: =CPDP_PS1 -> 4289744174 | I21: GDP1
A22: 6.2 | B22: Chi phí dự phòng cho yếu tố trượt giá | F22: =H22/1.1 -> 1793598253 | G22: =H22-F22 -> 179359825.3 | H22: ='CP Du phong'!I43 -> 1972958079 | I22: GDP2
B23: Tổng cộng: | E23: (1)+(2)+(3)+(4)+(5)+(6) | F23: =F8+F11+F12+F13+F17+F20 -> 8.380545718e+10 | G23: =G8+G11+G12+G13+G17+G20 -> 8252128544 | H23: =H8+H11+H12+H13+H17+H20 -> 9.205758573e+10
B24: LÀM TRÒN (GXDCT): | F24: =ROUND(F23,-3) -> 83805457000 | G24: =ROUND(G23,-3) -> 8252129000 | H24: =ROUND(H23,-3) -> 92057586000
B26: NGƯỜI LẬP | F26: NGƯỜI CHỦ TRÌ
F30: Chứng chỉ hành nghề định giá XD hạng …, số …

Sheet THCP tu van (hidden)
B1: BẢNG TỔNG HỢP CHI PHÍ TƯ VẤN
B2: =Bia!D42&Bia!E42 -> CÔNG TRÌNH: CÁC PHẦN MỀM QUẢN LÝ CHI PHÍ ĐTXD CT
I3: ĐVT: đồng
B4: STT | C4: NỘI DUNG CHI PHÍ | D4: ĐMTL | E4: HỆ SỐ | F4: CÁCH TÍNH | G4: GIÁ TRỊ TRƯỚC THUẾ | H4: THUẾ GTGT | I4: GIÁ TRỊ SAU THUẾ | J4: CỞ SỞ PL | K4: GHI CHÚ
C9: Tổng cộng: | G9: =SUM(G5:G8) -> 0 | H9: =SUM(H5:H8) -> 0 | I9: =SUM(I5:I8) -> 0
C10: LÀM TRÒN (GTV) | G10: =ROUND(G9,-3) -> 0 | H10: =ROUND(H9,-3) -> 0 | I10: =ROUND(I9,-3) -> 0

Sheet DT man-month (hidden)
B1: CHI TIẾT CÁC CHI PHÍ TƯ VẤN
B2: =Bia!D42&Bia!E42 -> CÔNG TRÌNH: CÁC PHẦN MỀM QUẢN LÝ CHI PHÍ ĐTXD CT
B5: STT | C5: KHOẢN MỤC CHI PHÍ | D5: DIỄN GIẢI | E5: GIÁ TRỊ (ĐỒNG) | F5: KÝ HIỆU | G5: HỆ SỐ
B6: 1 | C6: Chi phí chuyên gia | D6: Bảng tính | E6: ='Cp chuyen gia'!H11 -> 41676601.14 | F6: Ccg
B7: 2 | C7: Chi phí quản lý | D7: =G7&"%*Ccg" -> 50%*Ccg | E7: =E6*G7% -> 20838300.57 | F7: Cql | G7: 50
B8: 3 | C8: Chi phí khác | D8: Bảng tính | E8: ='CPK TV'!E23 -> 89000000 | F8: Ck
B9: 4 | C9: Thu nhập chịu thuế tính trước | D9: =G9&"%*(Ccg+Cql+Ck)" -> 6%*(Ccg+Cql+Ck) | E9: =SUM(E6:E8)*G9% -> 9090894.102 | F9: TN | G9: 6
B10: 5 | C10: Thuế giá trị gia tăng | D10: =G10&"%*(Ccg+Cql+Ck+TN)" -> 10%*(Ccg+Cql+Ck+TN) | E10: =G10%*(E6+E7+E8+E9) -> 16060579.58 | F10: VAT | G10: 10
B11: 6 | C11: Chi phí dự phòng | D11: =G11&"%*(Ccg+Cql+Ck+TN+VAT)" -> 5%*(Ccg+Cql+Ck+TN+VAT) | E11: =G11%*(SUM(E6:E10)) -> 8833318.769 | F11: Cdp | G11: 5
C12: Tổng cộng | D12: Ccg+Cql+Ck+TN+VAT+Cdp | E12: =SUM(E6:E11) -> 185499694.2 | F12: Ctv
C13: Làm tròn: | E13: =ROUND(E12,-3) -> 185500000

Sheet Cp chuyen gia (hidden)
B1: ="CHI TIẾT CHI PHÍ CHUYÊN GIA " -> CHI TIẾT CHI PHÍ CHUYÊN GIA
B2: ='DT man-month'!B2 -> CÔNG TRÌNH: CÁC PHẦN MỀM QUẢN LÝ CHI PHÍ ĐTXD CT
B5: STT | C5: MÃ CG | D5: HỌ, TÊN CHUYÊN GIA | E5: NHIỆM VỤ ĐƯỢC PHÂN CÔNG | F5: THỜI GIAN THỰC HIỆN (NGÀY) | G5: CHI PHÍ NGÀY CÔNG | H5: THÀNH TIỀN (ĐỒNG)
B6: 1 | C6: CG1 | D6: Nguyễn Thế Anh | E6: Chủ trì chung, hướng dẫn, đôn đốc và kiểm tra các công việc | F6: 50 | G6: =Tienluong!K6 -> 360112.0455 | H6: =F6*G6 -> 18005602.27
B7: 2 | C7: =Tienluong!C7 -> CG2 | D7: =Tienluong!D7 -> Vũ Minh Hoàn | E7: Tổ trưởng nhóm thiết kế cơ sở | F7: 30 | G7: =VLOOKUP(C7,Tienluong!$C$6:$K$17,9,0) -> 192345.3409 | H7: =F7*G7 -> 5770360.227
B8: 3 | C8: =Tienluong!C8 -> CG3 | D8: =Tienluong!D8 -> Nguyễn Văn Toàn | E8: Thuyết minh thiết kế cơ sở | F8: 30 | G8: =VLOOKUP(C8,Tienluong!$C$6:$K$17,9,0) -> 321628.8636 | H8: =F8*G8 -> 9648865.909
B9: 4 | C9: =Tienluong!C9 -> CG4 | D9: =Tienluong!D9 -> Phạm Văn Thắng | E9: Thiết kế bản vẽ thiết kế cơ sở | F9: 30 | G9: =VLOOKUP(C9,Tienluong!$C$6:$K$17,9,0) -> 275059.0909 | H9: =F9*G9 -> 8251772.727
B11: TỔNG CỘNG | H11: =SUM(H6:H10) -> 41676601.14

Sheet Tienluong (hidden)
B1: CHI TIẾT LƯƠNG CHUYÊN GIA
B2: ='DT man-month'!B2 -> CÔNG TRÌNH: CÁC PHẦN MỀM QUẢN LÝ CHI PHÍ ĐTXD CT | O2: Mức lương tính lương cơ bản | P2: 1150000 | Q2: đ/tháng
O3: Ngày công làm việc trong tháng | P3: 22 | Q3: ngày/tháng
K4: Đơn vị: Đồng/ngày công
B5: STT | C5: MÃ CG | D5: HỌ VÀ TÊN | E5: CHỨC DANH DỰ KIẾN | F5: HỆ SỐ LƯƠNG | G5: LƯƠNG CƠ BẢN | H5: CHI PHÍ XÃ HỘI | I5: HỆ SỐ PHỤ CẤP | J5: PHỤ CẤP | K5: CHI PHÍ NGÀY CÔNG | N5: STT | O5: Chi phí xã hội | P5: Tỷ lệ | Q5: Ghi chú
B6: 1 | C6: CG1 | D6: Nguyễn Thế Anh | E6: Chuyên gia | F6: 5.42 | G6: =F6*$P$2/$P$3 -> 283318.1818 | H6: =G6*$P$11 -> 29748.40909 | I6: 0.9 | J6: =I6*$P$2/$P$3 -> 47045.45455 | K6: =G6+H6+J6 -> 360112.0455 | N6: 1 | O6: Kinh phí công đoàn | P6: 0
B7: 2 | C7: CG2 | D7: Vũ Minh Hoàn | E7: Chuyên gia | F7: 3.33 | G7: 174068.1818 | H7: 18277.15909 | K7: 192345.3409 | N7: 2 | O7: Bảo hiểm xã hội | P7: 0.08
B8: 3 | C8: CG3 | D8: Nguyễn Văn Toàn | E8: Chuyên gia | F8: 4.98 | G8: 260318.1818 | H8: 27333.40909 | I8: 0.65 | J8: =I8*$P$2/$P$3 -> 33977.27273 | K8: 321628.8636 | N8: 3 | O8: Bảo hiểm y tế | P8: 0.015
B9: 4 | C9: CG4 | D9: Phạm Văn Thắng | E9: Chuyên gia | F9: 4.4 | G9: 230000 | H9: 24150 | I9: 0.4 | J9: =I9*$P$2/$P$3 -> 20909.09091 | K9: 275059.0909 | N9: 4 | O9: Bảo hiểm thất nghiệp | P9: 0.01
B10: 5 | C10: CG5 | D10: Mai Chí Linh | E10: Chuyên gia | F10: 3 | G10: 156818.1818 | H10: 16465.90909 | I10: 0.4 | J10: =I10*$P$2/$P$3 -> 20909.09091 | K10: 194193.1818
B11: 6 | C11: CG6 | D11: Dương Minh Đức | E11: Chuyên gia | F11: 4.4 | G11: 230000 | H11: 24150 | I11: 0.4 | J11: =I11*$P$2/$P$3 -> 20909.09091 | K11: 275059.0909 | O11: Tổng cộng | P11: =SUM(P6:P9) -> 0.105
B12: 7 | C12: CG7 | D12: Nguyễn Thanh Tùng | E12: Chuyên gia | F12: 3.66 | G12: 191318.1818 | H12: 20088.40909 | K12: 211406.5909
B13: 8 | C13: CG8 | D13: Trần Hoàng Linh | E13: Chuyên gia | F13: 5.42 | G13: 283318.1818 | H13: 29748.40909 | K13: 313066.5909
B14: 9 | C14: CG9 | D14: Nguyễn Thị Tuyết | E14: Chuyên gia | F14: 3.33 | G14: 174068.1818 | H14: 18277.15909 | K14: 192345.3409
B15: 10 | C15: CG10 | D15: Trần Văn Châu | E15: Chuyên gia | F15: 4.98 | G15: 260318.1818 | H15: 27333.40909 | I15: 0.4 | J15: =I15*$P$2/$P$3 -> 20909.09091 | K15: 308560.6818
B16: 11 | C16: CG11 | D16: Bùi Hương Giang | E16: Chuyên gia | F16: 4.98 | G16: 260318.1818 | H16: 27333.40909 | I16: 0.6 | J16: =I16*$P$2/$P$3 -> 31363.63636 | K16: 319015.2273
B17: 12 | C17: CG12 | D17: Phan Đăng Dũng | E17: Chuyên gia | F17: 5.08 | G17: 265545.4545 | H17: 27882.27273 | I17: 0.6 | J17: =I17*$P$2/$P$3 -> 31363.63636 | K17: 324791.3636

Sheet CPK TV (hidden)
B1: CHI TIẾT CHI PHÍ KHÁC
B2: ='DT man-month'!B2 -> CÔNG TRÌNH: CÁC PHẦN MỀM QUẢN LÝ CHI PHÍ ĐTXD CT
B5: STT | C5: KHOẢN MỤC CHI PHÍ | D5: DIỄN GIẢI CÁCH TÍNH | E5: THÀNH TIỀN (ĐỒNG)
B6: 1 | C6: Khấu hao thiết bị văn phòng
C7: - Máy tính + phần mềm bản quyền | D7: 10 máy * 45.000đồng/ ca *60 ca | E7: =45000*10*60 -> 27000000
C8: - Máy in | D8: 2 máy * 35.000đồng/ ca *20 ca | E8: =2*35000*20 -> 1400000
C9: - Máy photocopy | D9: 50.000đồng/ca *1 máy * 20 ca | E9: =50000*1*20 -> 1000000
C10: - Máy điều hòa nhiệt độ | D10: 40.000 đ/ca * 4 máy *30 ca | E10: =40000*4*30 -> 4800000
C11: - Máy hủy tài liệu, UPS, bàn ghế… | D11: 30.000đồng/ca *2 máy * 30 ca | E11: =30000*2*30 -> 1800000
B12: 2 | C12: Văn phòng phẩm
C13: - Giấy | D13: 20 gram * 75.000 đ/gram | E13: =20*75000 -> 1500000
C14: - Mực in | D14: 2 hộp * 1.500.000đ/hộp | E14: =2*1500000 -> 3000000
C15: - Văn phòng phẩm khác (bút, dụng cụ đóng tập…) | D15: 2 tháng * 1.000.000 đồng | E15: =2*1000000 -> 2000000
B16: 3 | C16: Chi phí đi lại
C17: Chi phí đi khảo sát hiện trường | D17: tạm tính | E17: 15000000
B18: 4 | C18: Chi phí hội họp, phản biện | D18: 4 lần * 4.000.000 đồng | E18: =4*4000000 -> 16000000
B19: 5 | C19: Chi phí quản lý khác
C20: - Điện thoại | D20: 10 người * 500.000 đồng | E20: =10*500000 -> 5000000
C21: - Internet | D21: 3 tháng * 500.000 đồng | E21: =3*500000 -> 1500000
C22: - Điện, nước văn phòng | D22: 3 tháng * 3.000.000 đồng | E22: =3*3000000 -> 9000000
C23: Tổng cộng | E23: =SUM(E7:E22) -> 89000000

Sheet Tien do TV (hidden)
B1: TIẾN ĐỘ THỰC HIỆN CÔNG VIỆC TƯ VẤN
B4: Tiến độ thực hiện gói thầu tư vấn:
B6: STT | C6: DANH MỤC CÔNG VIỆC | D6: CÁN BỘ THỰC HIỆN | E6: NGÀY BẮT ĐẦU | F6: BẮT ĐẦU | G6: THỜI GIAN | H6: NGÀY KẾT THÚC | I6: KẾT THÚC | J6: BẮT ĐẦU THỰC TẾ | K6: THỜI GIAN | L6: TỶ LỆ HOÀN THÀNH | N6: NGÀY
N7: 1 | O7: 2 | P7: 3 | Q7: 4 | R7: 5 | S7: 6 | T7: 7 | U7: 8 | V7: 9 | W7: 10 | X7: 11 | Y7: 12 | Z7: 13 | AA7: 14 | AB7: 15 | AC7: 16 | AD7: 17 | AE7: 18 | AF7: 19 | AG7: 20 | AH7: 21 | AI7: 22 | AJ7: 23 | AK7: 24 | AL7: 25 | AM7: 26 | AN7: 27 | AO7: 28 | AP7: 29 | AQ7: 30 | AR7: 31 | AS7: 32 | AT7: 33 | AU7: 34 | AV7: 35 | AW7: 36 | AX7: 37 | AY7: 38 | AZ7: 39 | BA7: 40 | BB7: 41 | BC7: 42 | BD7: 43 | BE7: 44 | BF7: 45 | BG7: 46 | BH7: 47 | BI7: 48 | BJ7: 49 | BK7: 50 | BL7: 51 | BM7: 52 | BN7: 53 | BO7: 54 | BP7: 55 | BQ7: 56 | BR7: 57 | BS7: 58 | BT7: 59 | BU7: 60 | BV7: 61 | BW7: 62 | BX7: 63 | BY7: 64 | BZ7: 65 | CA7: 66 | CB7: 67 | CC7: 68 | CD7: 69 | CE7: 70 | CF7: 71 | CG7: 72 | CH7: 73 | CI7: 74 | CJ7: 75 | CK7: 76 | CL7: 77 | CM7: 78 | CN7: 79 | CO7: 80 | CP7: 81 | CQ7: 82 | CR7: 83 | CS7: 84 | CT7: 85 | CU7: 86 | CV7: 87 | CW7: 88 | CX7: 89 | CY7: 90
B8: 1 | F8: 1 | G8: 1 | H8: =IF(I8="","",E8+I8-1) -> 00:00:00 | I8: =IF(F8="","",F8+G8-1) -> 1 | J8: =F8 -> 1 | K8: 1 | L8: 1
J9: 0 | K9: 0 | L9: 1
J10: 0 | K10: 0 | L10: 1
J11: 0 | K11: 0 | L11: 1

Sheet THCP khac (hidden)
B1: BẢNG TỔNG HỢP CHI PHÍ KHÁC
B2: =Bia!D42&Bia!E42 -> CÔNG TRÌNH: CÁC PHẦN MỀM QUẢN LÝ CHI PHÍ ĐTXD CT
I3: ĐVT: đồng
B4: STT | C4: NỘI DUNG CHI PHÍ | D4: ĐMTL | E4: HỆ SỐ | F4: CÁCH TÍNH | G4: GIÁ TRỊ TRƯỚC THUẾ | H4: THUẾ GTGT | I4: GIÁ TRỊ SAU THUẾ | J4: CỞ SỞ PL | K4: GHI CHÚ
B5: ='Tong hop kinh phi'!A18 -> 5.1 | C5: ='Tong hop kinh phi'!B18 -> Chi phí hạng mục chung | D5: ='Tong hop kinh phi'!C18 -> 0 | F5: ='Tong hop kinh phi'!E18 -> bảng tính | G5: ='Tong hop kinh phi'!F18 -> 2598045441 | H5: ='Tong hop kinh phi'!G18 -> 259804544.1 | I5: ='Tong hop kinh phi'!H18 -> 2857849986
C9: Tổng cộng: | G9: =SUM(G5:G8) -> 2598045441 | H9: =SUM(H5:H8) -> 259804544.1 | I9: =SUM(I5:I8) -> 2857849986
C10: LÀM TRÒN (GK) | G10: =ROUND(G9,-3) -> 2598045000 | H10: =ROUND(H9,-3) -> 259805000 | I10: =ROUND(I9,-3) -> 2857850000

Sheet CP HMC (hidden)
B1: TỔNG HỢP DỰ TOÁN CHI PHÍ HẠNG MỤC CHUNG
B2: ='Tong hop kinh phi'!A3 -> CÔNG TRÌNH: CÁC PHẦN MỀM QUẢN LÝ CHI PHÍ ĐTXD CT
B3: CHI PHÍ HẠNG MỤC CHUNG THI CÔNG XÂY DỰNG
H4: ĐVT: đồng | K4: Hệ số CHMC tính trong Dự toán gói thầu thi công xây dựng: | O4: =ROUND(IFERROR(H14/'Tong hop kinh phi'!H8,D7+D8),2) -> 0.04
B5: STT | C5: NỘI DUNG CHI PHÍ | D5: ĐMTL | E5: CÁCH TÍNH | F5: CHI PHÍ TRƯỚC THUẾ | G5: THUẾ GTGT | H5: CHI PHÍ SAU THUẾ | I5: KÝ HIỆU
B7: 1 | C7: Chi phí xây dựng nhà tạm tại hiện trường để ở và điều hành thi công | D7: =Ts!O58 -> 0.01 | E7: ĐMTL*GXD | F7: =D7*GXDtt -> 742298697.5 | G7: =F7*10% -> 74229869.75 | H7: =F7+G7 -> 816528567.3 | I7: CNT
B8: 2 | C8: Chi phí một số công tác không xác định được khối lượng từ thiết kế | D8: =Ts!O57 -> 0.025 | E8: ĐMTL*GXD | F8: =D8*GXDtt -> 1855746744 | G8: =F8*10% -> 185574674.4 | H8: =F8+G8 -> 2041321418 | I8: CKKL
B9: 3 | C9: Các chi phí hạng mục chung khác | F9: =SUM(F10:F13) -> 0 | G9: =F9*10% -> 0 | H9: =F9+G9 -> 0 | I9: CK
B10: 3.1 | C10: Chi phí di chuyển thiết bị thi công và lực lượng lao động đến công trường | E10: Lập dự toán
B11: 3.2 | C11: Chi phí đảm bảo an toàn giao thông phục vụ thi công | E11: Lập dự toán
B12: 3.3 | C12: Chi phí hoàn trả hạ tầng kỹ thuật do bị ảnh hưởng khi thi công xây dựng công trình | E12: Lập dự toán
B13: … | C13: …
C14: Tổng cộng: | F14: =SUM(F7:F13) -> 2598045441 | G14: =SUM(G7:G13) -> 259804544.1 | H14: =SUM(H7:H13) -> 2857849986 | I14: CHMCtcxd
B16: CHI PHÍ HẠNG MỤC CHUNG LẮP ĐẶT THIẾT BỊ
H17: ĐVT: đồng | K17: Hệ số CHMC tính trong Dự toán gói thầu lắp đặt thiết bị: | O17: =ROUND(IFERROR(H27/THLD_GLD,D20+D21),2) -> 0.04
B18: STT | C18: NỘI DUNG CHI PHÍ | D18: ĐMTL | E18: CÁCH TÍNH | F18: CHI PHÍ TRƯỚC THUẾ | G18: THUẾ GTGT | H18: CHI PHÍ SAU THUẾ | I18: KÝ HIỆU
B20: 1 | C20: Chi phí xây dựng nhà tạm tại hiện trường để ở và điều hành thi công lắp đặt thiết bị | D20: =Ts!O58 -> 0.01 | E20: ĐMTL*GLD | F20: =D20*GLDtt -> 0 | G20: =F20*10% -> 0 | H20: =F20+G20 -> 0 | I20: CNT
B21: 2 | C21: Chi phí một số công tác không xác định được khối lượng từ thiết kế lắp đặt thiết bị | D21: =Ts!O57 -> 0.025 | E21: ĐMTL*GLD | F21: =D21*GLDtt -> 0 | G21: =F21*10% -> 0 | H21: =F21+G21 -> 0 | I21: CKKL
B22: 3 | C22: Các chi phí hạng mục chung khác | F22: =SUM(F23:F26) -> 0 | G22: =F22*10% -> 0 | H22: =F22+G22 -> 0 | I22: CK
B23: 3.1 | C23: Chi phí di chuyển thiết bị thi công và lực lượng lao động đến công trường | E23: Lập dự toán
B24: 3.2 | C24: Chi phí đảm bảo an toàn giao thông phục vụ thi công | E24: Lập dự toán
B25: 3.3 | C25: Chi phí hoàn trả hạ tầng kỹ thuật do bị ảnh hưởng khi thi công xây dựng công trình | E25: Lập dự toán
B26: … | C26: …
C27: Tổng cộng: | F27: =SUM(F20:F26) -> 0 | G27: =SUM(G20:G26) -> 0 | H27: =SUM(H20:H26) -> 0 | I27: CHMClđtb

Sheet CP Du phong (hidden)
A1: BẢNG CHI PHÍ DỰ PHÒNG DỰ TOÁN XÂY DỰNG
A2: =Bia!D42&Bia!E42 -> CÔNG TRÌNH: CÁC PHẦN MỀM QUẢN LÝ CHI PHÍ ĐTXD CT
B4: Chi phí xây dựng (GXD): | C4: ='Tong hop kinh phi'!H8 -> 8.165285673e+10
B5: Chi phí thiết bị (GTB): | C5: ='Tong hop kinh phi'!H11 -> 0
B6: Chi phí quản lý dự án (GQLDA): | C6: ='Tong hop kinh phi'!H12 -> 1284176747
B7: Chi phí tư vấn đầu tư xây dựng (GTV): | C7: ='Tong hop kinh phi'!H13 -> 0
B8: Chi phí khác (GK): | C8: ='Tong hop kinh phi'!H17 -> 2857850000
B9: Tổng chi phí dự kiến thực hiện ở năm t (GtXDCT) | C9: =SUM(C4:C8) -> 8.579488348e+10
A11: I. Dự phòng cho khối lượng công việc phát sinh (Gdp1)
D12: Kps = | E12: 0.05
B13: GDP1 = | C13: =$E$12*C9 -> 4289744174
A14: II. Dự phòng cho yếu tố trượt giá (Gdp2)
A18: - T: thời gian xây dựng công trình xác định theo quý, năm
A19: - t: số thứ tự thời gian phân bổ vốn theo kế hoạch xây dựng công trình (t=1÷T)
A20: - GtXDCT: giá trị dự toán xây dựng công trình trước chi phí dự phòng thực hiện trong khoảng thời gian thứ t
A21: - IXDCTbq: chỉ số giá xây dựng sử dụng tính dự phòng cho yếu tố trượt giá
A22: - DIXDCTbq: mức biến động bình quân của chỉ số giá xây dựng theo thời gian dựng công trình so với mức độ trượt giá bình quân của đơn vị thời gian (tháng, quý, năm) đã tính và được xác định trên cơ sở dự báo xu hướng biến động của các yếu tố chi phí giá cả trong khu vực và quốc tế bằng kinh nghiệm chuyên gia | F22: 0
A24: BẢNG 1: PHÂN BỔ VỐN ĐẦU TƯ THEO TIẾN ĐỘ THỰC HIỆN
A25: STT | B25: Nội dung | C25: Tiến độ thực hiện (năm)
C26: 1 | D26: 2 | E26: 3 | F26: 4 | G26: 5 | H26: 5
A27: 1 | B27: Mức phân bổ vốn từng năm (%) | C27: 0.1 | D27: 0.2 | E27: 0.3 | F27: 0.2 | G27: 0.2
A28: 2 | B28: Vốn phân bổ (tỷ đồng) | C28: =C27*$C$9 -> 8579488348 | D28: =D27*$C$9 -> 1.71589767e+10 | E28: =E27*$C$9 -> 2.573846504e+10 | F28: =F27*$C$9 -> 1.71589767e+10 | G28: =G27*$C$9 -> 1.71589767e+10
A30: BẢNG 2: CHỈ SỐ GIÁ XÂY DỰNG SỬ DỤNG TÍNH DỰ PḤÒNG CHO YẾU TỐ TRƯỢT GIÁ
A31: STT | B31: Chỉ tiêu | C31: Các năm tính chỉ số giá
C32: 2010 | D32: 2011 | E32: 2012 | F32: 2013 | G32: 2014 | H32: 5
A33: 1 | B33: Chỉ số giá xây dựng (theo công bố của Sở Xây dựng hoặc cơ quan có thẩm quyền) | C33: 139 | D33: 140 | E33: 141 | F33: 142 | G33: 143
A34: 2 | B34: Hệ số trượt giá (chỉ số giá năm đó chia cho chỉ số giá năm liền trước) | D34: =D33/C33 -> 1.007194245 | E34: =E33/D33 -> 1.007142857 | F34: =F33/E33 -> 1.007092199 | G34: =G33/F33 -> 1.007042254
A35: 3 | B35: Chỉ số giá xây dựng sử dụng tính dự phòng cho yếu tố trượt giá IXDbq | G35: =ROUND(AVERAGE(D34:G34),G32-1) -> 1.007117888
A37: BẢNG 3: TÍNH CHI PHÍ DỰ PHÒNG CHO YẾU TỐ TRƯỢT GIÁ
A38: STT | B38: Nội dung | C38: Tiến độ thực hiện (năm)
C39: 1 | D39: 2 | E39: 3 | F39: 4 | G39: 5
A40: 1 | B40: Chi phí thực hiện dự án theo tiến độ chưa có trượt giá (tỷ đồng) | C40: =C28 -> 8579488348 | D40: =D28 -> 1.71589767e+10 | E40: =E28 -> 2.573846504e+10 | F40: =F28 -> 1.71589767e+10 | G40: =G28 -> 1.71589767e+10
A41: 3 | B41: Chi phí thực hiện dự án theo tiến độ đã có trượt giá | C41: =C40*(($G$35+$F$22)^C39) -> 8640556189 | D41: =D40*(($G$35+$F$22)^D39) -> 1.740411741e+10 | E41: =E40*(($G$35+$F$22)^E39) -> 2.629199696e+10 | F41: =F40*(($G$35+$F$22)^F39) -> 1.765276031e+10 | G41: =G40*(($G$35+$F$22)^G39) -> 1.777841069e+10
A42: 4 | B42: Trượt giá từng năm | C42: =C41-C40 -> 61067841.12 | D42: =D41-D40 -> 245140712.7 | E42: =E41-E40 -> 553531918.7 | F42: =F41-F40 -> 493783613.7 | G42: =G41-G40 -> 619433992.6
A43: 5 | B43: Trượt giá tích luỹ (GDP2) | C43: =C42 -> 61067841.12 | D43: =C43+D42 -> 306208553.8 | E43: =D43+E42 -> 859740472.5 | F43: =E43+F42 -> 1353524086 | G43: =F43+G42 -> 1972958079 | I43: =CPDP_GDP1-CPDP_PS1 -> 1972958079
C45: GDP = GDP1 + GDP2 = | D45: =C13+G43 -> 6262702253
C46: Tỷ lệ % dự phòng phí: | D46: =IF(ISERROR(D45/C9),"",D45/C9) -> 0.07299622074
C47: ="(Bằng chữ: "&vnd(D45)&")" -> (Bằng chữ: Sáu tỷ hai trăm sáu mươi hai triệu bảy trăm linh hai nghìn hai trăm năm mươi ba đồng.)
A48: Ghi chú:
A49: - Điều chỉnh lại công thức khi tiến độ thực hiện thi công xây dựng công trình khác đi.
A50: - Kích chuột vào các ô bôi màu để xem hướng dẫn.
A51: - Vào Thư viện diễn đàn http://giaxaydung.vn để tải chỉ số giá
A55: BẢNG CHI PHÍ DỰ PHÒNG DỰ TOÁN GÓI THẦU THI CÔNG XÂY DỰNG
A56: =Bia!D42&Bia!E42 -> CÔNG TRÌNH: CÁC PHẦN MỀM QUẢN LÝ CHI PHÍ ĐTXD CT
B58: Chi phí xây dựng (GXD) | C58: ='Tong hop kinh phi'!H8 -> 8.165285673e+10
B59: Chi phí hạng mục chung thi công xây dựng (HMCTCXD) | C59: ='CP HMC'!H14 -> 2857849986
B60: Chi phí dự kiến thực hiện ở năm t (GtGTXD) | C60: =SUM(C58:C59) -> 8.451070671e+10
A62: I. Dự phòng cho khối lượng công việc phát sinh (Gdp1)
D63: Kps = | E63: 0.05
B64: GDPXD1 = (GXD +HMCTCXD)* Kps = | C64: =$E$63*C60 -> 4225535336
A65: II. Dự phòng cho yếu tố trượt giá (GDPXD2)
A70: - T: thời gian xây dựng công trình xác định theo quý, năm
A71: - t: số thứ tự thời gian phân bổ vốn theo kế hoạch xây dựng công trình (t=1÷T)
A72: - GtGTXD: giá trị gói thầu xây dựng công trình trước chi phí dự phòng thực hiện trong khoảng thời gian thứ t
A73: - IXDCTbq: chỉ số giá xây dựng sử dụng tính dự phòng cho yếu tố trượt giá
A74: - DIXDCTbq: mức biến động bình quân của chỉ số giá xây dựng theo thời gian dựng công trình so với mức độ trượt giá bình quân của đơn vị thời gian (tháng, quý, năm) đã tính và được xác định trên cơ sở dự báo xu hướng biến động của các yếu tố chi phí giá cả trong khu vực và quốc tế bằng kinh nghiệm chuyên gia | F74: =F22 -> 0
A76: BẢNG 1: PHÂN BỔ VỐN ĐẦU TƯ THEO TIẾN ĐỘ THỰC HIỆN
A77: STT | B77: Nội dung | C77: Tiến độ thực hiện (năm)
C78: 1 | D78: 2 | E78: 3 | F78: 4 | G78: 5
A79: 1 | B79: Mức phân bổ vốn từng năm (%) | C79: 0.1 | D79: 0.2 | E79: 0.3 | F79: 0.2 | G79: 0.2
A80: 2 | B80: Vốn phân bổ (tỷ đồng) | C80: =C79*$C$60 -> 8451070671 | D80: =D79*$C$60 -> 1.690214134e+10 | E80: =E79*$C$60 -> 2.535321201e+10 | F80: =F79*$C$60 -> 1.690214134e+10 | G80: =G79*$C$60 -> 1.690214134e+10
A82: BẢNG 2: CHỈ SỐ GIÁ XÂY DỰNG SỬ DỤNG TÍNH DỰ PḤÒNG CHO YẾU TỐ TRƯỢT GIÁ
A83: STT | B83: Chỉ tiêu | C83: Các năm tính chỉ số giá
C84: 2010 | D84: 2011 | E84: 2012 | F84: 2013 | G84: 2014
A85: 1 | B85: Chỉ số giá xây dựng (theo công bố của Sở Xây dựng hoặc cơ quan có thẩm quyền) | C85: 139 | D85: 140 | E85: 141 | F85: 142 | G85: 143
A86: 2 | B86: Hệ số trượt giá (chỉ số giá năm đó chia cho chỉ số giá năm liền trước) | D86: =D85/C85 -> 1.007194245 | E86: =E85/D85 -> 1.007142857 | F86: =F85/E85 -> 1.007092199 | G86: =G85/F85 -> 1.007042254
A87: 3 | B87: Chỉ số giá xây dựng sử dụng tính dự phòng cho yếu tố trượt giá IXDbq | G87: =ROUND(AVERAGE(D86:G86),G84-1) -> 1.007117888
A89: BẢNG 3: TÍNH CHI PHÍ DỰ PHÒNG CHO YẾU TỐ TRƯỢT GIÁ
A90: STT | B90: Nội dung | C90: Tiến độ thực hiện (năm)
C91: 1 | D91: 2 | E91: 3 | F91: 4 | G91: 5
A92: 1 | B92: Chi phí thực hiện dự án theo tiến độ chưa có trượt giá (tỷ đồng) | C92: =C80 -> 8451070671 | D92: =D80 -> 1.690214134e+10 | E92: =E80 -> 2.535321201e+10 | F92: =F80 -> 1.690214134e+10 | G92: =G80 -> 1.690214134e+10
A93: 3 | B93: Chi phí thực hiện dự án theo tiến độ đã có trượt giá | C93: =C92*($G$87+$F$74)^C91 -> 8511224450 | D93: =D92*($G$87+$F$74)^D91 -> 1.714361279e+10 | E93: =E92*($G$87+$F$74)^E91 -> 2.589845867e+10 | F93: =F92*($G$87+$F$74)^F91 -> 1.738853401e+10 | G93: =G92*($G$87+$F$74)^G91 -> 1.751230366e+10
A94: 4 | B94: Trượt giá từng năm | C94: =C93-C92 -> 60153778.43 | D94: =D93-D92 -> 241471449.5 | E94: =E93-E92 -> 545246659.8 | F94: =F93-F92 -> 486392666.6 | G94: =G93-G92 -> 610162312.2
A95: 5 | B95: Trượt giá tích luỹ (GDP2) | C95: =C94 -> 60153778.43 | D95: =C95+D94 -> 301625227.9 | E95: =D95+E94 -> 846871887.7 | F95: =E95+F94 -> 1333264554 | G95: =F95+G94 -> 1943426867
C97: GDPXD = GDPXD1 + GDPXD2 = | D97: =C64+G95 -> 6168962202
C98: Tỷ lệ % dự phòng phí gói thầu thi công xây dựng: | D98: =ROUND(IF(C60=0,0,D97/C60),3) -> 0.073
C99: ="(Bằng chữ: "&vnd(D97)&")" -> (Bằng chữ: Sáu tỷ một trăm sáu mươi tám triệu chín trăm sáu mươi hai nghìn hai trăm linh hai đồng.)
B100: Chi phí dự phòng cho phần chi phí xây dựng | D100: =$D$98*C58 -> 5960658541
B101: Chi phí dự phòng cho phần chi phí HMC | D101: =$D$98*C59 -> 208623048.9
B102: Tỷ lệ để phân bổ chi phí dự phòng phần CP HMC vào chi phí xây dựng | D102: =IF(C58<>0,D101/C58,0) -> 0.002555
B103: Tỷ lệ để phân bổ toàn bộ chi phí dự phòng vào các đơn giá dự thầu | D103: =D98+D102 -> 0.075555
A106: BẢNG CHI PHÍ DỰ PHÒNG DỰ TOÁN GÓI THẦU THIẾT BỊ
A107: =Bia!D87&Bia!E87 -> 
B109: Chi phí thiết bị (GTB) | C109: ='THCP thiet bi'!F13 -> 0
B110: Chi phí hạng mục chung lắp đặt thiết bị (HMCLDTB) | C110: ='CP HMC'!H27 -> 0
B111: Chi phí dự kiến thực hiện ở năm t (GtTB) | C111: =SUM(C109:C110) -> 0
A113: I. Dự phòng cho khối lượng công việc phát sinh (Gdp1)
D114: Kps = | E114: 0.05
B115: GDPTB1 = GTB * Kps = | C115: =$E$114*C111 -> 0
A116: II. Dự phòng cho yếu tố trượt giá (Gdp2)
A121: - T: thời gian xây dựng công trình xác định theo quý, năm
A122: - t: số thứ tự thời gian phân bổ vốn theo kế hoạch xây dựng công trình (t=1÷T)
A123: - GtTB: giá trị gói thầu mua sắm, chuyển giao, lắp đặt thiết bị trước chi phí dự phòng thực hiện trong khoảng thời gian thứ t
A124: - IXDCTbq: chỉ số giá xây dựng sử dụng tính dự phòng cho yếu tố trượt giá
A125: - DIXDCTbq: mức biến động bình quân của chỉ số giá xây dựng theo thời gian dựng công trình so với mức độ trượt giá bình quân của đơn vị thời gian (tháng, quý, năm) đã tính và được xác định trên cơ sở dự báo xu hướng biến động của các yếu tố chi phí giá cả trong khu vực và quốc tế bằng kinh nghiệm chuyên gia | F125: =C68 -> 0
A127: BẢNG 1: PHÂN BỔ VỐN ĐẦU TƯ THEO TIẾN ĐỘ THỰC HIỆN
A128: STT | B128: Nội dung | C128: Tiến độ thực hiện (năm)
C129: 1 | D129: 2 | E129: 3 | F129: 4 | G129: 5
A130: 1 | B130: Mức phân bổ vốn từng năm (%) | C130: 0.1 | D130: 0.2 | E130: 0.3 | F130: 0.2 | G130: 0.2
A131: 2 | B131: Vốn phân bổ (tỷ đồng) | C131: =C130*$C$111 -> 0 | D131: =D130*$C$111 -> 0 | E131: =E130*$C$111 -> 0 | F131: =F130*$C$111 -> 0 | G131: =G130*$C$111 -> 0
A133: BẢNG 2: CHỈ SỐ GIÁ XÂY DỰNG SỬ DỤNG TÍNH DỰ PḤÒNG CHO YẾU TỐ TRƯỢT GIÁ
A134: STT | B134: Chỉ tiêu | C134: Các năm tính chỉ số giá
C135: 2010 | D135: 2011 | E135: 2012 | F135: 2013 | G135: 2014
A136: 1 | B136: Chỉ số giá xây dựng (theo công bố của Sở Xây dựng hoặc cơ quan có thẩm quyền) | C136: 139 | D136: 140 | E136: 141 | F136: 142 | G136: 143
A137: 2 | B137: Hệ số trượt giá (chỉ số giá năm đó chia cho chỉ số giá năm liền trước) | D137: =D136/C136 -> 1.007194245 | E137: =E136/D136 -> 1.007142857 | F137: =F136/E136 -> 1.007092199 | G137: =G136/F136 -> 1.007042254
A138: 3 | B138: Chỉ số giá xây dựng sử dụng tính dự phòng cho yếu tố trượt giá IXDbq | G138: =ROUND(AVERAGE(D137:G137),G135-1) -> 1.007117888
A140: BẢNG 3: TÍNH CHI PHÍ DỰ PHÒNG CHO YẾU TỐ TRƯỢT GIÁ
A141: STT | B141: Nội dung | C141: Tiến độ thực hiện (năm)
C142: 1 | D142: 2 | E142: 3 | F142: 4 | G142: 5
A143: 1 | B143: Chi phí thực hiện dự án theo tiến độ chưa có trượt giá (tỷ đồng) | C143: =C131 -> 0 | D143: =D131 -> 0 | E143: =E131 -> 0 | F143: =F131 -> 0 | G143: =G131 -> 0
A144: 3 | B144: Chi phí thực hiện dự án theo tiến độ đã có trượt giá | C144: =C143*($G$138+$F$125)^C142 -> 0 | D144: =D143*($G$87+$F$74)^D142 -> 0 | E144: =E143*($G$87+$F$74)^E142 -> 0 | F144: =F143*($G$87+$F$74)^F142 -> 0 | G144: =G143*($G$87+$F$74)^G142 -> 0
A145: 4 | B145: Trượt giá từng năm | C145: =C144-C143 -> 0 | D145: =D144-D143 -> 0 | E145: =E144-E143 -> 0 | F145: =F144-F143 -> 0 | G145: =G144-G143 -> 0
A146: 5 | B146: Trượt giá tích luỹ (GDPTB2) | C146: =C145 -> 0 | D146: =C146+D145 -> 0 | E146: =D146+E145 -> 0 | F146: =E146+F145 -> 0 | G146: =F146+G145 -> 0
C148: GDPTB = GDPTB1 + GDPTB2 = | D148: =C115+G146 -> 0
C149: Tỷ lệ % dự phòng phí gói thầu mua sắm vật tư, lắp đặt thiết bị: | D149: =ROUND(IF(C111=0,0,D148/C111),3) -> 0
C150: ="(Bằng chữ: "&vnd(D148)&")" -> (Bằng chữ: đồng.)

Sheet QD957 (hidden)
B1: BẢNG TÍNH NỘI SUY CÁC ĐỊNH MỨC TỶ LỆ | M1: =GXDtt -> 7.422986975e+10 | Q1: Gxdtt | W1: Bảng số 1: Định mức chi phí quản lý dự án
B2: TT | C2: LOẠI CHI PHÍ | D2: Ga | E2: Gb | F2: Na | G2: Nb | H2: ĐMTL (%) | M2: =GTBtt -> 0 | Q2: Gtbtt
B3: I | C3: CHI PHÍ QUẢN LÝ DỰ ÁN (QĐ 957) | M3: =Ts!N33 -> 0 | Q3: TMĐT | AJ3: Đơn vị tính: Tỷ lệ %
B4: 1 | C4: Chi phí quản lý dự án | D4: =IF(XDTT+TBTT<=Y5,Y5,OFFSET(Y5,0,J12-1)) -> 100 | E4: =OFFSET(Y5,0,K12-1) -> 50 | F4: =IF(D4=E4,OFFSET(Y5,LCT,K12-1),OFFSET(Y5,LCT,J12-1)) -> 1.537 | G4: =OFFSET(Y5,LCT,K12-1) -> 1.912 | H4: =ROUND(IF(D4=E4,OFFSET(Y5,LCT,K12-1),FORECAST(XDTT+TBTT,F4:G4,D4:E4)),3) -> 1.73 | O4: =Ts!K25 -> 1 | Q4: loại ct | W4: TT | X4: Loại công trình | Y4: Chi phí xây dựng và thiết bị (chưa có thuế GTGT) (tỷ đồng)
B5: II | C5: CHI PHÍ TƯ VẤN ĐẦU TƯ XÂY DỰNG CÔNG TRÌNH (QĐ 957) | O5: =Ts!K28 -> 2 | Q5: bước tk | Y5: 10 | Z5: 20 | AA5: 50 | AB5: 100 | AC5: 200 | AD5: 500 | AE5: 1000 | AF5: 2000 | AG5: 5000 | AH5: 10000 | AI5: 20000 | AJ5: 30000
B6: =IF(C6<>"",COUNTA($C$6:C6)-COUNTIF($C$6:C6,""),"") -> 1 | C6: =IF(O7=1,"Chi phí lập dự án đầu tư xây dựng công trình","Chi phí lập báo cáo KTKT") -> Chi phí lập dự án đầu tư xây dựng công trình | D6: =IF(O7=1,IF(XDTT+TBTT<=Y15,Y15,OFFSET(Y15,0,J14-1)),IF(XDTT+TBTT<=Y25,Y25,OFFSET(Y25,0,L14-1))) -> 100 | E6: =IF(O7=1,OFFSET(Y15,0,K14-1),OFFSET(Y25,0,K14-1)) -> 50 | F6: =IF(O7=1,IF(D6=E6,OFFSET(Y15,LCT,K14-1),OFFSET(Y15,LCT,J14-1)),IF(D6=E6,OFFSET(Y25,LCT,K14-1),OFFSET(Y25,LCT,J14-1))) -> 0.314 | G6: =IF(O7=1,OFFSET(Y15,LCT,K14-1),OFFSET(Y25,LCT,K14-1)) -> 0.442 | H6: =IF(O7=2,ROUND(IF(D6=E6,OFFSET(Y25,LCT,K16-1),FORECAST(XDTT+TBTT,F6:G6,D6:E6)),3),ROUND(IF(D6=E6,OFFSET(Y15,LCT,K14-1),FORECAST(XDTT+TBTT,F6:G6,D6:E6)),3)) -> 0.38 | O6: =Ts!K27 -> 5 | Q6: cấp ct | W6: 1 | X6: Công trình dân dụng | Y6: 2.524 | Z6: 2.141 | AA6: 1.912 | AB6: 1.537 | AC6: 1.436 | AD6: 1.254 | AE6: 1.026 | AF6: 0.793 | AG6: 0.589 | AH6: 0.442 | AI6: 0.33 | AJ6: 0.264
B7: =IF(C7<>"",COUNTA($C$6:C7)-COUNTIF($C$6:C7,""),"") -> 2 | C7: =IF(O7=1,"Chi phí thẩm tra tính hiệu quả dự án đầu tư","") -> Chi phí thẩm tra tính hiệu quả dự án đầu tư | D7: =IF(O7=1,IF(XDTT+TBTT<=Y140,Y140,OFFSET(Y140,0,J15-1)),0) -> 100 | E7: =IF(O7=1,OFFSET(Y140,0,K15-1),0) -> 50 | F7: =IF(O7=1,IF(D7=E7,OFFSET(Y140,LCT,K15-1),OFFSET(Y140,LCT,J15-1)),0) -> 0.047 | G7: =IF(O7=1,OFFSET(Y140,LCT,K15-1),0) -> 0.066 | H7: =IF(AND(O7=1,XDTT+TBTT>=15),ROUND(IF(D7=E7,OFFSET(Y140,LCT,K15-1),FORECAST(XDTT+TBTT,F7:G7,D7:E7)),3),0) -> 0.057 | O7: =Ts!K29 -> 1 | Q7: loại bc | W7: 2 | X7: Công trình công nghiệp | Y7: 2.657 | Z7: 2.254 | AA7: 2.013 | AB7: 1.617 | AC7: 1.512 | AD7: 1.32 | AE7: 1.08 | AF7: 0.931 | AG7: 0.62 | AH7: 0.465 | AI7: 0.347 | AJ7: 0.278
B8: =IF(C8<>"",COUNTA($C$6:C8)-COUNTIF($C$6:C8,""),"") -> 3 | C8: =IF(O5=3,"Chi phí thiết kế kỹ thuật",IF(O5=2,"Chi phí thiết kế bản vẽ thi công","")) -> Chi phí thiết kế bản vẽ thi công | D8: =IF(O7=1,IF(E8=10000,E8,IF(XDTT<=Y36,Y36,OFFSET(Y36,0,J16-1))),0) -> 100 | E8: =IF(O7=1,OFFSET(Y36,0,K16-1),0) -> 50 | F8: =IF(O7=1,IF(E8=10000,VLOOKUP(BTK,$M$19:$O$20,3,0),VLOOKUP(BTK,$M$19:$O$20,2,0)),0) -> 1.62 | G8: =IF(O7=1,VLOOKUP(BTK,$M$19:$O$20,3,0),0) -> 1.91 | H8: =IF(O7=1,ROUND(IF(D8=E8,G8,FORECAST(XDTT,F8:G8,D8:E8)),3),0) -> 1.769 | W8: 3 | X8: Công trình giao thông | Y8: 2.259 | Z8: 1.916 | AA8: 1.711 | AB8: 1.375 | AC8: 1.285 | AD8: 1.122 | AE8: 0.918 | AF8: 0.791 | AG8: 0.527 | AH8: 0.395 | AI8: 0.295 | AJ8: 0.236
B9: =IF(C9<>"",COUNTA($C$6:C9)-COUNTIF($C$6:C9,""),"") ->  | C9: =IF(O5=3,"Chi phí thiết kế bản vẽ thi công","") ->  | H9: =IF(BTK=3,ROUND(IF(O4=2,H8*60%,H8*55%),3),0) -> 0 | W9: 4 | X9: Công trình nông nghiệp và phát triển nông thôn | Y9: 2.391 | Z9: 2.029 | AA9: 1.811 | AB9: 1.455 | AC9: 1.361 | AD9: 1.188 | AE9: 0.972 | AF9: 0.838 | AG9: 0.558 | AH9: 0.419 | AI9: 0.313 | AJ9: 0.25
B10: =IF(C10<>"",COUNTA($C$6:C10)-COUNTIF($C$6:C10,""),"") -> 4 | C10: Chi phí thẩm tra thiết kế | D10: =IF(E10=10000,E10,IF(XDTT<=Y152,Y152,OFFSET(Y152,0,J18-1))) -> 100 | E10: =OFFSET(Y152,0,K18-1) -> 50 | F10: =IF(E10=10000,OFFSET(Y152,LCT,K18-1),IF(D10=E10,G10,OFFSET(Y152,LCT,J18-1))) -> 0.106 | G10: =OFFSET(Y152,LCT,K18-1) -> 0.138 | H10: =IF(D10=E10,G10,ROUND(FORECAST(XDTT,F10:G10,D10:E10),3)) -> 0.122 | W10: 5 | X10: Công trình hạ tầng kỹ thuật | Y10: 2.125 | Z10: 1.803 | AA10: 1.61 | AB10: 1.294 | AC10: 1.21 | AD10: 1.056 | AE10: 0.864 | AF10: 0.744 | AG10: 0.496 | AH10: 0.372 | AI10: 0.278 | AJ10: 0.222
B11: =IF(C11<>"",COUNTA($C$6:C11)-COUNTIF($C$6:C11,""),"") -> 5 | C11: Chi phí thẩm tra dự toán | D11: =IF(E11=10000,E11,IF(XDTT<=Y163,Y163,OFFSET(Y163,0,J19-1))) -> 100 | E11: =OFFSET(Y163,0,K19-1) -> 50 | F11: =IF(E11=10000,OFFSET(Y163,LCT,K19-1),IF(D11=E11,G11,OFFSET(Y163,LCT,J19-1))) -> 0.104 | G11: =OFFSET(Y163,LCT,K19-1) -> 0.133 | H11: =IF(D11=E11,G11,ROUND(FORECAST(XDTT,F11:G11,D11:E11),3)) -> 0.119
B12: =IF(C12<>"",COUNTA($C$6:C12)-COUNTIF($C$6:C12,""),"") -> 6 | C12: Chi phí lập HSMT, đánh giá HSDT thi công xây dựng | D12: =IF(E12=10000,E12,IF(XDTT<=Y173,Y173,OFFSET(Y173,0,J20-1))) -> 100 | E12: =OFFSET(Y173,0,K20-1) -> 50 | F12: =IF(E12=10000,OFFSET(Y173,LCT,K20-1),IF(D12=E12,G12,OFFSET(Y173,LCT,J20-1))) -> 0.099 | G12: =OFFSET(Y173,LCT,K20-1) -> 0.152 | H12: =IF(D12=E12,G12,ROUND(FORECAST(XDTT,F12:G12,D12:E12),3)) -> 0.126 | J12: =IF(XDTT+TBTT>AJ5,K12,K12+1) -> 4 | K12: =IF(XDTT+TBTT<=Y5,1,MATCH(XDTT+TBTT,Y5:AJ5,1)) -> 3 | W12: Bảng số 2: Định mức chi phí lập báo cáo nghiên cứu khả thi
B13: =IF(C13<>"",COUNTA($C$6:C13)-COUNTIF($C$6:C13,""),"") -> 7 | C13: Chi phí lập HSMT, đánh giá HSDT mua sắm thiết bị | D13: =IF(E13=10000,E13,IF(TBTT<=Y183,Y183,OFFSET(Y183,0,J21-1))) -> 10 | E13: =OFFSET(Y183,0,K21-1) -> 10 | F13: =IF(E13=10000,OFFSET(Y183,LCT,K21-1),IF(D13=E13,G13,OFFSET(Y183,LCT,J21-1))) -> 0.287 | G13: =OFFSET(Y183,LCT,K21-1) -> 0.287 | H13: =IF(D13=E13,G13,FORECAST(TBTT,F13:G13,D13:E13)) -> 0.287 | AJ13: Đơn vị tính: Tỷ lệ %
B14: =IF(C14<>"",COUNTA($C$6:C14)-COUNTIF($C$6:C14,""),"") -> 8 | C14: Chi phí giám sát thi công xây dựng | D14: =IF(E14=10000,E14,IF(XDTT<=Y193,Y193,OFFSET(Y193,0,J22-1))) -> 100 | E14: =OFFSET(Y193,0,K22-1) -> 50 | F14: =IF(E14=10000,OFFSET(Y193,LCT,K22-1),IF(D14=E14,G14,OFFSET(Y193,LCT,J22-1))) -> 1.512 | G14: =OFFSET(Y193,LCT,K22-1) -> 1.948 | H14: =IF(D14=E14,G14,ROUND(FORECAST(GXDtt/(10^9),F14:G14,D14:E14),3)) -> 1.737 | J14: =IF(XDTT+TBTT>AJ15,K14,K14+1) -> 4 | K14: =IF(O7=1,IF(XDTT+TBTT<=Y15,1,MATCH(XDTT+TBTT,Y15:AJ15,1)),IF(XDTT+TBTT<=Y25,1,MATCH(XDTT+TBTT,Y25:AB25,1))) -> 3 | L14: =IF(XDTT+TBTT>AB25,M14,M14+1) -> 4 | M14: =IF(XDTT+TBTT<=Y25,1,MATCH(XDTT+TBTT,Y25:AK25,1)) -> 4 | W14: TT | X14: Loại công trình | Y14: Chi phí xây dựng và thiết bị (chưa có thuế GTGT) trong tổng mức đầu tư được duyệt (tỷ đồng)
B15: =IF(C15<>"",COUNTA($C$6:C15)-COUNTIF($C$6:C15,""),"") -> 9 | C15: Chi phí giám sát lắp đặt thiết bị | D15: =IF(E15=10000,E15,IF(TBTT<=Y203,Y203,OFFSET(Y203,0,J23-1))) -> 10 | E15: =OFFSET(Y203,0,K23-1) -> 10 | F15: =IF(E15=10000,OFFSET(Y203,LCT,K23-1),IF(D15=E15,G15,OFFSET(Y203,LCT,J23-1))) -> 0.675 | G15: =OFFSET(Y203,LCT,K23-1) -> 0.675 | H15: =IF(D15=E15,G15,ROUND(FORECAST(GTBtt/(10^9),F15:G15,D15:E15),3)) -> 0.675 | J15: =IF(XDTT+TBTT>AJ140,K15,K15+1) -> 4 | K15: =IF(XDTT+TBTT<=Y140,1,MATCH(XDTT+TBTT,Y140:AJ140,1)) -> 3 | Y15: 15 | Z15: 20 | AA15: 50 | AB15: 100 | AC15: 200 | AD15: 500 | AE15: 1000 | AF15: 2000 | AG15: 5000 | AH15: 10000 | AI15: 20000 | AJ15: 30000
B16: =IF(C16<>"",COUNTA($C$6:C16)-COUNTIF($C$6:C16,""),"") -> 10 | C16: Phí thẩm tra thiết kế xây dựng công trình sử dụng vốn ngân sách nhà nước do cơ quan quản lý nhà nước thực hiện toàn bộ công việc thẩm tra | D16: =IF(E16=10000,E16,IF(TBTT<=Y247,Y247,OFFSET(Y247,0,J24-1))) -> 15 | E16: =OFFSET(Y247,0,K24-1) -> 50 | F16: =IF(E16=10000,OFFSET(Y247,LCT,K24-1),IF(D16=E16,G16,OFFSET(Y247,LCT,J24-1))) -> 0.085 | G16: =OFFSET(Y247,LCT,K24-1) -> 0.11 | H16: =IF(D16=E16,G16,ROUND(FORECAST(XDTT,F16:G16,D16:E16),3)) -> 0.127 | J16: =IF(XDTT>AJ36,K16,K16+1) -> 5 | K16: =IF(XDTT<=Y36,1,MATCH(XDTT,Y36:AJ36,1)) -> 4 | P16: Thiết kế kỹ thuật - 3 bước | W16: 1 | X16: Công trình dân dụng | Y16: 0.655 | Z16: 0.538 | AA16: 0.442 | AB16: 0.314 | AC16: 0.237 | AD16: 0.191 | AE16: 0.164 | AF16: 0.139 | AG16: 0.111 | AH16: 0.089 | AI16: 0.07 | AJ16: 0.057
B17: =IF(C17<>"",COUNTA($C$6:C17)-COUNTIF($C$6:C17,""),"") -> 11 | C17: Phí thẩm tra dự toán xây dựng công trình sử dụng vốn ngân sách nhà nước do cơ quan quản lý nhà nước thực hiện toàn bộ công việc thẩm tra | D17: =IF(E17=10000,E17,IF(TBTT<=Y259,Y259,OFFSET(Y259,0,J25-1))) -> 15 | E17: =OFFSET(Y259,0,K25-1) -> 50 | F17: =IF(E17=10000,OFFSET(Y259,LCT,K25-1),IF(D17=E17,G17,OFFSET(Y259,LCT,J25-1))) -> 0.083 | G17: =OFFSET(Y259,LCT,K25-1) -> 0.106 | H17: =IF(D17=E17,G17,ROUND(FORECAST(XDTT,F17:G17,D17:E17),3)) -> 0.122 | M17: Giá trị nội suy | P17: DD | Q17: CN | R17: GT | S17: TL | T17: HT | W17: 2 | X17: Công trình công nghiệp | Y17: 0.934 | Z17: 0.794 | AA17: 0.63 | AB17: 0.467 | AC17: 0.368 | AD17: 0.345 | AE17: 0.299 | AF17: 0.242 | AG17: 0.207 | AH17: 0.145 | AI17: 0.104 | AJ17: 0.074
B18: =IF(C18<>"",COUNTA($C$6:C18)-COUNTIF($C$6:C18,""),"") -> 12 | C18: Phí thẩm tra thiết kế xây dựng công trình sử dụng vốn ngân sách nhà nước khi cơ quan quản lý nhà nước thuê tổ chức tư vấn, cá nhân cùng thẩm tra | D18: =IF(E18=10000,E18,IF(TBTT<=Y272,Y272,OFFSET(Y272,0,J26-1))) -> 15 | E18: =OFFSET(Y272,0,K26-1) -> 50 | F18: =IF(E18=10000,OFFSET(Y272,LCT,K26-1),IF(D18=E18,G18,OFFSET(Y272,LCT,J26-1))) -> 0.0255 | G18: =OFFSET(Y272,LCT,K26-1) -> 0.033 | H18: =IF(D18=E18,G18,ROUND(FORECAST(XDTT,F18:G18,D18:E18),3)) -> 0.038 | J18: =IF(XDTT>AI152,K18,K18+1) -> 4 | K18: =IF(XDTT<=Y152,1,MATCH(XDTT,Y152:AI152,1)) -> 3 | N18: Na | O18: Nb | P18: 1 | Q18: 2 | R18: 3 | S18: 4 | T18: 5 | W18: 3 | X18: Công trình giao thông | Y18: 0.492 | Z18: 0.449 | AA18: 0.358 | AB18: 0.281 | AC18: 0.194 | AD18: 0.15 | AE18: 0.131 | AF18: 0.112 | AG18: 0.089 | AH18: 0.072 | AI18: 0.058 | AJ18: 0.047
B19: =IF(C19<>"",COUNTA($C$6:C19)-COUNTIF($C$6:C19,""),"") -> 13 | C19: Phí thẩm tra dự toán xây dựng công trình sử dụng vốn ngân sách nhà nước khi cơ quan quản lý nhà nước thuê tổ chức tư vấn, cá nhân cùng thẩm tra | D19: =IF(E19=10000,E19,IF(TBTT<=Y284,Y284,OFFSET(Y284,0,J27-1))) -> 15 | E19: =OFFSET(Y284,0,K27-1) -> 50 | F19: =IF(E19=10000,OFFSET(Y284,LCT,K27-1),IF(D19=E19,G19,OFFSET(Y284,LCT,J27-1))) -> 0.0249 | G19: =OFFSET(Y284,LCT,K27-1) -> 0.0318 | H19: =IF(D19=E19,G19,ROUND(FORECAST(XDTT,F19:G19,D19:E19),3)) -> 0.037 | J19: =IF(XDTT>AI163,K19,K19+1) -> 4 | K19: =IF(XDTT<=Y163,1,MATCH(XDTT,Y163:AI163,1)) -> 3 | M19: 3 | N19: =HLOOKUP(LCT,$P$18:$T$20,2) -> 1.04 | O19: =HLOOKUP(LCT,$P$18:$T$20,3) -> 1.23 | P19: =HLOOKUP($D$8,$Y$36:$AJ$41,CCT+1) -> 1.04 | Q19: =HLOOKUP($D$8,$Y$57:$AJ$62,CCT+1) -> 1.08 | R19: =HLOOKUP($D$8,$Y$78:$AJ$83,CCT+1) -> 0.6 | S19: =HLOOKUP($D$8,$Y$99:$AJ$104,CCT+1) -> 0.93 | T19: =HLOOKUP($D$8,$Y$120:$AJ$125,CCT+1) -> 0.8 | W19: 4 | X19: Công trình nông nghiệp và PTNT | Y19: 0.589 | Z19: 0.536 | AA19: 0.428 | AB19: 0.3 | AC19: 0.226 | AD19: 0.182 | AE19: 0.156 | AF19: 0.134 | AG19: 0.107 | AH19: 0.086 | AI19: 0.069 | AJ19: 0.056
B20: =IF(C20<>"",COUNTA($C$6:C20)-COUNTIF($C$6:C20,""),"") -> 14 | C20: Phí thẩm tra thiết kế xây dựng công trình sử dụng nguồn vốn khác | D20: =IF(E20=10000,E20,IF(TBTT<=Y295,Y295,OFFSET(Y295,0,J28-1))) -> 15 | E20: =OFFSET(Y295,0,K28-1) -> 50 | F20: =IF(E20=10000,OFFSET(Y295,LCT,K28-1),IF(D20=E20,G20,OFFSET(Y295,LCT,J28-1))) -> 0.066 | G20: =OFFSET(Y295,LCT,K28-1) -> 0.066 | H20: =IF(D20=E20,G20,ROUND(FORECAST(XDTT,F20:G20,D20:E20),3)) -> 0.066 | J20: =IF(XDTT>AI173,K20,K20+1) -> 4 | K20: =IF(XDTT<=Y173,1,MATCH(XDTT,Y173:AI173,1)) -> 3 | M20: 2 | N20: =HLOOKUP(LCT,$P$24:$T$26,2) -> 1.62 | O20: =HLOOKUP(LCT,$P$24:$T$26,3) -> 1.91 | P20: =HLOOKUP($E$8,$Y$36:$AJ$41,CCT+1) -> 1.23 | Q20: =HLOOKUP($E$8,$Y$57:$AJ$62,CCT+1) -> 1.17 | R20: =HLOOKUP($E$8,$Y$78:$AJ$83,CCT+1) -> 0.66 | S20: =HLOOKUP($E$8,$Y$99:$AJ$104,CCT+1) -> 1.1 | T20: =HLOOKUP($E$8,$Y$120:$AJ$125,CCT+1) -> 0.88 | W20: 5 | X20: Công trình hạ tầng kỹ thuật | Y20: 0.514 | Z20: 0.467 | AA20: 0.374 | AB20: 0.291 | AC20: 0.2 | AD20: 0.156 | AE20: 0.137 | AF20: 0.117 | AG20: 0.094 | AH20: 0.075 | AI20: 0.06 | AJ20: 0.048
B21: III | C21: CHI PHÍ KHÁC (176/BTC và Thông tư 19/2011/TT-BTC) | J21: =IF(TBTT>AI183,K21,K21+1) -> 2 | K21: =IF(TBTT<=Y183,1,MATCH(TBTT,Y183:AI183,1)) -> 1
B22: 1 | C22: Lệ phí thẩm định thiết kế | J22: =IF(XDTT>AI193,K22,K22+1) -> 4 | K22: =IF(XDTT<=Y193,1,MATCH(XDTT,Y193:AI193,1)) -> 3 | P22: Thiết kế BVTC - 2 bước | W22: Bảng số 3: Định mức chi phí lập báo cáo kinh tế - kỹ thuật
B23: 2 | C23: Lệ phí thẩm định dự toán | J23: =IF(TBTT>AI203,K23,K23+1) -> 2 | K23: =IF(TBTT<=Y203,1,MATCH(TBTT,Y203:AI203,1)) -> 1 | P23: DD | Q23: CN | R23: GT | S23: TL | T23: HT | AA23: Đơn vị tính: Tỷ lệ %
B24: 3 | C24: Phí thẩm định dự án | D24: =IF(TMDT<=Y219,Y219,OFFSET(Y219,0,J33-1)) -> 15 | E24: =OFFSET(Y219,0,K33-1) -> 15 | F24: =IF(D24=E24,OFFSET(Y219,1,K33-1),OFFSET(Y219,1,J33-1)) -> 0.019 | G24: =OFFSET(Y219,1,K33-1) -> 0.019 | H24: =IF(D24=E24,G24,ROUND(FORECAST(TMDT,F24:G24,D24:E24),4)) -> 0.019 | J24: =IF(XDTT>AG247,K24,K24+1) -> 3 | K24: =IF(XDTT<=Y247,1,MATCH(XDTT,Y247:AG247,1)) -> 2 | P24: 1 | Q24: 2 | R24: 3 | S24: 4 | T24: 5 | W24: TT | X24: Loại công trình | Y24: Chi phí xây dựng và thiết bị (chưa có thuế GTGT) trong dự toán của Báo cáo kinh tế - kỹ thuật được duyệt (tỷ đồng)
B25: 4 | C25: Chi phí kiểm toán | D25: =IF(TMDT<=Y212,Y212,OFFSET(Y212,0,J34-1)) -> 5 | E25: =OFFSET(Y212,0,K34-1) -> 5 | F25: =IF(D25=E25,OFFSET(Y212,2,K34-1),OFFSET(Y212,2,J34-1)) -> 0.64 | G25: =OFFSET(Y212,2,K34-1) -> 0.64 | H25: =IF(D25=E25,G25,ROUND(FORECAST(TMDT,F25:G25,D25:E25),3)) -> 0.64 | J25: =IF(XDTT>AG259,K25,K25+1) -> 3 | K25: =IF(XDTT<=Y259,1,MATCH(XDTT,Y259:AG259,1)) -> 2 | P25: =HLOOKUP($D$8,$Y$46:$AJ$51,CCT+1) -> 1.62 | Q25: =HLOOKUP($D$8,$Y$67:$AJ$72,CCT+1) -> 1.72 | R25: =HLOOKUP($D$8,$Y$88:$AJ$93,CCT+1) -> 0.92 | S25: =HLOOKUP($D$8,$Y$109:$AJ$114,CCT+1) -> 1.44 | T25: =HLOOKUP($D$8,$Y$130:$AJ$135,CCT+1) -> 1.23 | Y25: 1 | Z25: 3 | AA25: 7 | AB25: 15
B26: 5 | C26: Chi phí thẩm tra phê duyệt, quyết toán vốn | D26: =IF(TMDT<=Y212,Y212,OFFSET(Y212,0,J35-1)) -> 5 | E26: =OFFSET(Y212,0,K35-1) -> 5 | F26: =IF(D26=E26,OFFSET(Y212,1,K35-1),OFFSET(Y212,1,J35-1)) -> 0.38 | G26: =OFFSET(Y212,1,K35-1) -> 0.38 | H26: =IF(ISERROR(M2/M3<=0.51),IF(D26=E26,G26,ROUND(FORECAST(TMDT,F26:G26,D26:E26),3)),IF(M2/M3<=0.51,IF(D26=E26,G26,ROUND(FORECAST(TMDT,F26:G26,D26:E26),3)),IF(D26=E26,G26,ROUND(FORECAST(TMDT,F26:G26,D26:E26),3))*0.7)) -> 0.38 | J26: =IF(XDTT>AG272,K26,K26+1) -> 3 | K26: =IF(XDTT<=Y272,1,MATCH(XDTT,Y272:AG272,1)) -> 2 | P26: =HLOOKUP($E$8,$Y$46:$AJ$51,CCT+1) -> 1.91 | Q26: =HLOOKUP($E$8,$Y$67:$AJ$72,CCT+1) -> 1.87 | R26: =HLOOKUP($E$8,$Y$88:$AJ$93,CCT+1) -> 1.01 | S26: =HLOOKUP($E$8,$Y$109:$AJ$114,CCT+1) -> 1.7 | T26: =HLOOKUP($E$8,$Y$130:$AJ$135,CCT+1) -> 1.35 | W26: 1 | X26: Công trình dân dụng | Y26: 3.6 | Z26: 3.6 | AA26: 3.2 | AB26: 2.8
J27: =IF(XDTT>AG284,K27,K27+1) -> 3 | K27: =IF(XDTT<=Y284,1,MATCH(XDTT,Y284:AG284,1)) -> 2 | W27: 2 | X27: Công trình công nghiệp | Y27: 3.7 | Z27: 3.7 | AA27: 3.3 | AB27: 2.9
J28: =IF(XDTT>AG251,K28,K28+1) -> 2 | K28: =IF(XDTT<=Y295,1,MATCH(XDTT,Y295:AG295,1)) -> 2 | W28: 3 | X28: Công trình giao thông | Y28: 2.8 | Z28: 2.8 | AA28: 2.1 | AB28: 1.9
W29: 4 | X29: Công trình nông nghiệp và PTNT | Y29: 3.4 | Z29: 3.4 | AA29: 3 | AB29: 2.8
J30: =IF(LCT=1,"V",IF(LCT=2,"I",IF(LCT=3,"IV",IF(LCT=4,"III","II")))) -> V | K30: =IF(LCT=1,5,IF(LCT=2,1,IF(LCT=3,4,IF(LCT=4,3,2)))) -> 5 | W30: 5 | X30: Công trình hạ tầng kỹ thuật | Y30: 3.2 | Z30: 3.2 | AA30: 2.6 | AB30: 2.3
W32: 3.3.9. Định mức chi phí thiết kế công trình dân dụng
J33: =IF(TMDT>AH219,K33,K33+1) -> 2 | K33: =IF(TMDT<=Y219,1,MATCH(TMDT,Y219:AH219,1)) -> 1 | W33: Bảng số 4: Định mức chi phí thiết kế kỹ thuật của công trình dân dụng có yêu cầu thiết kế 3 bước
J34: =IF(TMDT>AF212,K34,K34+1) -> 2 | K34: =IF(TMDT<=Y212,1,MATCH(TMDT,Y212:AF212,1)) -> 1 | M34: TMDT | N34: =M3/10^9 -> 0 | AI34: Đơn vị tính: Tỷ lệ %
J35: =IF(TMDT>AF212,K35,K35+1) -> 2 | K35: =IF(TMDT<=Y212,1,MATCH(TMDT,Y212:AF212,1)) -> 1 | M35: XDTT | N35: =M1/10^9 -> 74.22986975 | W35: TT | X35: Cấp công trình | Y35: Chi phí xây dựng (chưa có thuế GTGT) trong dự toán công trình được duyệt (tỷ đồng)
M36: TBTT | N36: =M2/10^9 -> 0 | Y36: 7 | Z36: 10 | AA36: 20 | AB36: 50 | AC36: 100 | AD36: 200 | AE36: 500 | AF36: 1000 | AG36: 2000 | AH36: 5000 | AI36: 8000 | AJ36: 10000
L37: 1 | M37: Thiết kế 1 bước | W37: 1 | X37: Cấp đặc biệt | Y37: 2.74 | Z37: 2.74 | AA37: 2.38 | AB37: 2 | AC37: 1.82 | AD37: 1.66 | AE37: 1.4 | AF37: 1.13 | AG37: 0.97 | AH37: 0.75 | AI37: 0.58 | AJ37: 0.58
L38: 2 | M38: Thiết kế 2 bước | W38: 2 | X38: Cấp I | Y38: 2.48 | Z38: 2.48 | AA38: 2.17 | AB38: 1.82 | AC38: 1.64 | AD38: 1.51 | AE38: 1.27 | AF38: 1.03 | AG38: 0.89 | AH38: 0.68 | AI38: 0.53 | AJ38: 0.53
L39: 3 | M39: Thiết kế 3 bước | W39: 3 | X39: Cấp II | Y39: 2.36 | Z39: 2.25 | AA39: 1.96 | AB39: 1.66 | AC39: 1.51 | AD39: 1.37 | AE39: 1.16 | AF39: 0.95 | AG39: 0.8 | AH39: 0.62 | AI39: 0.47 | AJ39: 0.47
M40: Loại công trình | W40: 4 | X40: Cấp III | Y40: 2.12 | Z40: 2.03 | AA40: 1.76 | AB40: 1.48 | AC40: 1.34 | AD40: 1.23 | AE40: 1.04 | AF40: 0.85 | AG40: 0.72 | AH40: 0.55 | AI40: 0.42 | AJ40: 0.42
M41: Bước thiết kế | W41: 5 | X41: Cấp IV | Y41: 1.88 | Z41: 1.8 | AA41: 1.57 | AB41: 1.23 | AC41: 1.04 | AD41: 0.88 | AE41: 0.75 | AF41: 0.61 | AG41: 0.61 | AH41: 0.61 | AI41: 0.61 | AJ41: 0.61
M42: Cấp công trình
L43: 1 | M43: Báo cáo nghiên cứu khả thi đầu tư xây dựng | W43: Bảng số 5: Định mức chi phí thiết kế bản vẽ thi công của công trình dân dụng có yêu cầu thiết kế 2 bước
L44: 2 | M44: Báo cáo kinh tế - kỹ thuật đầu tư xây dựng | AI44: Đơn vị tính: Tỷ lệ %
W45: TT | X45: Cấp công trình | Y45: Chi phí xây dựng (chưa có thuế GTGT) trong dự toán công trình được duyệt (tỷ đồng)
Y46: 7 | Z46: 10 | AA46: 20 | AB46: 50 | AC46: 100 | AD46: 200 | AE46: 500 | AF46: 1000 | AG46: 2000 | AH46: 5000 | AI46: 8000 | AJ46: 10000
W47: 1 | X47: Cấp đặc biệt | Y47: 4.24 | Z47: 4.24 | AA47: 3.68 | AB47: 3.1 | AC47: 2.82 | AD47: 2.57 | AE47: 2.17 | AF47: 1.75 | AG47: 1.5 | AH47: 1.16 | AI47: 0.9 | AJ47: 0.9
W48: 2 | X48: Cấp I | Y48: 3.84 | Z48: 3.84 | AA48: 3.36 | AB48: 2.82 | AC48: 2.54 | AD48: 2.34 | AE48: 1.96 | AF48: 1.59 | AG48: 1.38 | AH48: 1.05 | AI48: 0.82 | AJ48: 0.82
W49: 3 | X49: Cấp II | Y49: 3.63 | Z49: 3.48 | AA49: 3.01 | AB49: 2.54 | AC49: 2.29 | AD49: 2.1 | AE49: 1.79 | AF49: 1.45 | AG49: 1.24 | AH49: 0.96 | AI49: 0.73 | AJ49: 0.73
W50: 4 | X50: Cấp III | Y50: 3.27 | Z50: 3.15 | AA50: 2.73 | AB50: 2.29 | AC50: 2.08 | AD50: 1.9 | AE50: 1.62 | AF50: 1.31 | AG50: 1.11 | AH50: 0.86 | AI50: 0.65 | AJ50: 0.65
W51: 5 | X51: Cấp IV | Y51: 2.9 | Z51: 2.78 | AA51: 2.43 | AB51: 1.91 | AC51: 1.62 | AD51: 1.37 | AE51: 1.16 | AF51: 0.95 | AG51: 0.95 | AH51: 0.95 | AI51: 0.95 | AJ51: 0.95
W53: 3.3.10. Định mức chi phí thiết kế công trình công nghiệp
W54: Bảng số 6: Định mức chi phí thiết kế kỹ thuật của công trình công nghiệp có yêu cầu thiết kế 3 bước
AI55: Đơn vị tính: Tỷ lệ %
W56: TT | X56: Cấp công trình | Y56: Chi phí xây dựng (chưa có thuế GTGT) trong dự toán công trình được duyệt (tỷ đồng)
Y57: 7 | Z57: 10 | AA57: 20 | AB57: 50 | AC57: 100 | AD57: 200 | AE57: 500 | AF57: 1000 | AG57: 2000 | AH57: 5000 | AI57: 8000 | AJ57: 10000
W58: 1 | X58: Cấp đặc biệt | Y58: 2.79 | Z58: 2.79 | AA58: 2.58 | AB58: 2.21 | AC58: 2.01 | AD58: 1.82 | AE58: 1.66 | AF58: 1.45 | AG58: 1.23 | AH58: 0.95 | AI58: 0.73 | AJ58: 0.73
W59: 2 | X59: Cấp I | Y59: 2.33 | Z59: 2.33 | AA59: 2.15 | AB59: 1.83 | AC59: 1.67 | AD59: 1.51 | AE59: 1.38 | AF59: 1.21 | AG59: 1.03 | AH59: 0.79 | AI59: 0.61 | AJ59: 0.61
W60: 3 | X60: Cấp II | Y60: 1.99 | Z60: 1.94 | AA60: 1.79 | AB60: 1.53 | AC60: 1.39 | AD60: 1.26 | AE60: 1.15 | AF60: 1.01 | AG60: 0.86 | AH60: 0.66 | AI60: 0.51 | AJ60: 0.51
W61: 4 | X61: Cấp III | Y61: 1.73 | Z61: 1.69 | AA61: 1.56 | AB61: 1.32 | AC61: 1.2 | AD61: 1.1 | AE61: 1.01 | AF61: 0.9 | AG61: 0.77 | AH61: 0.59 | AI61: 0.46 | AJ61: 0.46
W62: 5 | X62: Cấp IV | Y62: 1.54 | Z62: 1.5 | AA62: 1.39 | AB62: 1.17 | AC62: 1.08 | AD62: 0.92 | AE62: 0.78 | AF62: 0.67 | AG62: 0.67 | AH62: 0.67 | AI62: 0.67 | AJ62: 0.67
W64: Bảng số 7: Định mức chi phí thiết kế bản vẽ thi công của công trình công nghiệp có yêu cầu thiết kế 2 bước
AI65: Đơn vị tính: Tỷ lệ %
W66: TT | X66: Cấp công trình | Y66: Chi phí xây dựng (chưa có thuế GTGT) trong dự toán công trình được duyệt (tỷ đồng)
Y67: 7 | Z67: 10 | AA67: 20 | AB67: 50 | AC67: 100 | AD67: 200 | AE67: 500 | AF67: 1000 | AG67: 2000 | AH67: 5000 | AI67: 8000 | AJ67: 10000
W68: 1 | X68: Cấp đặc biệt | Y68: 4.67 | Z68: 4.67 | AA68: 4.12 | AB68: 3.53 | AC68: 3.21 | AD68: 2.91 | AE68: 2.65 | AF68: 2.32 | AG68: 1.96 | AH68: 1.52 | AI68: 1.16 | AJ68: 1.16
W69: 2 | X69: Cấp I | Y69: 3.73 | Z69: 3.73 | AA69: 3.44 | AB69: 2.92 | AC69: 2.67 | AD69: 2.41 | AE69: 2.2 | AF69: 1.93 | AG69: 1.64 | AH69: 1.26 | AI69: 0.97 | AJ69: 0.97
W70: 3 | X70: Cấp II | Y70: 3.07 | Z70: 2.99 | AA70: 2.76 | AB70: 2.35 | AC70: 2.15 | AD70: 1.94 | AE70: 1.77 | AF70: 1.55 | AG70: 1.32 | AH70: 1.02 | AI70: 0.78 | AJ70: 0.78
W71: 4 | X71: Cấp III | Y71: 2.76 | Z71: 2.69 | AA71: 2.49 | AB71: 2.11 | AC71: 1.92 | AD71: 1.75 | AE71: 1.61 | AF71: 1.44 | AG71: 1.22 | AH71: 0.94 | AI71: 0.72 | AJ71: 0.72
W72: 5 | X72: Cấp IV | Y72: 2.45 | Z72: 2.39 | AA72: 2.21 | AB72: 1.87 | AC72: 1.72 | AD72: 1.46 | AE72: 1.24 | AF72: 1.06 | AG72: 1.06 | AH72: 1.06 | AI72: 1.06 | AJ72: 1.06
W74: 3.3.11. Định mức chi phí thiết kế công trình giao thông
W75: Bảng số 8: Định mức chi phí thiết kế kỹ thuật của công trình giao thông có yêu cầu thiết kế 3 bước
AI76: Đơn vị tính: Tỷ lệ %
W77: TT | X77: Cấp công trình | Y77: Chi phí xây dựng (chưa có thuế GTGT) trong dự toán công trình được duyệt (tỷ đồng)
Y78: 7 | Z78: 10 | AA78: 20 | AB78: 50 | AC78: 100 | AD78: 200 | AE78: 500 | AF78: 1000 | AG78: 2000 | AH78: 5000 | AI78: 8000 | AJ78: 10000
W79: 1 | X79: Cấp đặc biệt | Y79: 1.81 | Z79: 1.81 | AA79: 1.67 | AB79: 1.46 | AC79: 1.26 | AD79: 1145 | AE79: 1.06 | AF79: 0.91 | AG79: 0.76 | AH79: 0.58 | AI79: 0.44 | AJ79: 0.44
W80: 2 | X80: Cấp I | Y80: 1.11 | Z80: 1.11 | AA80: 1.05 | AB80: 0.87 | AC80: 0.81 | AD80: 0.73 | AE80: 0.67 | AF80: 0.57 | AG80: 0.48 | AH80: 0.37 | AI80: 0.28 | AJ80: 0.28
W81: 3 | X81: Cấp II | Y81: 1.04 | Z81: 1.01 | AA81: 0.94 | AB81: 0.8 | AC81: 0.73 | AD81: 0.67 | AE81: 0.61 | AF81: 0.52 | AG81: 0.44 | AH81: 0.34 | AI81: 0.26 | AJ81: 0.26
W82: 4 | X82: Cấp III | Y82: 0.95 | Z82: 0.92 | AA82: 0.85 | AB82: 0.73 | AC82: 0.67 | AD82: 0.61 | AE82: 0.5 | AF82: 0.42 | AG82: 0.24 | AH82: 0.28 | AI82: 0.21 | AJ82: 0.21
W83: 5 | X83: Cấp IV | Y83: 0.85 | Z83: 0.83 | AA83: 0.76 | AB83: 0.66 | AC83: 0.6 | AD83: 0.51 | AE83: 0.43 | AF83: 0.37 | AG83: 0.31 | AH83: 0.24 | AI83: 0.24 | AJ83: 0.24
W85: Bảng số 9: Định mức chi phí thiết kế bản vẽ thi công của công trình giao thông có yêu cầu thiết kế 2 bước
AI86: Đơn vị tính: Tỷ lệ %
W87: TT | X87: Cấp công trình | Y87: Chi phí xây dựng (chưa có thuế GTGT) trong dự toán công trình được duyệt (tỷ đồng)
Y88: 7 | Z88: 10 | AA88: 20 | AB88: 50 | AC88: 100 | AD88: 200 | AE88: 500 | AF88: 1000 | AG88: 2000 | AH88: 5000 | AI88: 8000 | AJ88: 10000
W89: 1 | X89: Cấp đặc biệt | Y89: 2.8 | Z89: 2.8 | AA89: 2.58 | AB89: 2.21 | AC89: 2.01 | AD89: 1.82 | AE89: 1.66 | AF89: 1.45 | AG89: 1.23 | AH89: 0.95 | AI89: 0.73 | AJ89: 0.73
W90: 2 | X90: Cấp I | Y90: 2.72 | Z90: 2.72 | AA90: 2.15 | AB90: 1.83 | AC90: 1.67 | AD90: 1.51 | AE90: 1.38 | AF90: 1.21 | AG90: 1.03 | AH90: 0.79 | AI90: 0.61 | AJ90: 0.61
W91: 3 | X91: Cấp II | Y91: 1.61 | Z91: 1.56 | AA91: 1.45 | AB91: 1.23 | AC91: 1.12 | AD91: 1.03 | AE91: 0.93 | AF91: 0.79 | AG91: 0.67 | AH91: 0.52 | AI91: 0.4 | AJ91: 0.4
W92: 4 | X92: Cấp III | Y92: 1.46 | Z92: 1.42 | AA92: 1.31 | AB92: 1.13 | AC92: 1.03 | AD92: 0.92 | AE92: 0.77 | AF92: 0.65 | AG92: 0.55 | AH92: 0.42 | AI92: 0.32 | AJ92: 0.32
W93: 5 | X93: Cấp IV | Y93: 1.31 | Z93: 1.28 | AA93: 1.18 | AB93: 1.01 | AC93: 0.92 | AD93: 0.78 | AE93: 0.66 | AF93: 0.57 | AG93: 0.48 | AH93: 0.37 | AI93: 0.37 | AJ93: 0.37
W95: 3.3.12. Định mức chi phí thiết kế Công trình nông nghiệp và PTNT
W96: Bảng số 10: Định mức chi phí thiết kế kỹ thuật của Công trình nông nghiệp và PTNT có yêu cầu thiết kế 3 bước
AI97: Đơn vị tính: Tỷ lệ %
W98: TT | X98: Cấp công trình | Y98: Chi phí xây dựng (chưa có thuế GTGT) trong dự toán công trình được duyệt (tỷ đồng)
Y99: 7 | Z99: 10 | AA99: 20 | AB99: 50 | AC99: 100 | AD99: 200 | AE99: 500 | AF99: 1000 | AG99: 2000 | AH99: 5000 | AI99: 8000 | AJ99: 10000
W100: 1 | X100: Cấp đặc biệt | Y100: 2.59 | Z100: 2.59 | AA100: 2.25 | AB100: 1.91 | AC100: 1.72 | AD100: 1.57 | AE100: 1.34 | AF100: 1.13 | AG100: 0.96 | AH100: 0.74 | AI100: 0.57 | AJ100: 0.57
W101: 2 | X101: Cấp I | Y101: 2.35 | Z101: 2.35 | AA101: 2.05 | AB101: 1.73 | AC101: 1.55 | AD101: 1.43 | AE101: 1.21 | AF101: 1.02 | AG101: 0.87 | AH101: 0.67 | AI101: 0.51 | AJ101: 0.51
W102: 3 | X102: Cấp II | Y102: 2.22 | Z102: 2.13 | AA102: 1.86 | AB102: 1.57 | AC102: 1.42 | AD102: 1.31 | AE102: 1.06 | AF102: 0.91 | AG102: 0.76 | AH102: 0.58 | AI102: 0.45 | AJ102: 0.45
W103: 4 | X103: Cấp III | Y103: 2.01 | Z103: 1.93 | AA103: 1.67 | AB103: 1.4 | AC103: 1.27 | AD103: 1.08 | AE103: 0.92 | AF103: 0.78 | AG103: 0.67 | AH103: 0.51 | AI103: 0.4 | AJ103: 0.4
W104: 5 | X104: Cấp IV | Y104: 1.77 | Z104: 1.7 | AA104: 1.49 | AB104: 1.1 | AC104: 0.93 | AD104: 0.8 | AE104: 0.67 | AF104: 0.58 | AG104: 0.49 | AH104: 0.38 | AI104: 0.38 | AJ104: 0.38
W106: Bảng số 11: Định mức chi phí thiết kế bản vẽ thi công của Công trình nông nghiệp và PTNT có yêu cầu thiết kế 2 bước
AI107: Đơn vị tính: Tỷ lệ %
W108: TT | X108: Cấp công trình | Y108: Chi phí xây dựng (chưa có thuế GTGT) trong dự toán công trình được duyệt (tỷ đồng)
Y109: 7 | Z109: 10 | AA109: 20 | AB109: 50 | AC109: 100 | AD109: 200 | AE109: 500 | AF109: 1000 | AG109: 2000 | AH109: 5000 | AI109: 8000 | AJ109: 10000
W110: 1 | X110: Cấp đặc biệt | Y110: 4.01 | Z110: 4.01 | AA110: 3.48 | AB110: 2.96 | AC110: 2.66 | AD110: 2.43 | AE110: 2.07 | AF110: 1.75 | AG110: 1.48 | AH110: 1.14 | AI110: 0.88 | AJ110: 0.88
W111: 2 | X111: Cấp I | Y111: 3.64 | Z111: 3.64 | AA111: 3.17 | AB111: 2.68 | AC111: 2.4 | AD111: 2.21 | AE111: 1.87 | AF111: 1.58 | AG111: 1.34 | AH111: 1.03 | AI111: 0.79 | AJ111: 0.79
W112: 3 | X112: Cấp II | Y112: 3.42 | Z112: 3.29 | AA112: 2.87 | AB112: 2.41 | AC112: 2.19 | AD112: 2.01 | AE112: 1.62 | AF112: 1.38 | AG112: 1.17 | AH112: 0.9 | AI112: 0.51 | AJ112: 0.51
W113: 4 | X113: Cấp III | Y113: 3.11 | Z113: 2.98 | AA113: 2.58 | AB113: 2.16 | AC113: 1.96 | AD113: 1.67 | AE113: 1.42 | AF113: 1.21 | AG113: 1.03 | AH113: 0.79 | AI113: 0.46 | AJ113: 0.46
W114: 5 | X114: Cấp IV | Y114: 2.74 | Z114: 2.63 | AA114: 2.31 | AB114: 1.7 | AC114: 1.44 | AD114: 1.23 | AE114: 1.04 | AF114: 0.89 | AG114: 0.75 | AH114: 0.58 | AI114: 0.58 | AJ114: 0.58
W116: 3.3.13. Định mức chi phí thiết kế công trình hạ tầng kỹ thuật
W117: Bảng số 12: Định mức chi phí thiết kế kỹ thuật của công trình hạ tầng kỹ thuật có yêu cầu thiết kế 3 bước
AI118: Đơn vị tính: Tỷ lệ %
W119: TT | X119: Cấp công trình | Y119: Chi phí xây dựng (chưa có thuế GTGT) trong dự toán công trình được duyệt (tỷ đồng)
Y120: 7 | Z120: 10 | AA120: 20 | AB120: 50 | AC120: 100 | AD120: 200 | AE120: 500 | AF120: 1000 | AG120: 2000 | AH120: 5000 | AI120: 8000 | AJ120: 10000
W121: 1 | X121: Cấp đặc biệt | Y121: 1.95 | Z121: 1.95 | AA121: 1.69 | AB121: 1.42 | AC121: 1.29 | AD121: 1.18 | AE121: 0.99 | AF121: 0.84 | AG121: 0.72 | AH121: 0.55 | AI121: 0.42 | AJ121: 0.42
W122: 2 | X122: Cấp I | Y122: 1.77 | Z122: 1.77 | AA122: 1.54 | AB122: 1.31 | AC122: 1.17 | AD122: 1.07 | AE122: 0.85 | AF122: 0.72 | AG122: 0.61 | AH122: 0.47 | AI122: 0.31 | AJ122: 0.31
W123: 3 | X123: Cấp II | Y123: 1.68 | Z123: 1.61 | AA123: 1.41 | AB123: 1.18 | AC123: 1.06 | AD123: 0.98 | AE123: 0.78 | AF123: 0.67 | AG123: 0.57 | AH123: 0.44 | AI123: 0.29 | AJ123: 0.29
W124: 4 | X124: Cấp III | Y124: 1.5 | Z124: 1.44 | AA124: 1.26 | AB124: 1.05 | AC124: 0.96 | AD124: 0.84 | AE124: 0.76 | AF124: 0.64 | AG124: 0.55 | AH124: 0.42 | AI124: 0.27 | AJ124: 0.27
W125: 5 | X125: Cấp IV | Y125: 1.34 | Z125: 1.28 | AA125: 1.11 | AB125: 0.88 | AC125: 0.8 | AD125: 0.6 | AE125: 0.58 | AF125: 0.5 | AG125: 0.42 | AH125: 0.32 | AI125: 0.32 | AJ125: 0.32
W127: Bảng số 13: Định mức chi phí thiết kế bản vẽ thi công của công trình hạ tầng kỹ thuật có yêu cầu thiết kế 2 bước
AI128: Đơn vị tính: Tỷ lệ %
W129: TT | X129: Cấp công trình | Y129: Chi phí xây dựng (chưa có thuế GTGT) trong dự toán công trình được duyệt (tỷ đồng)
Y130: 7 | Z130: 10 | AA130: 20 | AB130: 50 | AC130: 100 | AD130: 200 | AE130: 500 | AF130: 1000 | AG130: 2000 | AH130: 5000 | AI130: 8000 | AJ130: 10000
W131: 1 | X131: Cấp đặc biệt | Y131: 3.02 | Z131: 3.02 | AA131: 2.61 | AB131: 2.2 | AC131: 1.99 | AD131: 1.82 | AE131: 1.53 | AF131: 1.3 | AG131: 1.11 | AH131: 0.85 | AI131: 0.65 | AJ131: 0.65
W132: 2 | X132: Cấp I | Y132: 2.74 | Z132: 2.74 | AA132: 2.38 | AB132: 2.03 | AC132: 1.81 | AD132: 1.65 | AE132: 1.31 | AF132: 1.11 | AG132: 0.94 | AH132: 0.72 | AI132: 0.56 | AJ132: 0.56
W133: 3 | X133: Cấp II | Y133: 2.58 | Z133: 2.48 | AA133: 2.15 | AB133: 1.81 | AC133: 1.64 | AD133: 1.51 | AE133: 1.21 | AF133: 1.02 | AG133: 0.87 | AH133: 0.67 | AI133: 0.51 | AJ133: 0.51
W134: 4 | X134: Cấp III | Y134: 2.32 | Z134: 2.23 | AA134: 1.94 | AB134: 1.62 | AC134: 1.48 | AD134: 1.29 | AE134: 1.17 | AF134: 0.99 | AG134: 0.84 | AH134: 0.64 | AI134: 0.41 | AJ134: 0.41
W135: 5 | X135: Cấp IV | Y135: 2.07 | Z135: 1.98 | AA135: 1.72 | AB135: 1.35 | AC135: 1.23 | AD135: 0.92 | AE135: 0.89 | AF135: 0.76 | AG135: 0.64 | AH135: 0.49 | AI135: 0.49 | AJ135: 0.49
W137: Bảng số 14: Định mức chi phí thẩm tra tính hiệu quả và tính khả thi của dự án đầu tư
AJ138: Đơn vị tính: Tỷ lệ %
W139: TT | X139: Loại công trình | Y139: Chi phí xây dựng và thiết bị (chưa có thuế GTGT) trong tổng mức đầu tư được duyệt (tỷ đồng)
Y140: 15 | Z140: 20 | AA140: 50 | AB140: 100 | AC140: 200 | AD140: 500 | AE140: 1000 | AF140: 2000 | AG140: 5000 | AH140: 10000 | AI140: 20000 | AJ140: 30000
W141: 1 | X141: Công trình dân dụng | Y141: 0.098 | Z141: 0.081 | AA141: 0.066 | AB141: 0.047 | AC141: 0.035 | AD141: 0.023 | AE141: 0.02 | AF141: 0.017 | AG141: 0.014 | AH141: 0.01 | AI141: 0.008 | AJ141: 0.006
W142: 2 | X142: Công trình công nghiệp | Y142: 0.14 | Z142: 0.119 | AA142: 0.095 | AB142: 0.07 | AC142: 0.055 | AD142: 0.041 | AE142: 0.036 | AF142: 0.029 | AG142: 0.025 | AH142: 0.015 | AI142: 0.01 | AJ142: 0.007
W143: 3 | X143: Công trình giao thông | Y143: 0.074 | Z143: 0.067 | AA143: 0.054 | AB143: 0.042 | AC143: 0.029 | AD143: 0.018 | AE143: 0.016 | AF143: 0.013 | AG143: 0.011 | AH143: 0.007 | AI143: 0.005 | AJ143: 0.004
W144: 4 | X144: Công trình nông nghiệp và PTNT | Y144: 0.088 | Z144: 0.08 | AA144: 0.064 | AB144: 0.045 | AC144: 0.034 | AD144: 0.022 | AE144: 0.019 | AF144: 0.016 | AG144: 0.013 | AH144: 0.009 | AI144: 0.007 | AJ144: 0.005
W145: 5 | X145: Công trình hạ tầng kỹ thuật | Y145: 0.077 | Z145: 0.07 | AA145: 0.056 | AB145: 0.044 | AC145: 0.03 | AD145: 0.019 | AE145: 0.017 | AF145: 0.014 | AG145: 0.012 | AH145: 0.008 | AI145: 0.006 | AJ145: 0.004
W147: Bảng số 15: Định mức chi phí thẩm tra thiết kế kỹ thuật đối với công trình có yêu cầu thiết kế 3 bước; thẩm tra thiết kế bản vẽ thi công
W148: đối với công trình có yêu cầu thiết kế 1 bước và 2 bước
AH149: Đơn vị tính: Tỷ lệ %
W150: TT | X150: Loại công trình | Y150: Chi phí xây dựng (chưa có thuế GTGT)
Y151: (tỷ đồng)
Y152: 10 | Z152: 20 | AA152: 50 | AB152: 100 | AC152: 200 | AD152: 500 | AE152: 1000 | AF152: 2000 | AG152: 5000 | AH152: 8000 | AI152: 10000
W153: 1 | X153: Công trình dân dụng | Y153: 0.206 | Z153: 0.179 | AA153: 0.138 | AB153: 0.106 | AC153: 0.081 | AD153: 0.063 | AE153: 0.051 | AF153: 0.036 | AG153: 0.028 | AH153: 0.024 | AI153: 0.024
W154: 2 | X154: Công trình công nghiệp | Y154: 0.238 | Z154: 0.206 | AA154: 0.158 | AB154: 0.121 | AC154: 0.094 | AD154: 0.073 | AE154: 0.055 | AF154: 0.044 | AG154: 0.033 | AH154: 0.028 | AI154: 0.028
W155: 3 | X155: Công trình giao thông | Y155: 0.136 | Z155: 0.118 | AA155: 0.09 | AB155: 0.069 | AC155: 0.054 | AD155: 0.041 | AE155: 0.031 | AF155: 0.026 | AG155: 0.02 | AH155: 0.017 | AI155: 0.017
W156: 4 | X156: Công trình nông nghiệp và PTNT | Y156: 0.151 | Z156: 0.13 | AA156: 0.1 | AB156: 0.076 | AC156: 0.06 | AD156: 0.046 | AE156: 0.035 | AF156: 0.029 | AG156: 0.021 | AH156: 0.018 | AI156: 0.018
W157: 5 | X157: Công trình hạ tầng kỹ thuật | Y157: 0.158 | Z157: 0.138 | AA157: 0.106 | AB157: 0.081 | AC157: 0.063 | AD157: 0.049 | AE157: 0.038 | AF157: 0.033 | AG157: 0.024 | AH157: 0.021 | AI157: 0.021
W159: Bảng số 16: Định mức chi phí thẩm tra dự toán công trình
AH160: Đơn vị tính: Tỷ lệ %
W161: TT | X161: Loại công trình | Y161: Chi phí xây dựng (chưa có thuế GTGT)
Y162: (tỷ đồng)
Y163: 10 | Z163: 20 | AA163: 50 | AB163: 100 | AC163: 200 | AD163: 500 | AE163: 1000 | AF163: 2000 | AG163: 5000 | AH163: 8000 | AI163: 10000
W164: 1 | X164: Công trình dân dụng | Y164: 0.2 | Z164: 0.175 | AA164: 0.133 | AB164: 0.104 | AC164: 0.078 | AD164: 0.058 | AE164: 0.048 | AF164: 0.035 | AG164: 0.026 | AH164: 0.023 | AI164: 0.023
W165: 2 | X165: Công trình công nghiệp | Y165: 0.231 | Z165: 0.2 | AA165: 0.151 | AB165: 0.118 | AC165: 0.09 | AD165: 0.069 | AE165: 0.051 | AF165: 0.041 | AG165: 0.029 | AH165: 0.025 | AI165: 0.025
W166: 3 | X166: Công trình giao thông | Y166: 0.133 | Z166: 0.114 | AA166: 0.085 | AB166: 0.068 | AC166: 0.051 | AD166: 0.039 | AE166: 0.03 | AF166: 0.025 | AG166: 0.018 | AH166: 0.015 | AI166: 0.015
W167: 4 | X167: Công trình nông nghiệp và PTNT | Y167: 0.146 | Z167: 0.126 | AA167: 0.095 | AB167: 0.075 | AC167: 0.058 | AD167: 0.044 | AE167: 0.033 | AF167: 0.028 | AG167: 0.02 | AH167: 0.017 | AI167: 0.017
W168: 5 | X168: Công trình hạ tầng kỹ thuật | Y168: 0.153 | Z168: 0.133 | AA168: 0.103 | AB168: 0.078 | AC168: 0.059 | AD168: 0.046 | AE168: 0.036 | AF168: 0.03 | AG168: 0.021 | AH168: 0.018 | AI168: 0.018
W170: Bảng số 17: Định mức chi phí lập hồ sơ mời thầu, đánh giá hồ sơ dự thầu thi công xây dựng
AH171: Đơn vị tính: Tỷ lệ %
W172: TT | X172: Loại công trình | Y172: Chi phí xây dựng (chưa có thuế GTGT) trong dự toán gói thầu được duyệt (tỷ đồng)
Y173: 10 | Z173: 20 | AA173: 50 | AB173: 100 | AC173: 200 | AD173: 500 | AE173: 1000 | AF173: 2000 | AG173: 5000 | AH173: 8000 | AI173: 10000
W174: 1 | X174: Công trình dân dụng | Y174: 0.337 | Z174: 0.27 | AA174: 0.152 | AB174: 0.099 | AC174: 0.059 | AD174: 0.043 | AE174: 0.03 | AF174: 0.026 | AG174: 0.022 | AH174: 0.019 | AI174: 0.019
W175: 2 | X175: Công trình công nghiệp | Y175: 0.439 | Z175: 0.303 | AA175: 0.169 | AB175: 0.115 | AC175: 0.074 | AD175: 0.053 | AE175: 0.04 | AF175: 0.034 | AG175: 0.027 | AH175: 0.023 | AI175: 0.023
W176: 3 | X176: Công trình giao thông | Y176: 0.27 | Z176: 0.185 | AA176: 0.118 | AB176: 0.07 | AC176: 0.045 | AD176: 0.035 | AE176: 0.022 | AF176: 0.019 | AG176: 0.016 | AH176: 0.014 | AI176: 0.014
W177: 4 | X177: Công trình nông nghiệp và PTNT | Y177: 0.282 | Z177: 0.236 | AA177: 0.13 | AB177: 0.074 | AC177: 0.047 | AD177: 0.037 | AE177: 0.024 | AF177: 0.021 | AG177: 0.018 | AH177: 0.016 | AI177: 0.016
W178: 5 | X178: Công trình hạ tầng kỹ thuật | Y178: 0.303 | Z178: 0.254 | AA178: 0.135 | AB178: 0.083 | AC178: 0.049 | AD178: 0.04 | AE178: 0.026 | AF178: 0.022 | AG178: 0.019 | AH178: 0.017 | AI178: 0.017
W180: Bảng số 18: Định mức chi phí lập hồ sơ mời thầu, đánh giá hồ sơ dự thầu mua sắm thiết bị
AH181: Đơn vị tính: Tỷ lệ %
W182: TT | X182: Loại công trình | Y182: Chi phí thiết bị (chưa có thuế GTGT) trong dự toán gói thầu được duyệt (tỷ đồng)
Y183: 10 | Z183: 20 | AA183: 50 | AB183: 100 | AC183: 200 | AD183: 500 | AE183: 1000 | AF183: 2000 | AG183: 5000 | AH183: 8000 | AI183: 10000
W184: 1 | X184: Công trình dân dụng | Y184: 0.287 | Z184: 0.27 | AA184: 0.142 | AB184: 0.089 | AC184: 0.079 | AD184: 0.066 | AE184: 0.045 | AF184: 0.035 | AG184: 0.027 | AH184: 0.023 | AI184: 0.023
W185: 2 | X185: Công trình công nghiệp | Y185: 0.439 | Z185: 0.395 | AA185: 0.224 | AB185: 0.141 | AC185: 0.122 | AD185: 0.1 | AE185: 0.068 | AF185: 0.054 | AG185: 0.041 | AH185: 0.036 | AI185: 0.036
W186: 3 | X186: Công trình giao thông | Y186: 0.204 | Z186: 0.179 | AA186: 0.103 | AB186: 0.066 | AC186: 0.058 | AD186: 0.046 | AE186: 0.032 | AF186: 0.026 | AG186: 0.021 | AH186: 0.019 | AI186: 0.019
W187: 4 | X187: Công trình nông nghiệp và PTNT | Y187: 0.219 | Z187: 0.191 | AA187: 0.11 | AB187: 0.07 | AC187: 0.061 | AD187: 0.049 | AE187: 0.04 | AF187: 0.03 | AG187: 0.024 | AH187: 0.02 | AI187: 0.02
W188: 5 | X188: Công trình hạ tầng kỹ thuật | Y188: 0.236 | Z188: 0.203 | AA188: 0.122 | AB188: 0.079 | AC188: 0.068 | AD188: 0.056 | AE188: 0.044 | AF188: 0.034 | AG188: 0.026 | AH188: 0.022 | AI188: 0.022
W190: Bảng số 19: Định mức chi phí giám sát thi công xây dựng
AH191: Đơn vị tính: Tỷ lệ %
W192: TT | X192: Loại công trình | Y192: Chi phí xây dựng (chưa có thuế GTGT) trong dự toán gói thầu được duyệt (tỷ đồng)
Y193: 10 | Z193: 20 | AA193: 50 | AB193: 100 | AC193: 200 | AD193: 500 | AE193: 1000 | AF193: 2000 | AG193: 5000 | AH193: 8000 | AI193: 10000
W194: 1 | X194: Công trình dân dụng | Y194: 2.628 | Z194: 2.282 | AA194: 1.948 | AB194: 1.512 | AC194: 1.267 | AD194: 0.974 | AE194: 0.653 | AF194: 0.589 | AG194: 0.529 | AH194: 0.46 | AI194: 0.46
W195: 2 | X195: Công trình công nghiệp | Y195: 2.806 | Z195: 2.51 | AA195: 2.047 | AB195: 1.7 | AC195: 1.314 | AD195: 1.066 | AE195: 0.674 | AF195: 0.607 | AG195: 0.546 | AH195: 0.474 | AI195: 0.474
W196: 3 | X196: Công trình giao thông | Y196: 2.562 | Z196: 2.16 | AA196: 1.885 | AB196: 1.405 | AC196: 1.043 | AD196: 0.822 | AE196: 0.599 | AF196: 0.539 | AG196: 0.485 | AH196: 0.422 | AI196: 0.422
W197: 4 | X197: Công trình nông nghiệp và PTNT | Y197: 2.079 | Z197: 1.834 | AA197: 1.66 | AB197: 1.266 | AC197: 0.974 | AD197: 0.779 | AE197: 0.518 | AF197: 0.466 | AG197: 0.419 | AH197: 0.364 | AI197: 0.364
W198: 5 | X198: Công trình hạ tầng kỹ thuật | Y198: 2.053 | Z198: 1.805 | AA198: 1.588 | AB198: 1.198 | AC198: 0.936 | AD198: 0.748 | AE198: 0.478 | AF198: 0.431 | AG198: 0.388 | AH198: 0.337 | AI198: 0.337
W200: Bảng số 20: Định mức chi phí giám sát lắp đặt thiết bị
AH201: Đơn vị tính: Tỷ lệ %
W202: TT | X202: Loại công trình | Y202: Chi phí thiết bị (chưa có thuế GTGT) trong dự toán gói thầu được duyệt (tỷ đồng)
Y203: 10 | Z203: 20 | AA203: 50 | AB203: 100 | AC203: 200 | AD203: 500 | AE203: 1000 | AF203: 2000 | AG203: 5000 | AH203: 8000 | AI203: 10000
W204: 1 | X204: Công trình dân dụng | Y204: 0.675 | Z204: 0.572 | AA204: 0.477 | AB204: 0.315 | AC204: 0.25 | AD204: 0.214 | AE204: 0.144 | AF204: 0.13 | AG204: 0.117 | AH204: 0.102 | AI204: 0.102
W205: 2 | X205: Công trình công nghiệp | Y205: 0.918 | Z205: 0.804 | AA205: 0.767 | AB205: 0.649 | AC205: 0.402 | AD205: 0.346 | AE205: 0.292 | AF205: 0.262 | AG205: 0.235 | AH205: 0.204 | AI205: 0.204
W206: 3 | X206: Công trình giao thông | Y206: 0.542 | Z206: 0.464 | AA206: 0.389 | AB206: 0.256 | AC206: 0.214 | AD206: 0.178 | AE206: 0.12 | AF206: 0.108 | AG206: 0.097 | AH206: 0.084 | AI206: 0.084
W207: 4 | X207: Công trình nông nghiệp và PTNT | Y207: 0.574 | Z207: 0.468 | AA207: 0.416 | AB207: 0.275 | AC207: 0.226 | AD207: 0.19 | AE207: 0.13 | AF207: 0.117 | AG207: 0.105 | AH207: 0.091 | AI207: 0.091
W208: 5 | X208: Công trình hạ tầng kỹ thuật | Y208: 0.643 | Z208: 0.552 | AA208: 0.46 | AB208: 0.307 | AC208: 0.246 | AD208: 0.214 | AE208: 0.142 | AF208: 0.127 | AG208: 0.114 | AH208: 0.099 | AI208: 0.099
X210: Chi phí kiểm toán, thẩm tra phê duyệt quyết toán (Thông tư 19/2011/QĐ-BTC)
X211: Loại chi phí | Y211: Tổng mức đầu tư (tỷ đồng)
Y212: 5 | Z212: 10 | AA212: 50 | AB212: 100 | AC212: 500 | AD212: 1000 | AE212: 10000 | AF212: 20000
X213: Chi phí thẩm tra, phê duyệt quyết toán vốn | Y213: 0.38 | Z213: 0.26 | AA213: 0.19 | AB213: 0.15 | AC213: 0.09 | AD213: 0.06 | AE213: 0.032 | AF213: 0
X214: Chi phí kiểm toán | Y214: 0.64 | Z214: 0.43 | AA214: 0.3 | AB214: 0.23 | AC214: 0.13 | AD214: 0.086 | AE214: 0.046 | AF214: 0
X217: BIỂU MỨC THU PHÍ THẨM ĐỊNH DỰ ÁN ĐẦU TƯ XÂY DỰNG
X218: (theo Thông tư số 176/2011/TT-BTC ngày 6/12/2011 của Bộ Tài chính)
X219: Tổng mức đầu tư DA (tỷ đ) | Y219: 15 | Z219: 25 | AA219: 50 | AB219: 100 | AC219: 200 | AD219: 500 | AE219: 1000 | AF219: 2000 | AG219: 5000 | AH219: 10000
... 62 more rows

Sheet THDT goi thau XD (hidden)
A1: BẢNG DỰ TOÁN GÓI THẦU THI CÔNG XÂY DỰNG
A2: =Bia!D42&Bia!E42 -> CÔNG TRÌNH: CÁC PHẦN MỀM QUẢN LÝ CHI PHÍ ĐTXD CT
E3: ĐVT: đồng
A4: STT | B4: HẠNG MỤC | C4: GIÁ TRỊ TRƯỚC THUẾ | D4: THUẾ GTGT | E4: GIÁ TRỊ SAU THUẾ | F4: KÝ HIỆU | G4: ĐMTL
A5: [1] | B5: [2] | C5: [3] | D5: [4] | E5: [5] | F5: [6]
A6: 1 | B6: Chi phí xây dựng của gói thầu | C6: =SUM(C7:C8) -> 7.422986975e+10 | D6: =SUM(D7:D8) -> 7422986975 | E6: =SUM(E7:E8) -> 8.165285673e+10 | F6: GXD
A7: 1.1 | B7: ="Hạng mục: "&'Du toan XD'!F9 -> Hạng mục: PHẦN MÓNG | C7: ='THCP xay dung'!D20 -> 4.317879573e+10 | D7: ='THCP xay dung'!D21 -> 4317879573 | E7: ='THCP xay dung'!D22 -> 4.74966753e+10
A8: 1.2 | B8: ="Hạng mục: "&'Du toan XD'!F14 -> Hạng mục: PHẦN THÂN | C8: ='THCP xay dung'!D45 -> 3.105107403e+10 | D8: ='THCP xay dung'!D46 -> 3105107403 | E8: ='THCP xay dung'!D47 -> 3.415618143e+10
A9: 2 | B9: Chi phí hạng mục chung | C9: =SUM(C10:C12) -> 2598045441 | D9: =SUM(D10:D12) -> 259804544.1 | E9: =SUM(E10:E12) -> 2857849986 | F9: CHMC
A10: 2.1 | B10: Chi phí xây dựng nhà tạm tại hiện trường để ở và điều hành thi công | C10: =C6*$G$10 -> 742298697.5 | D10: =D6*$G$10 -> 74229869.75 | E10: =E6*$G$10 -> 816528567.3 | F10: CNT | G10: ='CP HMC'!D7 -> 0.01
A11: 2.2 | B11: Chi phí một số công tác không xác định được khối lượng từ thiết kế | C11: =C6*$G$11 -> 1855746744 | D11: =D6*$G$11 -> 185574674.4 | E11: =E6*$G$11 -> 2041321418 | F11: CKKL | G11: ='CP HMC'!D8 -> 0.025
A12: 2.3 | B12: Các chi phí hạng mục chung khác | C12: =SUM(C13:C15) -> 0 | D12: =SUM(D13:D15) -> 0 | E12: =SUM(E13:E15) -> 0 | F12: CK
B13: Chi phí di chuyển thiết bị thi công và lực lượng lao động đến công trường
B14: Chi phí đảm bảo an toàn giao thông phục vụ thi công
B15: …
A16: 3 | B16: Chi phí dự phòng | E16: =SUM(E17:E18) -> 6169281590 | F16: GDP
B17: Chi phí dự phòng cho yếu tố khối lượng phát sinh | C17: =(C6+C9)*$G$17 -> 3841395760 | D17: =(D6+D9)*$G$17 -> 384139576 | E17: =(E6+E9)*$G$17 -> 4225535336 | G17: ='CP Du phong'!E63 -> 0.05
B18: Chi phí dự phòng cho yếu tố trượt giá | C18: =(C6+C9)*$G$18 -> 1767042049 | D18: =(D6+D9)*$G$18 -> 176704204.9 | E18: =(E6+E9)*$G$18 -> 1943746254 | G18: =IF('CP Du phong'!D98=0,0,'CP Du phong'!D98-'THDT goi thau XD'!G17) -> 0.023
B19: TỔNG CỘNG (1+2+3) | E19: =SUM(E6,E9,E16) -> 9.06799883e+10 | F19: GGTXD | G19: =SUM(G6:G6) -> 0
B21: ="(Bằng chữ: "&vnd(E19)&")" -> (Bằng chữ: Chín mươi tỷ sáu trăm bảy mươi chín triệu chín trăm tám mươi tám nghìn ba trăm linh năm đồng.)
A23: NGƯỜI LẬP | D23: NGƯỜI CHỦ TRÌ
D27: Chứng chỉ hành nghề định giá XD hạng …, số …

Sheet THCP xay dung
A1: BẢNG TỔNG HỢP DỰ TOÁN CHI PHÍ XÂY DỰNG
A2: =Bia!D42&Bia!E42 -> CÔNG TRÌNH: CÁC PHẦN MỀM QUẢN LÝ CHI PHÍ ĐTXD CT
A3: ="Hạng mục: "&'Du toan XD'!F9 -> Hạng mục: PHẦN MÓNG
E4: ĐVT: đồng
A5: STT | B5: KHOẢN MỤC CHI PHÍ | C5: CÁCH TÍNH | D5: GIÁ TRỊ | E5: KÝ HIỆU | F5: HS1 | G5: HS2
B6: CHI PHÍ THEO ĐƠN GIÁ
B7: Chi phí vật liệu | D7: ='Du toan XD'!M13+'Du toan XD'!N13 -> 24092110548 | E7: A
B8: Chênh lệch vật liệu | E8: CLVL
B9: Chi phí nhân công | D9: ='Du toan XD'!O13 -> 12476842191 | E9: B
B10: Chênh lệch nhân công | E10: CLNC
B11: Chi phí máy xây dựng | D11: ='Du toan XD'!P13 -> 1987011279 | E11: C
B12: Chênh lệch máy xây dựng | E12: CLM
A13: I | B13: CHI PHÍ TRỰC TIẾP
A14: 1 | B14: Chi phí vật liệu | C14: =IF(F14=0,"A+CLVL",IF(D8=0,"A*"&F14,"(A + CLVL) * "&F14)) -> A*1 | D14: =IF(F14=0,D7+D8,(D7+D8)*F14) -> 24092110548 | E14: VL | F14: =ROUND(Ts!$O$51,3) -> 1
A15: 2 | B15: Chi phí nhân công | C15: =IF(F15=0,"B+CLNC",IF($D$10<>0,IF(G15<>0,"B*"&F15&"*"&G15&"+CLNC","B*"&F15&"+CLNC"),IF(G15<>0,"B*"&F15&"*"&G15,"B*"&F15))) -> B*1 | D15: =PRODUCT(D9,F15:G15)+D10 -> 12476842191 | E15: NC | F15: =ROUND(Ts!$O$52,4) -> 1
A16: 3 | B16: Chi phí máy thi công | C16: =IF(F16=0,"C+CLM",IF($D$12<>0,IF(G16<>0,"C*"&F16&"*"&G16&"+CLM","C*"&F16&"+CLM"),IF(G16<>0,"C*"&F16&"*"&G16,"C*"&F16))) -> C*1 | D16: =PRODUCT(D11,F16:G16)+D12 -> 1987011279 | E16: M | F16: =ROUND(Ts!$O$53,4) -> 1
B17: Chi phí trực tiếp | C17: VL+NC+M | D17: =THCP_VL+THCP_NC+THCP_M -> 38555964018 | E17: T
A18: II | B18: CHI PHÍ CHUNG | C18: ="T*"&F18*100&"%" -> T*6,15158900155001% | D18: =THCP_T*TPCP_hsCPC -> 2371804442 | E18: C | F18: =Ts!$O$54 -> 0.06151589002
A19: III | B19: THU NHẬP CHỊU THUẾ TÍNH TRƯỚC | C19: ="(T+C)*"&F19*100&"%" -> (T+C)*5,5% | D19: =(THCP_T+THCP_C)*THCP_hsTL -> 2251027265 | E19: TL | F19: =Ts!$O$55 -> 0.055
B20: Chi phí xây dựng trước thuế | C20: T+C+TL | D20: =THCP_T+THCP_C+THCP_TL -> 4.317879573e+10 | E20: G
A21: IV | B21: THUẾ GIÁ TRỊ GIA TĂNG | C21: ="G*"&F21*100&"%" -> G*10% | D21: =THCP_G*THCP_hsGTGT -> 4317879573 | E21: GTGT | F21: =Ts!$O$56 -> 0.1
B22: Chi phí xây dựng sau thuế | C22: G+GTGT | D22: =THCP_G+THCP_GTGT -> 4.74966753e+10 | E22: GXD
B23: Chi phí dự phòng | C23: ="GXD*"&F23*100&"%" -> GXD*7,5555% | D23: =THCP_GXD*THCP_hsCPDP -> 3588611302 | E23: GDP | F23: ='CP Du phong'!$D$103 -> 0.075555
B24: GIÁ DỰ THẦU | C24: GXD+GDP | D24: =THCP_GXD+THCP_CPDP -> 5.10852866e+10 | E24: GGTXD
A26: BẢNG TỔNG HỢP DỰ TOÁN CHI PHÍ XÂY DỰNG
A27: ='Bia1'!D42&'Bia1'!E42 -> CÔNG TRÌNH: CÁC PHẦN MỀM QUẢN LÝ CHI PHÍ ĐTXD CT
A28: ="Hạng mục: "&'Du toan XD'!F14 -> Hạng mục: PHẦN THÂN
E29: ĐVT: đồng
A30: STT | B30: KHOẢN MỤC CHI PHÍ | C30: CÁCH TÍNH | D30: GIÁ TRỊ | E30: KÝ HIỆU | F30: HS1 | G30: HS2
B31: CHI PHÍ THEO ĐƠN GIÁ
B32: Chi phí vật liệu | D32: ='Du toan XD'!M38+'Du toan XD'!N38 -> 19625517252 | E32: A
B33: Chênh lệch vật liệu | E33: CLVL
B34: Chi phí nhân công | D34: ='Du toan XD'!O38 -> 5833706571 | E34: B
B35: Chênh lệch nhân công | E35: CLNC
B36: Chi phí máy xây dựng | D36: ='Du toan XD'!P38 -> 2267443233 | E36: C
B37: Chênh lệch máy xây dựng | E37: CLM
A38: I | B38: CHI PHÍ TRỰC TIẾP
A39: 1 | B39: Chi phí vật liệu | C39: =IF(F39=0,"A+CLVL",IF(D33=0,"A*"&F39,"(A + CLVL) * "&F39)) -> A*1 | D39: =IF(F39=0,D32+D33,(D32+D33)*F39) -> 19625517252 | E39: VL | F39: =ROUND(Ts!$O$51,3) -> 1
A40: 2 | B40: Chi phí nhân công | C40: =IF(F40=0,"B+CLNC",IF($D$10<>0,IF(G40<>0,"B*"&F40&"*"&G40&"+CLNC","B*"&F40&"+CLNC"),IF(G40<>0,"B*"&F40&"*"&G40,"B*"&F40))) -> B*1 | D40: =PRODUCT(D34,F40:G40)+D35 -> 5833706571 | E40: NC | F40: =ROUND(Ts!$O$52,4) -> 1
A41: 3 | B41: Chi phí máy thi công | C41: =IF(F41=0,"C+CLM",IF($D$12<>0,IF(G41<>0,"C*"&F41&"*"&G41&"+CLM","C*"&F41&"+CLM"),IF(G41<>0,"C*"&F41&"*"&G41,"C*"&F41))) -> C*1 | D41: =PRODUCT(D36,F41:G41)+D37 -> 2267443233 | E41: M | F41: =ROUND(Ts!$O$53,4) -> 1
B42: Chi phí trực tiếp | C42: VL+NC+M | D42: =D39+D40+D41 -> 27726667056 | E42: T
A43: II | B43: CHI PHÍ CHUNG | C43: ="T*"&F43*100&"%" -> T*6,15158900155001% | D43: =D42*F43 -> 1705630601 | E43: C | F43: =Ts!$O$54 -> 0.06151589002
A44: III | B44: THU NHẬP CHỊU THUẾ TÍNH TRƯỚC | C44: ="(T+C)*"&F44*100&"%" -> (T+C)*5,5% | D44: =(D42+D43)*F44 -> 1618776371 | E44: TL | F44: =Ts!$O$55 -> 0.055
B45: Chi phí xây dựng trước thuế | C45: T+C+TL | D45: =D42+D43+D44 -> 3.105107403e+10 | E45: G
A46: IV | B46: THUẾ GIÁ TRỊ GIA TĂNG | C46: ="G*"&F46*100&"%" -> G*10% | D46: =D45*F46 -> 3105107403 | E46: GTGT | F46: =Ts!$O$56 -> 0.1
B47: Chi phí xây dựng sau thuế | C47: G+GTGT | D47: =D45+D46 -> 3.415618143e+10 | E47: GXD
B48: Chi phí dự phòng | C48: ="GXD*"&F48*100&"%" -> GXD*7,5555% | D48: =D47*F48 -> 2580670288 | E48: GDP | F48: ='CP Du phong'!$D$103 -> 0.075555
B49: GIÁ DỰ THẦU | C49: GXD+GDP | D49: =D47+D48 -> 3.673685172e+10 | E49: GGTXD
B52: NGƯỜI LẬP | C52: NGƯỜI CHỦ TRÌ
C56: Chứng chỉ hành nghề định giá XD hạng …, số …

Sheet Don gia tong hop (hidden)
C1: BẢNG PHÂN TÍCH ĐƠN GIÁ XÂY DỰNG TỔNG HỢP
C2: ="Hạng mục công việc: "&H10 -> Hạng mục công việc: Công tác tổng hợp 1
C4: STT | D4: MÃ VỮA | E4: MH ĐỊNH MỨC | F4: MH ĐƠN GIÁ | G4: MSVT | H4: THÀNH PHẦN CÔNG VIỆC | I4: ĐƠN VỊ | J4: KHỐI LƯỢNG | K4: HAO PHÍ ĐỊNH MỨC | L4: GIÁ VẬT TƯ | M4: HỆ SỐ | N4: THẦN PHẦN CHI PHÍ | R4: TỔNG CỘNG | S4: CHI PHÍ CHUNG | T4: TN CT TÍNH TRƯỚC | U4: ĐƠN GIÁ XD TRƯỚC THUẾ | V4: THUẾ GTGT | W4: ĐƠN GIÁ XD SAU THUẾ | X4: CHI PHÍ DỰ PHÒNG | Y4: ĐƠN GIÁ THẦU
N5: Vật liệu | O5: Vật liệu phụ | P5: Nhân công | Q5: Máy
C6: [1] | D6: [1'] | E6: [1''] | F6: [2] | G6: [2'] | H6: [3] | I6: [4] | J6: [5] | K6: [6] | L6: [7] | M6: [8] | N6: [9] | O6: [9'] | P6: [10] | Q6: [11] | R6: [12] | S6: [13] | T6: [14] | U6: [15] | V6: [16] | W6: [17] | X6: [18] | Y6: [19]
H9: Cộng | J9: 1
F10: TH1 | H10: Công tác tổng hợp 1 | I10: ĐVT | U10: =SUM(R10:T10) -> 0 | W10: =SUM(U10:V10) -> 0 | Y10: =SUM(W10:X10) -> 0

Sheet Du toan XD
B1: BẢNG DỰ TOÁN CHI PHÍ XÂY DỰNG | Y1: >>>>>
B2: =Bia!D42&Bia!E42 -> CÔNG TRÌNH: CÁC PHẦN MỀM QUẢN LÝ CHI PHÍ ĐTXD CT
B3: =Bia!D43&Bia!E43 -> HẠNG MỤC: PHẦN MỀM DỰ TOÁN GXD 10
P4: ĐVT: đồng
A5: ID | B5: STT | C5: MÃ VỮA | D5: MÃ HIỆU ĐỊNH MỨC | E5: MÃ HIỆU ĐƠN GIÁ | F5: NỘI DUNG CÔNG VIỆC | G5: ĐƠN VỊ | H5: KHỐI LƯỢNG | I5: ĐƠN GIÁ | M5: THÀNH TIỀN | Q5: SỐ BỘ PHẬN GIỐNG NHAU | R5: KÍCH THƯỚC | U5: HỆ SỐ | V5: K.L MỘT BỘ PHẬN | W5: K.L TOÀN BỘ | X5: GHI CHÚ
I6: VẬT LIỆU | J6: VẬT LIỆU P | K6: NHÂN CÔNG | L6: MÁY | M6: VẬT LIỆU | N6: VẬT LIỆU P | O6: NHÂN CÔNG | P6: MÁY | R6: DÀI | S6: RỘNG | T6: CAO (SÂU)
B7: [1] | C7: [1a] | D7: [1b] | E7: [2] | F7: [3] | G7: [4] | H7: [5] | I7: [6] | J7: [6'] | K7: [7] | L7: [8] | M7: [9]=[5]*[6] | N7: [9']=[5]*[6'] | O7: [10]=[5]*[7] | P7: [11]=[5]*[8] | Q7: [5] | R7: [6] | S7: [6'] | T7: [7] | U7: [8] | V7: [9] | W7: [10] | X7: [11]
A9: HM1 | E9: HM | F9: PHẦN MÓNG
A10: 1 | B10: 1 | C10: C2125 | D10: AG.11110 | E10: AG.11115 | F10: Sản xuất cấu kiện bê tông đúc sẵn, bê tông cọc, cột, vữa bê tông đá 1x2 mác 300 | G10: m³ | H10: 9999 | I10: 1172016 | K10: 364395 | L10: 73946 | M10: =H10*I10 -> 11718987984 | N10: =H10*J10 -> 0 | O10: =H10*K10 -> 3643585605 | P10: =H10*L10 -> 739386054 | AF10: Các công việc và khối lượng trong bảng dự toán này là giả định
A11: 2 | B11: 2 | C11: C2123 | D11: AG.11210 | E11: AG.11213 | F11: Sản xuất cấu kiện bê tông đúc sẵn, bê tông xà dầm, vữa bê tông đá 1x2 mác 200 | G11: m³ | H11: 9999 | I11: 647498 | K11: 383246 | L11: 73946 | M11: =H11*I11 -> 6474332502 | N11: =H11*J11 -> 0 | O11: =H11*K11 -> 3832076754 | P11: =H11*L11 -> 739386054
A12: 3 | B12: 3 | C12: C2122 | D12: AG.11310 | E12: AG.11312 | F12: Sản xuất cấu kiện bê tông đúc sẵn, bê tông panen 3 mặt, vữa bê tông đá 1x2 mác 150 | G12: m³ | H12: 9999 | I12: 589938 | K12: 500168 | L12: 50829 | M12: =H12*I12 -> 5898790062 | N12: =H12*J12 -> 0 | O12: =H12*K12 -> 5001179832 | P12: =H12*L12 -> 508239171
E13: TC | F13: ="Cộng: "&F9 -> Cộng: PHẦN MÓNG | M13: =SUM(M9:M12) -> 24092110548 | N13: =SUM(N9:N12) -> 0 | O13: =SUM(O9:O12) -> 12476842191 | P13: =SUM(P9:P12) -> 1987011279
A14: HM2 | E14: HM | F14: PHẦN THÂN
A15: 4 | B15: 1 | C15: C2223 | D15: AF.21210 | E15: AF.21213 | F15: Bê tông sản xuất qua dây chuyền trạm trộn tại hiện trường hoặc vữa bê tông thương phẩm từ các cơ sở sản xuất tập trung và đổ bằng cần cẩu, chiều rộng móng ≤250cm, bê tông móng, vữa bê tông đá 1x2 mác 200 | G15: m³ | H15: 9999 | I15: 671356 | K15: 177219 | L15: 75589 | M15: =H15*I15 -> 6712888644 | N15: =H15*J15 -> 0 | O15: =H15*K15 -> 1772012781 | P15: =H15*L15 -> 755814411
A16: 5 | B16: 2 | C16: C2223 | D16: AF.21220 | E16: AF.21223 | F16: Bê tông sản xuất qua dây chuyền trạm trộn tại hiện trường hoặc vữa bê tông thương phẩm từ các cơ sở sản xuất tập trung và đổ bằng cần cẩu, chiều rộng móng >250cm, bê tông móng, vữa bê tông đá 1x2 mác 200 | G16: m³ | H16: 9999 | I16: 705824 | K16: 228991 | L16: 75589 | M16: =H16*I16 -> 7057534176 | N16: =H16*J16 -> 0 | O16: =H16*K16 -> 2289681009 | P16: =H16*L16 -> 755814411
A17: 6 | B17: 3 | C17: C2232 | D17: AF.21210 | E17: AF.21232 | F17: Bê tông sản xuất qua dây chuyền trạm trộn tại hiện trường hoặc vữa bê tông thương phẩm từ các cơ sở sản xuất tập trung và đổ bằng cần cẩu, chiều rộng móng ≤250cm, bê tông móng, vữa bê tông đá 2x4 mác 150 | G17: m³ | H17: 9999 | I17: 585568 | K17: 177219 | L17: 75589 | M17: =H17*I17 -> 5855094432 | N17: =H17*J17 -> 0 | O17: =H17*K17 -> 1772012781 | P17: =H17*L17 -> 755814411
E38: TC | F38: ="Cộng: "&F14 -> Cộng: PHẦN THÂN | M38: =SUM(M14:M37) -> 19625517252 | N38: =SUM(N14:N37) -> 0 | O38: =SUM(O14:O37) -> 5833706571 | P38: =SUM(P14:P37) -> 2267443233
E39: TC | F39: Tổng cộng | M39: =M13+M38 -> 43717627800 | N39: =N13+N38 -> 0 | O39: =O13+O38 -> 18310548762 | P39: =P13+P38 -> 4254454512
M40: A | N40: Ap | O40: B | P40: C
Q41: (ký tên) | V41: (ký tên)
V44: Chứng chỉ KS định giá XD hạng ..., số …
Q46: Thủ trưởng đơn vị thực hiện đo bóc khối lượng
Q47: (ký tên và đóng dấu)

Sheet Don gia XD
B1: BẢNG PHÂN TÍCH ĐƠN GIÁ CHI TIẾT
B2: =Bia!D42&Bia!E42 -> CÔNG TRÌNH: CÁC PHẦN MỀM QUẢN LÝ CHI PHÍ ĐTXD CT
B3: =Bia!D43&Bia!E43 -> HẠNG MỤC: PHẦN MỀM DỰ TOÁN GXD 10
M4: ĐVT: đồng
A5: ID | B5: STT | C5: MÃ VỮA | D5: MÃ HIỆU ĐỊNH MỨC | E5: MÃ HIỆU ĐƠN GIÁ | F5: MSVT | G5: TÊN CÔNG VIỆC / THÀNH PHẦN HAO PHÍ | H5: ĐƠN VỊ | I5: KHỐI LƯỢNG | J5: ĐỊNH MỨC HAO PHÍ | K5: ĐƠN GIÁ | L5: HỆ SỐ | M5: THÀNH TIỀN | N5: HAO PHÍ | O5: HAO PHÍ KHÁC | P5: ĐGVL | Q5: ĐGVLP | R5: ĐGNC | S5: ĐGM
B6: [1] | E6: [2] | F6: [3] | G6: [4] | H6: [5] | I6: [6] | J6: [7] | K6: [8] | L6: [9] | M6: [10] | N6: [11] | O6: [12]
A7: ='Du toan XD'!A9 -> HM1 | B7: ='Du toan XD'!E9 -> HM | G7: ='Du toan XD'!F9 -> PHẦN MÓNG
A8: ='Du toan XD'!A10 -> 1 | B8: ='Du toan XD'!B10 -> 1 | C8: C2125 | D8: AG.11110 | E8: AG.11115 | G8: ='Du toan XD'!F10 -> Sản xuất cấu kiện bê tông đúc sẵn, bê tông cọc, cột, vữa bê tông đá 1x2 mác 300 | H8: ='Du toan XD'!G10 -> m³ | I8: ='Du toan XD'!H10 -> 9999 | P8: =M9 -> 1172015.579 | R8: =M12 -> 364395.09 | S8: =M14 -> 73946.4495
G9: Vật liệu | J9: =Config!C36 -> 1 | M9: =SUM(M10:M11)*J9 -> 1172015.579
C10: C2125 | F10: C2125 | G10: Vữa bê tông M300, XM PC30, cát vàng, đá 1x2, độ sụt 2 - 4cm | H10: m3 | J10: 1.015 | K10: 1148950.4 | M10: =IF(L10=0,J10*K10,J10*K10*L10) -> 1166184.656 | N10: =IF(L10=0,I8*J10,I8*J10*L10) -> 10148.985 | O10: =J11%*N10 -> 50.744925
F11: V19999 | G11: Vật liệu khác | H11: % | J11: 0.5 | M11: =SUM(M10:M10)*J11% -> 5830.92328 | O11: =J11%*N11 -> 0
G12: Nhân công | J12: =Config!C37 -> 1 | M12: =SUM(M13:M13)*J12 -> 364395.09 | O12: =J11%*N12 -> 0
F13: N1307 | G13: Nhân công 3,0/7 (nhóm 1) | H13: công | J13: 1.83 | K13: 199123 | M13: =IF(L13=0,J13*K13,J13*K13*L13) -> 364395.09 | N13: =IF(L13=0,I8*J13,I8*J13*L13) -> 18298.17 | O13: =J11%*N13 -> 91.49085
G14: Máy thi công | J14: =Config!C38 -> 1 | M14: =SUM(M15:M17)*J14 -> 73946.4495 | O14: =J11%*N14 -> 0
F15: M0313 | G15: Máy trộn bê tông 250l | H15: ca | J15: 0.095 | K15: 270051 | M15: =IF(L15=0,J15*K15,J15*K15*L15) -> 25654.845 | N15: =IF(L15=0,I8*J15,I8*J15*L15) -> 949.905 | O15: =J17%*N15 -> 94.9905
F16: M0355 | G16: Đầm dùi 1,5Kw | H16: ca | J16: 0.18 | K16: 230940 | M16: =IF(L16=0,J16*K16,J16*K16*L16) -> 41569.2 | N16: =IF(L16=0,I8*J16,I8*J16*L16) -> 1799.82 | O16: =J17%*N16 -> 179.982
A17: TC | F17: M9999 | G17: Máy khác | H17: % | J17: 10 | M17: =SUM(M15:M16)*J17% -> 6722.4045
A18: ='Du toan XD'!A11 -> 2 | B18: ='Du toan XD'!B11 -> 2 | C18: C2123 | D18: AG.11210 | E18: AG.11213 | G18: ='Du toan XD'!F11 -> Sản xuất cấu kiện bê tông đúc sẵn, bê tông xà dầm, vữa bê tông đá 1x2 mác 200 | H18: ='Du toan XD'!G11 -> m³ | I18: ='Du toan XD'!H11 -> 9999 | P18: =M19 -> 647498.2167 | R18: =M22 -> 383245.71 | S18: =M24 -> 73946.4495
G19: Vật liệu | J19: =Config!C36 -> 1 | M19: =SUM(M20:M21)*J19 -> 647498.2167
C20: C2123 | F20: C2123 | G20: Vữa bê tông M200, XM PC30, cát vàng, đá 1x2, độ sụt 2 - 4cm | H20: m3 | J20: 1.015 | K20: 634755.5 | M20: =IF(L20=0,J20*K20,J20*K20*L20) -> 644276.8325 | N20: =IF(L20=0,I18*J20,I18*J20*L20) -> 10148.985 | O20: =J21%*N20 -> 50.744925
F21: V19999 | G21: Vật liệu khác | H21: % | J21: 0.5 | M21: =SUM(M20:M20)*J21% -> 3221.384162 | O21: =J21%*N21 -> 0
G22: Nhân công | J22: =Config!C37 -> 1 | M22: =SUM(M23:M23)*J22 -> 383245.71 | O22: =J21%*N22 -> 0
F23: N1357 | G23: Nhân công 3,5/7 (nhóm 1) | H23: công | J23: 1.77 | K23: 216523 | M23: =IF(L23=0,J23*K23,J23*K23*L23) -> 383245.71 | N23: =IF(L23=0,I18*J23,I18*J23*L23) -> 17698.23 | O23: =J21%*N23 -> 88.49115
G24: Máy thi công | J24: =Config!C38 -> 1 | M24: =SUM(M25:M27)*J24 -> 73946.4495
F25: M0313 | G25: Máy trộn bê tông 250l | H25: ca | J25: 0.095 | K25: 270051 | M25: =IF(L25=0,J25*K25,J25*K25*L25) -> 25654.845 | N25: =IF(L25=0,I18*J25,I18*J25*L25) -> 949.905 | O25: =J27%*N25 -> 94.9905
F26: M0355 | G26: Đầm dùi 1,5Kw | H26: ca | J26: 0.18 | K26: 230940 | M26: =IF(L26=0,J26*K26,J26*K26*L26) -> 41569.2 | N26: =IF(L26=0,I18*J26,I18*J26*L26) -> 1799.82 | O26: =J27%*N26 -> 179.982
A27: TC | F27: M9999 | G27: Máy khác | H27: % | J27: 10 | M27: =SUM(M25:M26)*J27% -> 6722.4045
A28: ='Du toan XD'!A12 -> 3 | B28: ='Du toan XD'!B12 -> 3 | C28: C2122 | D28: AG.11310 | E28: AG.11312 | G28: ='Du toan XD'!F12 -> Sản xuất cấu kiện bê tông đúc sẵn, bê tông panen 3 mặt, vữa bê tông đá 1x2 mác 150 | H28: ='Du toan XD'!G12 -> m³ | I28: ='Du toan XD'!H12 -> 9999 | P28: =M29 -> 589938.4446 | R28: =M32 -> 500168.13 | S28: =M34 -> 50829.3555
G29: Vật liệu | J29: =Config!C36 -> 1 | M29: =SUM(M30:M31)*J29 -> 589938.4446
C30: C2122 | F30: C2122 | G30: Vữa bê tông M150, XM PC30, cát vàng, đá 1x2, độ sụt 2 - 4cm | H30: m3 | J30: 1.015 | K30: 578328.5 | M30: =IF(L30=0,J30*K30,J30*K30*L30) -> 587003.4275 | N30: =IF(L30=0,I28*J30,I28*J30*L30) -> 10148.985 | O30: =J31%*N30 -> 50.744925
F31: V19999 | G31: Vật liệu khác | H31: % | J31: 0.5 | M31: =SUM(M30:M30)*J31% -> 2935.017137 | O31: =J31%*N31 -> 0
G32: Nhân công | J32: =Config!C37 -> 1 | M32: =SUM(M33:M33)*J32 -> 500168.13 | O32: =J31%*N32 -> 0
F33: N1357 | G33: Nhân công 3,5/7 (nhóm 1) | H33: công | J33: 2.31 | K33: 216523 | M33: =IF(L33=0,J33*K33,J33*K33*L33) -> 500168.13 | N33: =IF(L33=0,I28*J33,I28*J33*L33) -> 23097.69 | O33: =J31%*N33 -> 115.48845
G34: Máy thi công | J34: =Config!C38 -> 1 | M34: =SUM(M35:M37)*J34 -> 50829.3555
F35: M0313 | G35: Máy trộn bê tông 250l | H35: ca | J35: 0.095 | K35: 270051 | M35: =IF(L35=0,J35*K35,J35*K35*L35) -> 25654.845 | N35: =IF(L35=0,I28*J35,I28*J35*L35) -> 949.905 | O35: =J37%*N35 -> 94.9905
F36: M0355 | G36: Đầm dùi 1,5Kw | H36: ca | J36: 0.089 | K36: 230940 | M36: =IF(L36=0,J36*K36,J36*K36*L36) -> 20553.66 | N36: =IF(L36=0,I28*J36,I28*J36*L36) -> 889.911 | O36: =J37%*N36 -> 88.9911
A37: TC | F37: M9999 | G37: Máy khác | H37: % | J37: 10 | M37: =SUM(M35:M36)*J37% -> 4620.8505
A38: ='Du toan XD'!A14 -> HM2 | B38: ='Du toan XD'!E14 -> HM | G38: ='Du toan XD'!F14 -> PHẦN THÂN
A39: ='Du toan XD'!A15 -> 4 | B39: ='Du toan XD'!B15 -> 1 | C39: C2223 | D39: AF.21210 | E39: AF.21213 | G39: ='Du toan XD'!F15 -> Bê tông sản xuất qua dây chuyền trạm trộn tại hiện trường hoặc vữa bê tông thương phẩm từ các cơ sở sản xuất tập trung và đổ bằng cần cẩu, chiều rộng móng ≤250cm, bê tông móng, vữa bê tông đá 1x2 mác 200 | H39: ='Du toan XD'!G15 -> m³ | I39: ='Du toan XD'!H15 -> 9999 | P39: =M40 -> 671356.0016 | R39: =M43 -> 177219.47 | S39: =M45 -> 75589.11
G40: Vật liệu | J40: =Config!C36 -> 1 | M40: =SUM(M41:M42)*J40 -> 671356.0016
C41: C2223 | F41: C2223 | G41: Vữa bê tông M200, XM PC30, cát vàng, đá 1x2, độ sụt 6 - 8cm | H41: m3 | J41: 1.025 | K41: 648496.5 | M41: =IF(L41=0,J41*K41,J41*K41*L41) -> 664708.9125 | N41: =IF(L41=0,I39*J41,I39*J41*L41) -> 10248.975 | O41: =J42%*N41 -> 102.48975
F42: V19999 | G42: Vật liệu khác | H42: % | J42: 1 | M42: =SUM(M41:M41)*J42% -> 6647.089125 | O42: =J42%*N42 -> 0
G43: Nhân công | J43: =Config!C37 -> 1 | M43: =SUM(M44:M44)*J43 -> 177219.47 | O43: =J42%*N43 -> 0
F44: N1307 | G44: Nhân công 3,0/7 (nhóm 1) | H44: công | J44: 0.89 | K44: 199123 | M44: =IF(L44=0,J44*K44,J44*K44*L44) -> 177219.47 | N44: =IF(L44=0,I39*J44,I39*J44*L44) -> 8899.11 | O44: =J42%*N44 -> 88.9911
G45: Máy thi công | J45: =Config!C38 -> 1 | M45: =SUM(M46:M47)*J45 -> 75589.11
F46: M0224 | G46: Cần trục bánh xích 10 tấn | H46: ca | J46: 0.03 | K46: 1834515 | M46: =IF(L46=0,J46*K46,J46*K46*L46) -> 55035.45 | N46: =IF(L46=0,I39*J46,I39*J46*L46) -> 299.97
A47: TC | F47: M0355 | G47: Đầm dùi 1,5Kw | H47: ca | J47: 0.089 | K47: 230940 | M47: =IF(L47=0,J47*K47,J47*K47*L47) -> 20553.66 | N47: =IF(L47=0,I39*J47,I39*J47*L47) -> 889.911
A48: ='Du toan XD'!A16 -> 5 | B48: ='Du toan XD'!B16 -> 2 | C48: C2223 | D48: AF.21220 | E48: AF.21223 | G48: ='Du toan XD'!F16 -> Bê tông sản xuất qua dây chuyền trạm trộn tại hiện trường hoặc vữa bê tông thương phẩm từ các cơ sở sản xuất tập trung và đổ bằng cần cẩu, chiều rộng móng >250cm, bê tông móng, vữa bê tông đá 1x2 mác 200 | H48: ='Du toan XD'!G16 -> m³ | I48: ='Du toan XD'!H16 -> 9999 | P48: =M49 -> 705824.2716 | R48: =M55 -> 228991.45 | S48: =M57 -> 75589.11
G49: Vật liệu | J49: =Config!C36 -> 1 | M49: =SUM(M50:M54)*J49 -> 705824.2716
C50: C2223 | F50: C2223 | G50: Vữa bê tông M200, XM PC30, cát vàng, đá 1x2, độ sụt 6 - 8cm | H50: m3 | J50: 1.025 | K50: 648496.5 | M50: =IF(L50=0,J50*K50,J50*K50*L50) -> 664708.9125 | N50: =IF(L50=0,I48*J50,I48*J50*L50) -> 10248.975 | O50: =J54%*N50 -> 102.48975
F51: V10449 | G51: Gỗ ván cầu công tác | H51: m³ | J51: 0.015 | K51: 2000000 | M51: =IF(L51=0,J51*K51,J51*K51*L51) -> 30000 | N51: =IF(L51=0,I48*J51,I48*J51*L51) -> 149.985 | O51: =J54%*N51 -> 1.49985
F52: V10329 | G52: Đinh | H52: kg | J52: 0.122 | K52: 19000 | M52: =IF(L52=0,J52*K52,J52*K52*L52) -> 2318 | N52: =IF(L52=0,I48*J52,I48*J52*L52) -> 1219.878 | O52: =J54%*N52 -> 12.19878
F53: V10334 | G53: Đinh đỉa | H53: cái | J53: 0.603 | K53: 3000 | M53: =IF(L53=0,J53*K53,J53*K53*L53) -> 1809 | N53: =IF(L53=0,I48*J53,I48*J53*L53) -> 6029.397 | O53: =J54%*N53 -> 60.29397
F54: V19999 | G54: Vật liệu khác | H54: % | J54: 1 | M54: =SUM(M50:M53)*J54% -> 6988.359125 | O54: =J54%*N54 -> 0
G55: Nhân công | J55: =Config!C37 -> 1 | M55: =SUM(M56:M56)*J55 -> 228991.45 | O55: =J54%*N55 -> 0
F56: N1307 | G56: Nhân công 3,0/7 (nhóm 1) | H56: công | J56: 1.15 | K56: 199123 | M56: =IF(L56=0,J56*K56,J56*K56*L56) -> 228991.45 | N56: =IF(L56=0,I48*J56,I48*J56*L56) -> 11498.85 | O56: =J54%*N56 -> 114.9885
G57: Máy thi công | J57: =Config!C38 -> 1 | M57: =SUM(M58:M59)*J57 -> 75589.11
F58: M0224 | G58: Cần trục bánh xích 10 tấn | H58: ca | J58: 0.03 | K58: 1834515 | M58: =IF(L58=0,J58*K58,J58*K58*L58) -> 55035.45 | N58: =IF(L58=0,I48*J58,I48*J58*L58) -> 299.97
A59: TC | F59: M0355 | G59: Đầm dùi 1,5Kw | H59: ca | J59: 0.089 | K59: 230940 | M59: =IF(L59=0,J59*K59,J59*K59*L59) -> 20553.66 | N59: =IF(L59=0,I48*J59,I48*J59*L59) -> 889.911
A60: ='Du toan XD'!A17 -> 6 | B60: ='Du toan XD'!B17 -> 3 | C60: C2232 | D60: AF.21210 | E60: AF.21232 | G60: ='Du toan XD'!F17 -> Bê tông sản xuất qua dây chuyền trạm trộn tại hiện trường hoặc vữa bê tông thương phẩm từ các cơ sở sản xuất tập trung và đổ bằng cần cẩu, chiều rộng móng ≤250cm, bê tông móng, vữa bê tông đá 2x4 mác 150 | H60: ='Du toan XD'!G17 -> m³ | I60: ='Du toan XD'!H17 -> 9999 | P60: =M61 -> 585567.9399 | R60: =M64 -> 177219.47 | S60: =M66 -> 75589.11
G61: Vật liệu | J61: =Config!C36 -> 1 | M61: =SUM(M62:M63)*J61 -> 585567.9399
C62: C2232 | F62: C2232 | G62: Vữa bê tông M150, XM PC30, cát vàng, đá 2x4, độ sụt 6 - 8cm | H62: m3 | J62: 1.025 | K62: 565629.5 | M62: =IF(L62=0,J62*K62,J62*K62*L62) -> 579770.2375 | N62: =IF(L62=0,I60*J62,I60*J62*L62) -> 10248.975 | O62: =J63%*N62 -> 102.48975
F63: V19999 | G63: Vật liệu khác | H63: % | J63: 1 | M63: =SUM(M62:M62)*J63% -> 5797.702375 | O63: =J63%*N63 -> 0
G64: Nhân công | J64: =Config!C37 -> 1 | M64: =SUM(M65:M65)*J64 -> 177219.47 | O64: =J63%*N64 -> 0
F65: N1307 | G65: Nhân công 3,0/7 (nhóm 1) | H65: công | J65: 0.89 | K65: 199123 | M65: =IF(L65=0,J65*K65,J65*K65*L65) -> 177219.47 | N65: =IF(L65=0,I60*J65,I60*J65*L65) -> 8899.11 | O65: =J63%*N65 -> 88.9911
G66: Máy thi công | J66: =Config!C38 -> 1 | M66: =SUM(M67:M68)*J66 -> 75589.11
F67: M0224 | G67: Cần trục bánh xích 10 tấn | H67: ca | J67: 0.03 | K67: 1834515 | M67: =IF(L67=0,J67*K67,J67*K67*L67) -> 55035.45 | N67: =IF(L67=0,I60*J67,I60*J67*L67) -> 299.97
A68: TC | F68: M0355 | G68: Đầm dùi 1,5Kw | H68: ca | J68: 0.089 | K68: 230940 | M68: =IF(L68=0,J68*K68,J68*K68*L68) -> 20553.66 | N68: =IF(L68=0,I60*J68,I60*J68*L68) -> 889.911

Sheet TH vat tu XD
A1: BẢNG TỔNG HỢP VÀ TÍNH CHÊNH LỆCH VẬT TƯ XÂY DỰNG
A2: =Bia!D42&Bia!E42 -> CÔNG TRÌNH: CÁC PHẦN MỀM QUẢN LÝ CHI PHÍ ĐTXD CT
A3: =Bia!D43&Bia!E43 -> HẠNG MỤC: PHẦN MỀM DỰ TOÁN GXD 10
I4: ĐVT: đồng | J4: ĐVT: đồng
A5: STT | B5: MSVT | C5: TÊN VẬT TƯ | D5: ĐƠN VỊ | E5: KHỐI LƯỢNG | F5: GIÁ VẬT TƯ GỐC | G5: GIÁ VẬT TƯ TẠI THỜI ĐIỂM LẬP DỰ TOÁN | H5: CHÊNH LỆCH | I5: THÀNH TIỀN | J5: THÀNH TIỀN | K5: TỶ TRỌNG VẬT TƯ TRONG VL, NC, MTC | L5: TỶ TRỌNG TRONG CP TRỰC TIẾP | M5: NGUỒN | N5: KL vật tư khác | O5: Chênh lệch vật tư khác | P5: Thành tiền vật tư khác
A6: [1] | B6: [2] | C6: [3] | D6: [4] | E6: [5] | F6: [6] | G6: [7] | H6: [8]=[7]-[6] | I6: [9]=[5]*[8] | J6: [7]=[5]*[6] | K6: [8] | L6: [9] | M6: [10] | N6: [11] | O6: [12] | P6: [13]

Sheet Thong ke thep
B1: BẢNG THỐNG KÊ CỐT THÉP | Q1: ĐK (mm) | R1: 6 | S1: 8 | T1: 10 | U1: 12 | V1: 14 | W1: 16 | X1: 18 | Y1: 20 | Z1: 22 | AA1: 24 | AB1: 26 | AC1: 26 | AD1: 28 | AE1: 30 | AF1: 32
B2: =Bia!D42&Bia!E42 -> CÔNG TRÌNH: CÁC PHẦN MỀM QUẢN LÝ CHI PHÍ ĐTXD CT | Q2: TL (kg/m) | R2: =ROUND(PI()*(R1/1000)^2/4*1*$R$3,3) -> 0.222 | S2: 0.395 | T2: 0.617 | U2: 0.888 | V2: 1.208 | W2: 1.578 | X2: 1.998 | Y2: 2.466 | Z2: 2.984 | AA2: 3.551 | AB2: 4.168 | AC2: 4.168 | AD2: 4.834 | AE2: 5.549 | AF2: =ROUND(PI()*(AF1/1000)^2/4*1*$R$3,3) -> 6.313
B3: =Bia!D43&Bia!E43 -> HẠNG MỤC: PHẦN MỀM DỰ TOÁN GXD 10 | R3: 7850 | S3: kg/m3
B5: CẤU KIỆN | C5: Số hiệu thanh | D5: HÌNH DẠNG - KÍCH THƯỚC | G5: Số lượng mối nối | H5: Chiều dài mối nối | I5: Đ.kính Φ (mm) | J5: Số cấu kiện | K5: 1 cấu kiện | M5: Toàn bộ | O5: Tổng trọng lượng (kg)
K6: Số thanh | L6: Chiều dài (m) | M6: Số thanh | N6: Chiều dài (m)
B8: M1 | C8: 1 | I8: 6 | J8: 4 | K8: 4 | L8: =(D8+E8+F8+G8*H8)/1000 -> 0 | M8: =J8*K8 -> 16 | N8: =L8*M8 -> 0 | O8: =ROUND(HLOOKUP(I8,$R$1:$AW$2,2,0)*N8,0) -> 0
C9: 2 | I9: 18 | J9: =J8 -> 4 | K9: 4 | L9: =(D9+E9+F9+G9*H9)/1000 -> 0 | M9: =J9*K9 -> 16 | N9: =L9*M9 -> 0 | O9: =ROUND(HLOOKUP(I9,$R$1:$AW$2,2,0)*N9,0) -> 0
C10: 3 | I10: 22 | J10: =J9 -> 4 | K10: 2 | L10: =(D10+E10+F10+G10*H10)/1000 -> 0 | M10: =J10*K10 -> 8 | N10: =L10*M10 -> 0 | O10: =ROUND(HLOOKUP(I10,$R$1:$AW$2,2,0)*N10,0) -> 0
C11: …
I12: 10 | O12: =SUMIF(I8:I11,"<11",O8:O11) -> 0
E13: Tổng cộng | I13: 18 | O13: =SUM(O8:O11)-O12-O14 -> 0
I14: 18 | O14: =SUMIF(I8:I11,">18",O8:O11) -> 0

Sheet Gia vua XD (hidden)
A1: BẢNG GIÁ VỮA THI CÔNG XÂY DỰNG
A2: =Bia!D42&Bia!E42 -> CÔNG TRÌNH: CÁC PHẦN MỀM QUẢN LÝ CHI PHÍ ĐTXD CT
A3: =Bia!D43&Bia!E43 -> HẠNG MỤC: PHẦN MỀM DỰ TOÁN GXD 10
H4: ĐVT: đồng
A5: STT | B5: MÃ VỮA | C5: MSVT | D5: LOẠI VẬT LIỆU | E5: ĐƠN VỊ | F5: ĐỊNH MỨC | G5: ĐƠN GIÁ | H5: THÀNH TIỀN
A6: [1] | B6: [2] | C6: [3] | D6: [4] | E6: [5] | F6: [6] | G6: [7] | H6: [8]=[6]*[7]

Sheet Gia vat lieu HTXD (hidden)
A1: BẢNG TÍNH GIÁ VẬT LIỆU ĐẾN HIỆN TRƯỜNG XÂY DỰNG
A2: =Bia!D42&Bia!E42 -> CÔNG TRÌNH: CÁC PHẦN MỀM QUẢN LÝ CHI PHÍ ĐTXD CT
A3: =Bia!D43&Bia!E43 -> HẠNG MỤC: PHẦN MỀM DỰ TOÁN GXD 10
A4: Bốc xếp, vận chuyển nội bộ lấy NC nhóm 1, bậc 3/7: | F4: =_Nii3 -> 0 | G4: đồng/ công | AD4: ĐVT: đồng
A5: STT | B5: MSVT | C5: LOẠI VẬT LIỆU | D5: ĐƠN VỊ | E5: TRỌNG LƯỢNG ĐƠN VỊ | F5: NGUỒN MUA | G5: PHƯƠNG TIỆN VẬN CHUYỂN | H5: GIÁ VẬT LIỆU TẠI NGUỒN CUNG CẤP | I5: LOẠI ĐƯỜNG | J5: CỰ LY (Km) | K5: GIÁ CƯỚC | L5: HỆ SỐ BẬC HÀNG | M5: HỆ SỐ ĐỔ BEN | N5: CHI PHÍ TRUNG CHUYỂN (nếu có) | R5: CP HAO HỤT VẬN CHUYỂN | T5: CHI PHÍ LƯU THÔNG KHÁC (nếu có) | U5: GIÁ VẬT LIỆU ĐẾN CÔNG TRÌNH | V5: CP BỐC XẾP (nếu có) | X5: CP VẬN CHUYỂN NỘI BỘ CT (nếu có) | AB5: CP HAO HỤT BẢO QUẢN | AD5: GIÁ VẬT LiỆU ĐẾN HIỆN TRƯỜNG CÔNG TRÌNH
B6: MÃ HIỆU | N6: Định mức bốc xếp | O6: Thành tiền bốc xếp | P6: Định mức hao hụt | Q6: Thành tiền | R6: Định mức hao hụt | S6: Thành tiền | V6: Định mức bốc xếp | W6: Thành tiền bốc xếp | X6: ĐMVC 10 m khởi điểm | Y6: Cự ly vận chuyển nội bộ công trình | Z6: ĐMVC 10 m tiếp theo | AA6: Chi phí VC trong nội bộ công trình | AB6: Định mức hao hụt bảo quản tại hiện trường | AC6: Thành tiền
A7: [1] | B7: [2] | C7: [3] | D7: [4] | E7: [5] | F7: [6] | G7: [7] | H7: [8] | I7: [8] | J7: [9] | K7: [10] | L7: [11] | M7: [12] | N7: [13] | O7: [14] | P7: [15] | Q7: [16] | R7: [17] | S7: [18] | T7: [19] | U7: [20] | V7: [21] | W7: [22] | X7: [23] | Y7: [24] | Z7: [25] | AA7: [26] | AB7: [27] | AC7: [28] | AD7: [29]

Sheet Nhan cong XD (hidden)
A1: BẢNG ĐƠN GIÁ NHÂN CÔNG XÂY DỰNG
A2: =Bia!D42&Bia!E42 -> CÔNG TRÌNH: CÁC PHẦN MỀM QUẢN LÝ CHI PHÍ ĐTXD CT
A4: - Mức lương tối thiểu chung (LTTC): | F4: =LTTC -> 1050000 | G4: đồng/tháng
A5: - Mức lương tối thiểu vùng (LTTV): | F5: =LTTV -> 2000000 | G5: đồng/tháng
A6: - Các khoản phụ cấp theo LTT:
B7: Phụ cấp lưu động: | D7: =PC_LD*100&"%*LTTC" -> 20%*LTTC | F7: =LTTC*PC_LD -> 210000 | G7: đồng/tháng
B8: Phụ cấp khu vực: | D8: =PC_KV*100&"%*LTTC" -> 0%*LTTC | F8: =LTTC*PC_KV -> 0 | G8: đồng/tháng
B9: Phụ cấp độc hại: | D9: =PC_DH*100&"%*LTTC" -> 0%*LTTC | F9: =LTTC*PC_DH -> 0 | G9: đồng/tháng
B10: Tổng các phụ cấp theo LTT: | F10: =SUM(F7:F9) -> 210000 | G10: đồng/tháng
A11: - Mức lương đầu vào sử dụng để xác định đơn giá nhân công (LNC): | N11: =LNC_dauvao -> 0
A13: STT | B13: MSVT | C13: LOẠI NHÂN CÔNG | D13: CẤP BẬC | E13: HỆ SỐ LƯƠNG HCB | F13: LƯƠNG CẤP BẬC LCB (đ/tháng) | G13: TỔNG CÁC KHOẢN PHỤ CẤP THEO LTT | H13: CÁC KHOẢN PHỤC CẤP THEO LƯƠNG CB | N13: ĐƠN GIÁ NHÂN CÔNG GNC (đ/công)
H14: Lương phụ | I14: Khoán trực tiếp | J14: Không ổn định SX | K14: Thu hút | L14: Đặc biệt | M14: Ca đêm
A15: [1] | B15: [2] | C15: [3] | D15: [4] | E15: [5] | F15: =IF(CF_TDNCXD=0,"[6]= [5] x LNC","[6]= [5] x LTTV") -> [6]= [5] x LNC | G15: [7] | H15: [8] | I15: [9] | J15: [10] | K15: [11] | L15: [12] | M15: [13] | N15: =IF(CF_TDNCXD=0,"[7]=[6]/ 26","[14]=(LCB+P)/26") -> [7]=[6]/ 26

Sheet Gia ca may XD (hidden)
A1: BẢNG GIÁ CA MÁY VÀ THIẾT BỊ THI CÔNG XÂY DỰNG | AL1: Xăng (đ/lít) | AM1: Diezel (đ/lít) | AN1: Điện (đ/kw)
A2: =Bia!D42&Bia!E42 -> CÔNG TRÌNH: CÁC PHẦN MỀM QUẢN LÝ CHI PHÍ ĐTXD CT | AK2: GNL gốc: | AL2: 19909 | AM2: 19545 | AN2: 1622.01
A3: =Bia!D43&Bia!E43 -> HẠNG MỤC: PHẦN MỀM DỰ TOÁN GXD 10 | AK3: GNL hiện tại: | AL3: =xang -> 19909 | AM3: =diezel -> 19545 | AN3: =dien -> 1622.01
V4: ĐVT: đồng/ca | AJ4: ĐVT: đồng/ca | AK4: GNL chênh lệch: | AL4: =AL3-AL2 -> 0 | AM4: =AM3-AM2 -> 0 | AN4: =AN3-AN2 -> 0
A5: STT | B5: MSVT | C5: LOẠI MÁY, THIẾT BỊ | D5: SỐ CA/ NĂM | E5: HAO PHÍ CA MÁY | F5: ĐỊNH MỨC KHẤU HAO, SỬA CHỮA, CHI PHÍ KHÁC / NĂM (%/GIÁ TÍNH KH) | J5: ĐỊNH MỨC TIÊU HAO NHIÊN LIỆU, NĂNG LƯỢNG 1 CA (CNL) | L5: HỆ SỐ NHIÊN LIỆU PHỤ | M5: TỔNG HAO PHÍ NHIÊN LIỆU | N5: CHÊNH LỆCH CHI PHÍ MTC DO CHÊNH LỆCH GIÁ NLNL | O5: THÀNH PHẦN CẤP BẬC THỢ ĐIỀU KHIỂN MÁY | P5: NGUYÊN GIÁ (GIÁ TÍNH KHẤU HAO) | Q5: CHI PHÍ KHẤU HAO (CKH) | R5: CHI PHÍ SỬA CHỮA (CSC) | S5: CHI PHÍ NHIÊN LIỆU, NĂNG LƯỢNG (CNL) | T5: CHI PHÍ TIỀN LƯƠNG (CTL) | U5: CHI PHÍ KHÁC (CCPK) | V5: GIÁ CA MÁY (CCM) | W5: CHI PHÍ TRONG GCM TẠI THỜI ĐIỂM GỐC | Z5: CHI PHÍ NHIÊN LIỆU, NĂNG LƯỢNG TẠI THỜI ĐIỂM GỐC | AA5: CHI PHÍ TIỀN LƯƠNG TẠI THỜI ĐIỂM GỐC | AB5: NGUYÊN GIÁ (GIÁ TÍNH KHẤU HAO) TẠI THỜI ĐIỂM GỐC | AC5: NGUYÊN GIÁ (GIÁ TÍNH KHẤU HAO) TẠI THỜI ĐIỂM ĐIỀU CHỈNH | AD5: GIÁ CA MÁY GỐC | AE5: CHI PHÍ NHIỀN LIỆU, NĂNG LƯỢNG TẠI THỜI ĐIỂM ĐIỀU CHỈNH | AF5: CHI PHÍ TIỀN LƯƠNG TẠI THỜI ĐIỂM ĐIỀU CHỈNH | AG5: HỆ SỐ ĐIỀU CHỈNH NGUYÊN GIÁ (K1) | AH5: HỆ SỐ ĐIỀU CHỈNH CHI PHÍ NHIÊN LIỆU, NĂNG LƯỢNG (K2) | AI5: HỆ SỐ ĐIỀU CHỈNH CHI PHÍ TIỀN LƯƠNG (K3) | AJ5: GIÁ CA MÁY ĐIỀU CHỈNH (CCMĐC)
F6: Khấu hao | G6: Hệ số thu hồi khi thanh lý | H6: Sửa chữa | I6: CP # | W6: CP khấu hao | X6: CP sửa chữa | Y6: CP khác
A7: [1] | B7: [2] | C7: [3] | D7: [4] | F7: [5] | G7: [6] | H7: [7] | I7: [8] | J7: [9] | L7: [10] | O7: [11] | P7: [12] | Q7: [13] | R7: [14] | S7: [15] | T7: [16] | U7: [17] | V7: [18] | W7: [6] | X7: [7] | Y7: [8] | Z7: [9] | AA7: [10] | AB7: [11] | AC7: [12] | AD7: [12] | AE7: [13] | AF7: [14] | AG7: [15] | AH7: [16] | AI7: [17] | AJ7: [18]

Sheet Du thau XD (hidden)
A1: BẢNG DỰ TOÁN DỰ THẦU THI CÔNG XÂY DỰNG
A2: =Bia!D42&Bia!E42 -> CÔNG TRÌNH: CÁC PHẦN MỀM QUẢN LÝ CHI PHÍ ĐTXD CT
A3: =Bia!D43&Bia!E43 -> HẠNG MỤC: PHẦN MỀM DỰ TOÁN GXD 10
A5: STT | B5: MÃ HIỆU | C5: NỘI DUNG CÔNG VIỆC | D5: ĐƠN VỊ | E5: KHỐI LƯỢNG | F5: ĐƠN GIÁ | G5: THÀNH TIỀN | H5: ĐGVL | I5: ĐGVLP | J5: ĐGNC | K5: ĐGM | L5: TT | M5: T | N5: C | O5: TL | P5: G | Q5: GTGT | R5: GXDNT | S5: GXD
A6: [1] | B6: [2] | C6: [3] | D6: [4] | E6: [5] | F6: [6] | G6: [7]=[5]*[6]

Sheet Bia2 (hidden)
A2: CÔNG TY CP GIÁ XÂY DỰNG | F2: CỘNG HÒA XÃ HỘI CHỦ NGHĨA VIỆT NAM
A3: WWW.GIAXAYDUNG.VN | F3: Độc lập - Tự do - Hạnh phúc
A5: Số : ……./……….
A9: DỰ TOÁN CHI PHÍ THIẾT BỊ
D11: DỰ ÁN: | E11: =Bia!E11 -> HỆ THỐNG PHẦN MỀM CHUYÊN NGÀNH XÂY DỰNG - GXD
D12: CÔNG TRÌNH: | E12: =UPPER(Ts!K6) -> CÁC PHẦN MỀM QUẢN LÝ CHI PHÍ ĐTXD CT
D13: ĐỊA ĐIỂM: | E13: =UPPER(Ts!K10) -> SỐ 2A/55 NGUYỄN NGỌC NẠI, THANH XUÂN, HÀ NỘI
D14: CHỦ ĐẦU TƯ: | E14: =UPPER(Ts!K12) -> CÔNG TY CỔ PHẦN GIÁ XÂY DỰNG
D16: Giá trị dự toán: | E16: ='THCP thiet bi'!F13 -> 0 | I16: đồng
D17: ="(Bằng chữ: "&vnd(E16)&")" -> (Bằng chữ: đồng.)
H20: Hà Nội, | I20: ngày | J20: =NOW() -> 2016-04-11T17:22:51.280 | K20: tháng | L20: =NOW() -> 2016-04-11T17:22:51.280 | M20: năm | N20: =NOW() -> 2016-04-11T17:22:51.280
I21: GIÁM ĐỐC
I27: NGUYỄN THÀNH CÔNG
A30: CÔNG TY CP GIÁ XÂY DỰNG | F30: CỘNG HOÀ XÃ HỘI CHỦ NGHĨA VIỆT NAM
A31: WWW.GIAXAYDUNG.VN | F31: Độc lập - Tự do - Hạnh phúc
A39: DỰ TOÁN LẮP ĐẶT THIẾT BỊ
A40: Số : ……./…….
D42: CÔNG TRÌNH: | E42: =IF(Ts!K6="","",UPPER(Ts!K6)) -> CÁC PHẦN MỀM QUẢN LÝ CHI PHÍ ĐTXD CT
D43: HẠNG MỤC: | E43: =IF(Ts!K8="","",UPPER(Ts!K8)) -> PHẦN MỀM DỰ TOÁN GXD 10
D44: ĐỊA ĐIỂM: | E44: =UPPER(Ts!K10) -> SỐ 2A/55 NGUYỄN NGỌC NẠI, THANH XUÂN, HÀ NỘI
D45: CHỦ ĐẦU TƯ: | E45: =UPPER(Ts!K12) -> CÔNG TY CỔ PHẦN GIÁ XÂY DỰNG

Sheet THDT goi thau TB (hidden)
A1: BẢNG DỰ TOÁN GÓI THẦU MUA SẮM VẬT TƯ, THIẾT BỊ LẮP ĐẶT VÀO CÔNG TRÌNH
A2: =Bia!D42&Bia!E42 -> CÔNG TRÌNH: CÁC PHẦN MỀM QUẢN LÝ CHI PHÍ ĐTXD CT
E3: ĐVT: đồng
A4: STT | B4: HẠNG MỤC | C4: GIÁ TRỊ TRƯỚC THUẾ | D4: THUẾ GTGT | E4: GIÁ TRỊ SAU THUẾ | F4: KÝ HIỆU | G4: ĐMTL
A5: [1] | B5: [2] | C5: [3] | D5: [4] | E5: [5] | F5: [6]
A6: 1 | B6: Chi phí mua sắm thiết bị | C6: ='CP mua sam TB'!G12 -> 0 | D6: ='CP mua sam TB'!H12 -> 0 | E6: ='CP mua sam TB'!I12 -> 0
A7: 2 | B7: Chi phí đào tạo và chuyển giao công nghệ | C7: ='CP dao tao'!F22 -> 0 | D7: ='CP dao tao'!G22 -> 0 | E7: ='CP dao tao'!H22 -> 0
A8: 3 | B8: Chi phí lắp đặt, thí nghiệm, hiệu chỉnh | C8: =THLD_G -> 0 | D8: =THLD_GTGT -> 0 | E8: =THLD_GLD -> 0
A9: 4 | B9: Chi phí hạng mục chung | C9: =SUM(C10:C12) -> 0 | D9: =SUM(D10:D12) -> 0 | E9: =SUM(E10:E12) -> 0 | F9: CHMC
A10: 4.1 | B10: Chi phí xây dựng nhà tạm tại hiện trường để ở và điều hành thi công | C10: =C8*$G$10 -> 0 | D10: =D8*$G$10 -> 0 | E10: =E8*$G$10 -> 0 | F10: CNT | G10: ='CP HMC'!D20 -> 0.01
A11: 4.2 | B11: Chi phí một số công tác không xác định được khối lượng từ thiết kế | C11: =C8*$G$11 -> 0 | D11: =D8*$G$11 -> 0 | E11: =E8*$G$11 -> 0 | F11: CKKL | G11: ='CP HMC'!D21 -> 0.025
A12: 4.3 | B12: Các chi phí hạng mục chung khác | C12: =SUM(C13:C15) -> 0 | D12: =SUM(D13:D15) -> 0 | E12: =SUM(E13:E15) -> 0 | F12: CK
B13: Chi phí di chuyển thiết bị thi công và lực lượng lao động đến công trường
B14: Chi phí đảm bảo an toàn giao thông phục vụ thi công
B15: …
A16: 5 | B16: Chi phí dự phòng | C16: =SUM(C17:C18) -> 0 | D16: =SUM(D17:D18) -> 0 | E16: =SUM(E17:E18) -> 0 | F16: GDPTB
B17: Chi phí dự phòng cho yếu tố khối lượng phát sinh | C17: =SUM(C6:C8,C9)*$G$17 -> 0 | D17: =SUM(D6:D8,D9)*$G$17 -> 0 | E17: =SUM(E6:E8,E9)*$G$17 -> 0 | F17: GDPTB1 | G17: ='CP Du phong'!E114 -> 0.05
B18: Chi phí dự phòng cho yếu tố trượt giá | C18: =SUM(C6:C8,C9)*$G$18 -> 0 | D18: =SUM(D6:D8,D9)*$G$18 -> 0 | E18: =SUM(E6:E8,E9)*$G$18 -> 0 | F18: GDPTB2 | G18: =IF('CP Du phong'!D149=0,0,'CP Du phong'!D149-'THDT goi thau TB'!G17) -> 0
B19: TỔNG CỘNG (1+2+3+4+5) | E19: =SUM(E6,E7,E8,E9,E16) -> 0 | F19: GGTTB | G19: =SUM(G6:G6) -> 0
B21: ="(Bằng chữ: "&vnd(E19)&")" -> (Bằng chữ: đồng.)
A23: NGƯỜI LẬP | D23: NGƯỜI CHỦ TRÌ
D27: Chứng chỉ hành nghề định giá XD hạng …, số …

Sheet THCP thiet bi (hidden)
A1: BẢNG TỔNG HỢP DỰ TOÁN CHI PHÍ THIẾT BỊ
A2: =Bia!D42&Bia!E42 -> CÔNG TRÌNH: CÁC PHẦN MỀM QUẢN LÝ CHI PHÍ ĐTXD CT
A3: ='Bia2'!D43&'Bia2'!E43 -> HẠNG MỤC: PHẦN MỀM DỰ TOÁN GXD 10
F4: ĐVT: đồng
A5: STT | B5: TÊN THIẾT BỊ HAY NHÓM THIẾT BỊ | C5: CÁCH TÍNH | D5: CHI PHÍ TRƯỚC THUẾ | E5: THUẾ GTGT | F5: CHI PHÍ SAU THUẾ
A7: 1 | B7: Chi phí mua sắm thiết bị (Gmstb) | C7: bảng tính | D7: ='CP mua sam TB'!G12 -> 0 | E7: ='CP mua sam TB'!H12 -> 0 | F7: ='CP mua sam TB'!I12 -> 0
A8: 2 | B8: Chi phí đào tạo và chuyển giao công nghệ (Gdtcg) | C8: bảng tính | D8: ='CP dao tao'!F22 -> 0 | E8: ='CP dao tao'!G22 -> 0 | F8: ='CP dao tao'!H22 -> 0
A9: 3 | B9: Chi phí lắp đặt, thí nghiệm, hiệu chỉnh (Gld) | D9: =THLD_G -> 0 | E9: =THLD_GTGT -> 0 | F9: =THLD_GLD -> 0
A10: 4 | B10: Chi phí khác có liên quan | C10: bảng tính
B12: Tổng cộng: | C12: (1)+(2)+...+(5) | D12: =D7+D8+D9+D10 -> 0 | E12: =E7+E8+E9+E10 -> 0 | F12: =F7+F8+F9+F10 -> 0
B13: LÀM TRÒN (GTB) | D13: =ROUND(D12,-3) -> 0 | E13: =ROUND(E12,-3) -> 0 | F13: =SUM(D13:E13) -> 0
B15: NGƯỜI LẬP | C15: NGƯỜI CHỦ TRÌ
C19: Chứng chỉ hành nghề định giá XD hạng …, số …

Sheet CP mua sam TB (hidden)
B1: BẢNG DỰ TOÁN CHI PHÍ MUA SẮM THIẾT BỊ
B2: =Bia!D42&Bia!E42 -> CÔNG TRÌNH: CÁC PHẦN MỀM QUẢN LÝ CHI PHÍ ĐTXD CT
B3: ='Bia2'!D43&'Bia2'!E43 -> HẠNG MỤC: PHẦN MỀM DỰ TOÁN GXD 10
I4: ĐVT: đồng
A5: Tra thiết bị | B5: STT | C5: TÊN THIẾT BỊ HAY NHÓM THIẾT BỊ | D5: ĐƠN VỊ TÍNH | E5: KHỐI LƯỢNG | F5: ĐƠN GIÁ TRƯỚC THUẾ | G5: THÀNH TIỀN TRƯỚC THUẾ | H5: THUẾ GTGT | I5: THÀNH TIỀN SAU THUẾ | J5: THUẾ SUẤT | K5: CHỦNG LOẠI | L5: XUẤT XỨ | M5: NHÀ SẢN XUẤT | N5: NHÀ CUNG CẤP | O5: NGUỒN | P5: GHI CHÚ
J6: 0.1
G7: =E7*F7 -> 0 | H7: =G7*J7 -> 0 | I7: =G7+H7 -> 0 | J7: 0.1
G8: =E8*F8 -> 0 | H8: =G8*J8 -> 0 | I8: =G8+H8 -> 0 | J8: 0.1
G9: =E9*F9 -> 0 | H9: =G9*J9 -> 0 | I9: =G9+H9 -> 0 | J9: 0.1
G10: =E10*F10 -> 0 | H10: =G10*J10 -> 0 | I10: =G10+H10 -> 0 | J10: 0.1
C11: Cộng chi phí mua sắm thiết bị (Gmstb) | G11: =SUM(G6:G10) -> 0 | H11: =SUM(H6:H10) -> 0 | I11: =SUM(I6:I10) -> 0
C12: LÀM TRÒN (GTB) | G12: =ROUND(G11,-3) -> 0 | H12: =ROUND(H11,-3) -> 0 | I12: =SUM(G12:H12) -> 0
C14: NGƯỜI LẬP | E14: NGƯỜI CHỦ TRÌ
E18: Chứng chỉ KS định giá XD hạng …, số …

Sheet CP dao tao (hidden)
A1: BẢNG TỔNG HỢP CHI PHÍ ĐÀO TẠO CHUYỂN GIAO CÔNG NGHỆ
A2: =Bia!D42&Bia!E42 -> CÔNG TRÌNH: CÁC PHẦN MỀM QUẢN LÝ CHI PHÍ ĐTXD CT
A3: ='Bia2'!D43&'Bia2'!E43 -> HẠNG MỤC: PHẦN MỀM DỰ TOÁN GXD 10
H4: ĐVT: đồng
A5: STT | B5: NỘI DUNG CHI PHÍ | C5: ĐVT | D5: KHỐI LƯỢNG | E5: ĐƠN GIÁ TRƯỚC THUẾ | F5: CHI PHÍ TRƯỚC THUẾ | G5: THUẾ GTGT | H5: CHI PHÍ SAU THUẾ | I5: THUẾ SUẤT
A7: I | B7: Chi phí trực tiếp | F7: =SUM(F8,F12,F13:F16) -> 0 | G7: =SUM(G8,G12,G13:G16) -> 0 | H7: =SUM(H8,H12,H13:H16) -> 0
A8: 1 | B8: Chi phí đi lại | F8: =SUM(F9:F11) -> 0 | G8: =SUM(G9:G11) -> 0 | H8: =SUM(H9:H11) -> 0
B9: - Taxi | F9: =D9*E9 -> 0 | G9: =F9*I9 -> 0 | H9: =F9+G9 -> 0 | I9: 0.1
B10: - Máy bay | F10: =D10*E10 -> 0 | G10: 0 | H10: 0 | I10: 0.1
B11: - Tàu | F11: 0 | G11: 0 | H11: 0 | I11: 0.1
A12: 2 | B12: Chi phí ăn, ở | F12: 0 | G12: 0 | H12: 0 | I12: 0.1
A13: 3 | B13: Chi phí đào tạo | F13: 0 | G13: 0 | H13: 0 | I13: 0
A14: 4 | B14: Chi phí tài liệu học tập | F14: 0 | G14: 0 | H14: 0 | I14: 0.1
A15: 5 | B15: Chi phí chuyên gia giảng dạy | F15: 0 | G15: 0 | H15: 0 | I15: 0.1
B16: ... | G16: 0 | H16: 0 | I16: 0.1
A17: II | B17: Chi phí khác | F17: 0 | G17: 0 | H17: 0 | I17: 0.1
A18: III | B18: Chi phí chung, chi phí quản lý | F18: 0 | G18: 0 | H18: 0 | I18: 0.1
A19: IV | B19: Chi phí dự phòng | F19: 0 | G19: 0 | H19: 0 | I19: 0.1
B21: Tổng cộng [I + II + ... + III]: | F21: =F7+F17+F18+F19 -> 0 | G21: =G7+G17+G18+G19 -> 0 | H21: =H7+H17+H18+H19 -> 0
B22: LÀM TRÒN (Gdtcg): | F22: =ROUND(F21,-3) -> 0 | G22: =ROUND(G21,-3) -> 0 | H22: =ROUND(H21,-3) -> 0

Sheet THCP Lap dat (hidden)
A1: BẢNG TỔNG HỢP DỰ TOÁN CHI PHÍ LẮP ĐẶT THIẾT BỊ
A2: =Bia!D42&Bia!E42 -> CÔNG TRÌNH: CÁC PHẦN MỀM QUẢN LÝ CHI PHÍ ĐTXD CT
A3: ='Bia2'!D43&'Bia2'!E43 -> HẠNG MỤC: PHẦN MỀM DỰ TOÁN GXD 10
E4: ĐVT: đồng
A5: STT | B5: KHOẢN MỤC CHI PHÍ | C5: CÁCH TÍNH | D5: GIÁ TRỊ | E5: KÝ HIỆU | F5: HS1 | G5: HS2
B6: CHI PHÍ THEO ĐƠN GIÁ
B7: Chi phí vật liệu | D7: ='Du toan LD'!M30+'Du toan LD'!N30 -> 0 | E7: A
B8: Chênh lệch vật liệu | E8: CLVL
B9: Chi phí nhân công | D9: ='Du toan LD'!O30 -> 0 | E9: B
B10: Chênh lệch nhân công | E10: CLNC
B11: Chi phí máy xây dựng | D11: ='Du toan LD'!P30 -> 0 | E11: C
B12: Chênh lệch máy xây dựng | E12: CLM
A13: I | B13: CHI PHÍ TRỰC TIẾP
A14: 1 | B14: Chi phí vật liệu | C14: =CPVLgld -> A*1 | D14: =IF(F14=0,D7+D8,(D7+D8)*F14) -> 0 | E14: VL | F14: =ROUND(Ts!$O$51,3) -> 1
A15: 2 | B15: Chi phí nhân công | C15: =CPNCgld -> B*1 | D15: =PRODUCT(D9,F15:G15)+D10 -> 0 | E15: NC | F15: =ROUND(Ts!$O$52,4) -> 1
A16: 3 | B16: Chi phí máy thi công | C16: =CPMTCgld -> C*1 | D16: =PRODUCT(D11,F16:G16)+D12 -> 0 | E16: M | F16: =ROUND(Ts!$O$53,4) -> 1
B17: Chi phí trực tiếp | C17: VL+NC+M | D17: =THLD_VL+THLD_NC+THLD_M -> 0 | E17: T
A18: II | B18: CHI PHÍ CHUNG | C18: ="T*"&F18*100&"%" -> T*6,15158900155001% | D18: =THLD_T*TPLD_hsCPC -> 0 | E18: C | F18: =Ts!$O$54 -> 0.06151589002
A19: III | B19: THU NHẬP CHỊU THUẾ TÍNH TRƯỚC | C19: ="(T+C)*"&F19*100&"%" -> (T+C)*5,5% | D19: =(THLD_T+THLD_C)*THLD_hsTL -> 0 | E19: TL | F19: =Ts!$O$55 -> 0.055
B20: Chi phí lắp đặt thiết bị trước thuế | C20: T+C+TL | D20: =THLD_T+THLD_C+THLD_TL -> 0 | E20: G
A21: IV | B21: THUẾ GIÁ TRỊ GIA TĂNG | C21: ="G*"&F21*100&"%" -> G*10% | D21: =THLD_G*THLD_hsGTGT -> 0 | E21: GTGT | F21: =Ts!$O$56 -> 0.1
B22: Chi phí lắp đặt thiết bị sau thuế | C22: G+GTGT | D22: =THLD_G+THLD_GTGT -> 0 | E22: GLD
B23: Chi phí dự phòng | C23: ="GLD*"&F23*100&"%" -> GLD*0% | D23: =THLD_GLD*THLD_hsCPDP -> 0 | E23: GDP | F23: ='CP Du phong'!D$149 -> 0
B24: GIÁ DỰ THẦU | C24: GLD+GDP | D24: =THLD_GLD+THLD_CPDP -> 0 | E24: GGTLD
B27: NGƯỜI LẬP | C27: NGƯỜI CHỦ TRÌ
C31: Chứng chỉ hành nghề định giá XD hạng …, số …

Sheet Du toan LD (hidden)
B1: BẢNG DỰ TOÁN CHI PHÍ LẮP ĐẶT THIẾT BỊ | Y1: >>>>>
B2: =Bia!D42&Bia!E42 -> CÔNG TRÌNH: CÁC PHẦN MỀM QUẢN LÝ CHI PHÍ ĐTXD CT
B3: ='Bia2'!D43&'Bia2'!E43 -> HẠNG MỤC: PHẦN MỀM DỰ TOÁN GXD 10
P4: ĐVT: đồng
A5: ID | B5: STT | C5: MÃ VỮA | D5: MÃ HIỆU ĐỊNH MỨC | E5: MÃ HIỆU ĐƠN GIÁ | F5: NỘI DUNG CÔNG VIỆC | G5: ĐƠN VỊ | H5: KHỐI LƯỢNG | I5: ĐƠN GIÁ | M5: THÀNH TIỀN | Q5: SỐ BỘ PHẬN GIỐNG NHAU | R5: KÍCH THƯỚC | U5: HỆ SỐ | V5: K.L MỘT BỘ PHẬN | W5: K.L TOÀN BỘ PHẬN | X5: GHI CHÚ
I6: VẬT LIỆU | J6: VẬT LIỆU P | K6: NHÂN CÔNG | L6: MÁY | M6: VẬT LIỆU | N6: VẬT LIỆU P | O6: NHÂN CÔNG | P6: MÁY | R6: DÀI | S6: RỘNG | T6: CAO (sâu)
A7: [1] | B7: [1] | C7: [1a] | D7: [1b] | E7: [2] | F7: [3] | G7: [4] | H7: [5] | I7: [6] | J7: [6'] | K7: [7] | L7: [8] | M7: [9]=[5]*[6] | N7: [9']=[5]*[6'] | O7: [10]=[5]*[7] | P7: [11]=[5]*[8] | Q7: [5] | R7: [6] | S7: [6'] | T7: [7] | U7: [8] | V7: [9] | W7: [10] | X7: [11]
E30: TC | F30: Tổng cộng | M30: =SUM(M8:M29) -> 0 | N30: =SUM(N8:N29) -> 0 | O30: =SUM(O8:O29) -> 0 | P30: =SUM(P8:X29) -> 0
M31: A | N31: Ap | O31: B | P31: C

Sheet Don gia LD (hidden)
B1: BẢNG PHÂN TÍCH ĐƠN GIÁ CHI TIẾT LẮP ĐẶT THIẾT BỊ
B2: =Bia!D42&Bia!E42 -> CÔNG TRÌNH: CÁC PHẦN MỀM QUẢN LÝ CHI PHÍ ĐTXD CT
B3: ='Bia2'!D43&'Bia2'!E43 -> HẠNG MỤC: PHẦN MỀM DỰ TOÁN GXD 10
M4: ĐVT: đồng
A5: ID | B5: STT | C5: MÃ VỮA | D5: MÃ HiỆU ĐỊNH MỨC | E5: MÃ HIỆU ĐƠN GIÁ | F5: MSVT | G5: TÊN CÔNG VIỆC / THÀNH PHẦN HAO PHÍ | H5: ĐƠN VỊ | I5: KHỐI LƯỢNG | J5: ĐỊNH MỨC HAO PHÍ | K5: ĐƠN GIÁ | L5: HỆ SỐ | M5: THÀNH TIỀN | N5: HAO PHÍ | O5: HAO PHÍ KHÁC | P5: ĐGVL | Q5: ĐGVLP | R5: ĐGNC | S5: ĐGM
B6: [1] | E6: [2] | F6: [3] | G6: [4] | H6: [5] | I6: [6] | J6: [7] | K6: [8] | L6: [9] | M6: [10] | N6: [11] | O6: [12]

Sheet TH vat tu LD (hidden)
A1: BẢNG TỔNG HỢP VÀ TÍNH CHÊNH LỆCH VẬT TƯ LẮP ĐẶT THIẾT BỊ
A2: =Bia!D42&Bia!E42 -> CÔNG TRÌNH: CÁC PHẦN MỀM QUẢN LÝ CHI PHÍ ĐTXD CT
A3: ='Bia2'!D43&'Bia2'!E43 -> HẠNG MỤC: PHẦN MỀM DỰ TOÁN GXD 10
I4: ĐVT: đồng
A5: STT | B5: MSVT | C5: TÊN VẬT TƯ | D5: ĐƠN VỊ | E5: KHỐI LƯỢNG | F5: GIÁ VẬT TƯ GỐC | G5: GIÁ VẬT TƯ TẠI THỜI ĐIỂM LẬP DỰ TOÁN | H5: CHÊNH LỆCH | I5: THÀNH TIỀN | J5: THÀNH TIỀN | K5: NGUỒN | L5: KL vật tư khác | M5: Chênh lệch vật tư khác | N5: Thành tiền vật tư khác
A6: [1] | B6: [2] | C6: [3] | D6: [4] | E6: [5] | F6: [6] | G6: [7] | H6: [8]=[7]-[6] | I6: [9]=[5]*[8] | J6: [7]=[5]*[6] | K6: [10] | L6: [11] | M6: [12] | N6: [10]

Sheet Gia vua LD (hidden)
A1: BẢNG GIÁ VỮA LẮP ĐẶT THIẾT BỊ
A2: =Bia!D42&Bia!E42 -> CÔNG TRÌNH: CÁC PHẦN MỀM QUẢN LÝ CHI PHÍ ĐTXD CT
A3: ='Bia2'!D43&'Bia2'!E43 -> HẠNG MỤC: PHẦN MỀM DỰ TOÁN GXD 10
H4: ĐVT: đồng
A5: STT | B5: MÃ VỮA | C5: MSVT | D5: LOẠI VẬT LIỆU | E5: ĐƠN VỊ | F5: ĐỊNH MỨC | G5: ĐƠN GIÁ | H5: THÀNH TIỀN
A6: [1] | B6: [2] | C6: [3] | D6: [4] | E6: [5] | F6: [6] | G6: [7] | H6: [8]=[6]*[7]

Sheet Gia vat lieu HTLD (hidden)
A1: BẢNG TÍNH GIÁ VẬT LIỆU ĐẾN HIỆN TRƯỜNG LẮP ĐẶT THIẾT BỊ
A2: =Bia!D42&Bia!E42 -> CÔNG TRÌNH: CÁC PHẦN MỀM QUẢN LÝ CHI PHÍ ĐTXD CT
A3: ='Bia2'!D43&'Bia2'!E43 -> HẠNG MỤC: PHẦN MỀM DỰ TOÁN GXD 10
A4: Bốc xếp, vận chuyển nội bộ lấy NC nhóm 1, bậc 3/7: | G4: =_Nii3 -> 0 | H4: đồng | AD4: ĐVT: đồng
A5: STT | B5: MSVT | C5: LOẠI VẬT LIỆU | D5: ĐƠN VỊ | E5: TRỌNG LƯỢNG ĐƠN VỊ | F5: NGUỒN MUA | G5: PHƯƠNG TIỆN VẬN CHUYỂN | H5: GIÁ VẬT LIỆU TẠI NGUỒN CUNG CẤP | I5: LOẠI ĐƯỜNG | J5: CỰ LY (Km) | K5: GIÁ CƯỚC | L5: HỆ SỐ BẬC HÀNG | M5: HỆ SỐ ĐỔ BEN | N5: CHI PHÍ TRUNG CHUYỂN (nếu có) | R5: CP HAO HỤT VẬN CHUYỂN | T5: CHI PHÍ LƯU THÔNG KHÁC (nếu có) | U5: GIÁ VẬT LIỆU ĐẾN CHÂN CÔNG TRÌNH | V5: CP BỐC XẾP (nếu có) | X5: CP VẬN CHUYỂN NỘI BỘ CT (nếu có) | AB5: CP HAO HỤT BẢO QUẢN | AD5: GIÁ VẬT LiỆU ĐẾN HIỆN TRƯỜNG CÔNG TRÌNH
B6: MÃ HIỆU | N6: Định mức bốc xếp | O6: Thành tiền bốc xếp | P6: Định mức hao hụt | Q6: Thành tiền | R6: Định mức hao hụt | S6: Thành tiền | V6: Định mức bốc xếp | W6: Thành tiền bốc xếp | X6: ĐMVC 10 m khởi điểm | Y6: Cự ly vận chuyển nội bộ công trình | Z6: ĐMVC 10 m tiếp theo | AA6: Chi phí VC trong nội bộ công trình | AB6: Định mức hao hụt bảo quản tại hiện trường | AC6: Thành tiền | AG6: `
A7: [1] | B7: [2] | C7: [3] | D7: [4] | E7: [5] | F7: [6] | G7: [7] | H7: [8] | I7: [8] | J7: [9] | K7: [10] | L7: [11] | M7: [12] | N7: [13] | O7: [14] | P7: [15] | Q7: [16] | R7: [17] | S7: [18] | T7: [19] | U7: [20] | V7: [21] | W7: [22] | X7: [23] | Y7: [24] | Z7: [25] | AA7: [26] | AB7: [27] | AC7: [28] | AD7: [29]

Sheet Nhan cong LD (hidden)
A1: BẢNG ĐƠN GIÁ NHÂN CÔNG LẮP ĐẶT THIẾT BỊ
A2: =Bia!D42&Bia!E42 -> CÔNG TRÌNH: CÁC PHẦN MỀM QUẢN LÝ CHI PHÍ ĐTXD CT
A4: - Mức lương tối thiểu chung (LTTC): | F4: =LTTC -> 1050000 | G4: đồng/tháng
A5: - Mức lương tối thiểu vùng (LTTV): | F5: =LTTV -> 2000000 | G5: đồng/tháng
A6: - Các khoản phụ cấp theo LTT:
B7: Phụ cấp lưu động: | D7: =PC_LD*100&"%*LTTC" -> 20%*LTTC | F7: =LTTC*PC_LD -> 210000 | G7: đồng/tháng
B8: Phụ cấp khu vực: | D8: =PC_KV*100&"%*LTTC" -> 0%*LTTC | F8: =LTTC*PC_KV -> 0 | G8: đồng/tháng
B9: Phụ cấp độc hại: | D9: =PC_DH*100&"%*LTTC" -> 0%*LTTC | F9: =LTTC*PC_DH -> 0 | G9: đồng/tháng
B10: Tổng các phụ cấp theo LTT: | F10: =SUM(F7:F9) -> 210000 | G10: đồng/tháng
A11: - Mức lương đầu vào sử dụng để xác định đơn giá nhân công (LNC): | N11: =LNC_dauvao -> 0
A13: STT | B13: MSVT | C13: LOẠI NHÂN CÔNG | D13: CẤP BẬC | E13: HỆ SỐ LƯƠNG HCB | F13: LƯƠNG CẤP BẬC LCB (đ/tháng) | G13: TỔNG CÁC KHOẢN PHỤ CẤP THEO LTT | H13: CÁC KHOẢN PHỤ CẤP THEO LƯƠNG CB | N13: ĐƠN GIÁ NHÂN CÔNG GNC (đ/công)
H14: Lương phụ | I14: Khoán trực tiếp | J14: Không ổn định SX | K14: Thu hút | L14: Đặc biệt | M14: Ca đêm
A15: [1] | B15: [2] | C15: [3] | D15: [4] | E15: [5] | F15: =IF(CF_TDNCXD=0,"[6]= [5] x LNC","[6]= [5] x LTTV") -> [6]= [5] x LNC | G15: [7] | H15: [8] | I15: [9] | J15: [10] | K15: [11] | L15: [12] | M15: [13] | N15: =IF(CF_TDNCXD=0,"[7]=[6]/ 26","[14]=(LCB+P)/26") -> [7]=[6]/ 26

Sheet Gia ca may LD (hidden)
A1: BẢNG GIÁ CA MÁY VÀ THIẾT BỊ THI CÔNG LẮP ĐẶT THIẾT BỊ | AL1: Xăng (đ/lít) | AM1: Diezel (đ/lít) | AN1: Điện (đ/kw)
A2: =Bia!D42&Bia!E42 -> CÔNG TRÌNH: CÁC PHẦN MỀM QUẢN LÝ CHI PHÍ ĐTXD CT | AK2: GNC gốc: | AL2: 19909 | AM2: 19545 | AN2: 1622.01
A3: ='Bia2'!D43&'Bia2'!E43 -> HẠNG MỤC: PHẦN MỀM DỰ TOÁN GXD 10 | AK3: GNL hiện tại: | AL3: =xang -> 19909 | AM3: =diezel -> 19545 | AN3: =dien -> 1622.01
V4: ĐVT: đồng | AK4: GNL chênh lệch: | AL4: =AL3-AL2 -> 0 | AM4: =AM3-AM2 -> 0 | AN4: =AN3-AN2 -> 0
A5: STT | B5: MSVT | C5: LOẠI MÁY, THIẾT BỊ | D5: SỐ CA/ NĂM | E5: HAO PHÍ CA MÁY | F5: ĐỊNH MỨC KHẤU HAO, SỬA CHỮA, CHI PHÍ KHÁC / NĂM (%/GIÁ TÍNH KH) | J5: ĐỊNH MỨC TIÊU HAO NHIÊN LIỆU, NĂNG LƯỢNG 1 CA (CNL) | L5: HỆ SỐ NHIÊN LIỆU PHỤ | M5: TỔNG HAO PHÍ NHIÊN LIỆU | N5: CHÊNH LỆCH CHI PHÍ MTC DO CHÊNH LỆCH GIÁ NLNL | O5: THÀNH PHẦN CẤP BẬC THỢ ĐIỀU KHIỂN MÁY | P5: NGUYÊN GIÁ (GIÁ TÍNH KHẤU HAO) | Q5: CHI PHÍ KHẤU HAO (CKH) | R5: CHI PHÍ SỬA CHỮA (CSC) | S5: CHI PHÍ NHIÊN LIỆU, NĂNG LƯỢNG (CNL) | T5: CHI PHÍ TIỀN LƯƠNG (CTL) | U5: CHI PHÍ KHÁC (CCPK) | V5: GIÁ CA MÁY (CCM) | W5: CHI PHÍ TRONG GCM TẠI THỜI ĐIỂM GỐC | Z5: CHI PHÍ NHIÊN LIỆU, NĂNG LƯỢNG TẠI THỜI ĐIỂM GỐC | AA5: CHI PHÍ TIỀN LƯƠNG TẠI THỜI ĐIỂM GỐC | AB5: NGUYÊN GIÁ (GIÁ TÍNH KHẤU HAO) TẠI THỜI ĐIỂM GỐC | AC5: NGUYÊN GIÁ (GIÁ TÍNH KHẤU HAO) TẠI THỜI ĐIỂM ĐIỀU CHỈNH | AD5: GIÁ CA MÁY GỐC | AE5: CHI PHÍ NHIỀN LIỆU, NĂNG LƯỢNG TẠI THỜI ĐIỂM ĐIỀU CHỈNH | AF5: CHI PHÍ TIỀN LƯƠNG TẠI THỜI ĐIỂM ĐIỀU CHỈNH | AG5: HỆ SỐ ĐIỀU CHỈNH NGUYÊN GIÁ (K1) | AH5: HỆ SỐ ĐIỀU CHỈNH CHI PHÍ NHIÊN LIỆU, NĂNG LƯỢNG (K2) | AI5: HỆ SỐ ĐIỀU CHỈNH CHI PHÍ TIỀN LƯƠNG (K3) | AJ5: GIÁ CA MÁY ĐIỀU CHỈNH (CCMĐC)
F6: Khấu hao | G6: Hs thu hồi khi thanh lý | H6: Sửa chữa | I6: CP # | W6: CP khấu hao | X6: CP sửa chữa | Y6: CP khác
A7: [1] | B7: [2] | C7: [3] | D7: [4] | F7: [5] | G7: [6] | H7: [7] | I7: [8] | J7: [9] | L7: [10] | O7: [11] | P7: [12] | Q7: [13] | R7: [14] | S7: [15] | T7: [16] | U7: [17] | V7: [18] | W7: [6] | X7: [7] | Y7: [8] | Z7: [9] | AA7: [10] | AB7: [11] | AC7: [12] | AD7: [12] | AE7: [13] | AF7: [14] | AG7: [15] | AH7: [16] | AI7: [17] | AJ7: [18]

Sheet Du thau LD (hidden)
A1: BẢNG DỰ TOÁN DỰ THẦU LẮP ĐẶT THIẾT BỊ
A2: =Bia!D42&Bia!E42 -> CÔNG TRÌNH: CÁC PHẦN MỀM QUẢN LÝ CHI PHÍ ĐTXD CT
A3: ='Bia2'!D43&'Bia2'!E43 -> HẠNG MỤC: PHẦN MỀM DỰ TOÁN GXD 10
A5: STT | B5: MÃ HIỆU | C5: NỘI DUNG CÔNG VIỆC | D5: ĐƠN VỊ | E5: KHỐI LƯỢNG | F5: ĐƠN GIÁ | G5: THÀNH TIỀN | H5: ĐGVL | I5: ĐGVLP | J5: ĐGNC | K5: ĐGM | L5: TT | M5: T | N5: C | O5: TL | P5: G | Q5: GTGT | R5: GXDNT | S5: GXD
A6: [1] | B6: [2] | C6: [3] | D6: [4] | E6: [5] | F6: [6] | G6: [7]=[5]*[6]

Sheet NhanCong (hidden)
A1: BẢNG LƯƠNG NHÂN CÔNG XÂY DỰNG | O1: 0
A3: - Mức lương tối thiểu chung (LTTC): | F3: =LTTC -> 1050000 | G3: đồng/tháng | T3: Đây là sheet phụ, bạn không chỉnh sửa sheet này
A4: - Mức lương tối thiểu vùng (LTTV): | F4: =LTTV -> 2000000 | G4: đồng/tháng
A5: - Các khoản phụ cấp theo LTT:
B6: Phụ cấp lưu động: | D6: =PC_LD*100&"%*LTTC" -> 20%*LTTC | F6: =LTTC*PC_LD -> 210000 | G6: đồng/tháng
B7: Phụ cấp khu vực: | D7: =PC_KV*100&"%*LTTC" -> 0%*LTTC | F7: =LTTC*PC_KV -> 0 | G7: đồng/tháng
B8: Phụ cấp độc hại: | D8: =PC_DH*100&"%*LTTC" -> 0%*LTTC | F8: =LTTC*PC_DH -> 0 | G8: đồng/tháng
B9: Tổng các phụ cấp theo LTT: | F9: =SUM(F6:F8) -> 210000 | G9: đồng/tháng
A11: - Mức lương đầu vào sử dụng để xác định đơn giá nhân công (LNC): | M11: =LNC_dauvao -> 0
A13: STT | B13: MÃ HIỆU | C13: CẤP BẬC | D13: HỆ SỐ LƯƠNG (HCB) | E13: LƯƠNG CẤP BẬC (LCB= LNCxHCB) (đ/tháng) | F13: TỔNG CÁC KHOẢN PHỤ CẤP THEO LTT | G13: CÁC KHOẢN PHỤ CẤP THEO LƯƠNG CB | M13: GNC (đ/công)
G14: Lương phụ | H14: Khoán trực tiếp | I14: Không ổn định SX | J14: Thu hút | K14: Đặc biệt | L14: Ca đêm | Q14: HỆ SỐ LƯƠNG
A15: =IF(CF_TDNCXD=0,"BẢNG LƯƠNG CÔNG NHÂN XDCB THEO THÔNG TƯ SỐ 01/2015/TT-BXD","BẢNG LƯƠNG CÔNG NHÂN XDCB THEO NGHỊ ĐỊNH SỐ 205/2004/NĐ-CP") -> BẢNG LƯƠNG CÔNG NHÂN XDCB THEO THÔNG TƯ SỐ 01/2015/TT-BXD | Q15: NĐ205 | R15: TT01
A16: Nhóm I
B17: N1207 | C17: 2 | D17: =IF(CF_TDNCXD=0,R17,Q17) -> 1.83 | E17: =IF(CF_TDNCXD=0,D17*LNC_dauvao,D17*LTTV) -> 0 | F17: =$F$9*CF_TDNCXD -> 0 | G17: =PC_LP*$E17*CF_TDNCXD -> 0 | H17: =PC_K*$E17*CF_TDNCXD -> 0 | I17: =PC_KODSX*$E17*CF_TDNCXD -> 0 | J17: =PC_TH*$E17*CF_TDNCXD -> 0 | K17: =PC_DB*$E17*CF_TDNCXD -> 0 | L17: =PC_CD*$E17*CF_TDNCXD -> 0 | M17: =IF(CF_TDNCXD=0,ROUND(SUM(E17:L17)/26,0),M35) -> 0 | Q17: 1.83 | R17: 1.83
B18: N1257 | C18: 2.5 | D18: 1.995 | E18: 0 | F18: 0 | G18: 0 | H18: 0 | I18: 0 | J18: 0 | K18: 0 | L18: 0 | M18: =ROUND(SUM(E18:L18)/26,0) -> 0 | Q18: 1.995 | R18: 1.995
B19: N1277 | C19: 2.7 | D19: 2.061 | E19: 0 | F19: 0 | G19: 0 | H19: 0 | I19: 0 | J19: 0 | K19: 0 | L19: 0 | M19: 0 | Q19: 2.061 | R19: 2.061
B20: N1307 | C20: 3 | D20: 2.16 | E20: 0 | F20: 0 | G20: 0 | H20: 0 | I20: 0 | J20: 0 | K20: 0 | L20: 0 | M20: =IF(CF_TDNCXD=0,ROUND(SUM(E20:L20)/26,0),M38) -> 0 | Q20: 2.16 | R20: 2.16
B21: N1327 | C21: 3.2 | D21: 2.238 | E21: 0 | F21: 0 | G21: 0 | H21: 0 | I21: 0 | J21: 0 | K21: 0 | L21: 0 | M21: 0 | Q21: 2.238 | R21: 2.238
B22: N1337 | C22: 3.3 | D22: 2.277 | E22: 0 | F22: 0 | G22: 0 | H22: 0 | I22: 0 | J22: 0 | K22: 0 | L22: 0 | M22: 0 | Q22: 2.277 | R22: 2.277
B23: N1357 | C23: 3.5 | D23: 2.355 | E23: 0 | F23: 0 | G23: 0 | H23: 0 | I23: 0 | J23: 0 | K23: 0 | L23: 0 | M23: 0 | Q23: 2.355 | R23: 2.355
B24: N1377 | C24: 3.7 | D24: 2.433 | E24: 0 | F24: 0 | G24: 0 | H24: 0 | I24: 0 | J24: 0 | K24: 0 | L24: 0 | M24: 0 | Q24: 2.433 | R24: 2.433
B25: N1407 | C25: 4 | D25: 2.55 | E25: 0 | F25: 0 | G25: 0 | H25: 0 | I25: 0 | J25: 0 | K25: 0 | L25: 0 | M25: =IF(CF_TDNCXD=0,ROUND(SUM(E25:L25)/26,0),M43) -> 0 | Q25: 2.55 | R25: 2.55
B26: N1437 | C26: 4.3 | D26: 2.688 | E26: 0 | F26: 0 | G26: 0 | H26: 0 | I26: 0 | J26: 0 | K26: 0 | L26: 0 | M26: 0 | Q26: 2.688 | R26: 2.688
B27: N1457 | C27: 4.5 | D27: 2.78 | E27: 0 | F27: 0 | G27: 0 | H27: 0 | I27: 0 | J27: 0 | K27: 0 | L27: 0 | M27: 0 | Q27: 2.78 | R27: 2.78
B28: N1477 | C28: 4.7 | D28: 2.872 | E28: 0 | F28: 0 | G28: 0 | H28: 0 | I28: 0 | J28: 0 | K28: 0 | L28: 0 | M28: 0 | Q28: 2.872 | R28: 2.872
B29: N1507 | C29: 5 | D29: 3.01 | E29: 0 | F29: 0 | G29: 0 | H29: 0 | I29: 0 | J29: 0 | K29: 0 | L29: 0 | M29: =IF(CF_TDNCXD=0,ROUND(SUM(E29:L29)/26,0),M48) -> 0 | Q29: 3.01 | R29: 3.01
B30: N1527 | C30: 5.2 | D30: 3.12 | E30: 0 | F30: 0 | G30: 0 | H30: 0 | I30: 0 | J30: 0 | K30: 0 | L30: 0 | M30: 0 | Q30: 3.12 | R30: 3.12
B31: N1557 | C31: 5.5 | D31: 3.285 | E31: 0 | F31: 0 | G31: 0 | H31: 0 | I31: 0 | J31: 0 | K31: 0 | L31: 0 | M31: 0 | Q31: 3.285 | R31: 3.285
B32: N1607 | C32: 6 | D32: 3.56 | E32: 0 | F32: 0 | G32: 0 | H32: 0 | I32: 0 | J32: 0 | K32: 0 | L32: 0 | M32: =IF(CF_TDNCXD=0,ROUND(SUM(E32:L32)/26,0),M51) -> 0 | Q32: 3.56 | R32: 3.56
B33: N1707 | C33: 7 | D33: 4.2 | E33: 0 | F33: 0 | G33: 0 | H33: 0 | I33: 0 | J33: 0 | K33: 0 | L33: 0 | M33: =IF(CF_TDNCXD=0,ROUND(SUM(E33:L33)/26,0),M52) -> 0 | Q33: 4.2 | R33: 4.2
A34: Nhóm II
B35: N2207 | C35: 2 | D35: =IF(CF_TDNCXD=0,R35,Q35) -> 2.07 | E35: =IF(CF_TDNCXD=0,D35*LNC_dauvao,D35*LTTV) -> 0 | F35: =$F$9*CF_TDNCXD -> 0 | G35: =PC_LP*$E35*CF_TDNCXD -> 0 | H35: =PC_K*$E35*CF_TDNCXD -> 0 | I35: =PC_KODSX*$E35*CF_TDNCXD -> 0 | J35: =PC_TH*$E35*CF_TDNCXD -> 0 | K35: =PC_DB*$E35*CF_TDNCXD -> 0 | L35: =PC_CD*$E35*CF_TDNCXD -> 0 | M35: =ROUND(SUM(E35:L35)/26,0) -> 0 | Q35: 1.96 | R35: 2.07
B36: N2257 | C36: 2.5 | D36: 2.255 | E36: 0 | F36: 0 | G36: 0 | H36: 0 | I36: 0 | J36: 0 | K36: 0 | L36: 0 | M36: 0 | Q36: 2.135 | R36: 2.255
B37: N2277 | C37: 2.7 | D37: 2.329 | E37: 0 | F37: 0 | G37: 0 | H37: 0 | I37: 0 | J37: 0 | K37: 0 | L37: 0 | M37: 0 | Q37: 2.205 | R37: 2.329
B38: N2307 | C38: 3 | D38: 2.44 | E38: 0 | F38: 0 | G38: 0 | H38: 0 | I38: 0 | J38: 0 | K38: 0 | L38: 0 | M38: 0 | Q38: 2.31 | R38: 2.44
B39: N2327 | C39: 3.2 | D39: 2.524 | E39: 0 | F39: 0 | G39: 0 | H39: 0 | I39: 0 | J39: 0 | K39: 0 | L39: 0 | M39: 0 | Q39: 2.39 | R39: 2.524
B40: N2337 | C40: 3.3 | D40: 2.566 | E40: 0 | F40: 0 | G40: 0 | H40: 0 | I40: 0 | J40: 0 | K40: 0 | L40: 0 | M40: 0 | Q40: 2.475 | R40: 2.566
B41: N2357 | C41: 3.5 | D41: 2.65 | E41: 0 | F41: 0 | G41: 0 | H41: 0 | I41: 0 | J41: 0 | K41: 0 | L41: 0 | M41: 0 | Q41: 2.51 | R41: 2.65
B42: N2377 | C42: 3.7 | D42: 2.734 | E42: 0 | F42: 0 | G42: 0 | H42: 0 | I42: 0 | J42: 0 | K42: 0 | L42: 0 | M42: 0 | Q42: 2.59 | R42: 2.734
B43: N2407 | C43: 4 | D43: 2.86 | E43: 0 | F43: 0 | G43: 0 | H43: 0 | I43: 0 | J43: 0 | K43: 0 | L43: 0 | M43: 0 | Q43: 2.71 | R43: 2.86
B44: N2427 | C44: 4.2 | D44: 2.962 | E44: 0 | F44: 0 | G44: 0 | H44: 0 | I44: 0 | J44: 0 | K44: 0 | L44: 0 | M44: 0 | Q44: 2.806 | R44: 2.962
B45: N2437 | C45: 4.3 | D45: 3.013 | E45: 0 | F45: 0 | G45: 0 | H45: 0 | I45: 0 | J45: 0 | K45: 0 | L45: 0 | M45: =ROUND(SUM(E45:L45)/26,0) -> 0 | Q45: 2.854 | R45: 3.013
B46: N2457 | C46: 4.5 | D46: 3.115 | E46: 0 | F46: 0 | G46: 0 | H46: 0 | I46: 0 | J46: 0 | K46: 0 | L46: 0 | M46: 0 | Q46: 2.95 | R46: 3.115
B47: N2477 | C47: 4.7 | D47: 3.217 | E47: 0 | F47: 0 | G47: 0 | H47: 0 | I47: 0 | J47: 0 | K47: 0 | L47: 0 | M47: 0 | Q47: 3.046 | R47: 3.217
B48: N2507 | C48: 5 | D48: 3.37 | E48: 0 | F48: 0 | G48: 0 | H48: 0 | I48: 0 | J48: 0 | K48: 0 | L48: 0 | M48: 0 | Q48: 3.19 | R48: 3.37
B49: N2527 | C49: 5.2 | D49: 3.488 | E49: 0 | F49: 0 | G49: 0 | H49: 0 | I49: 0 | J49: 0 | K49: 0 | L49: 0 | M49: 0 | Q49: 3.3 | R49: 3.488
B50: N2557 | C50: 5.5 | D50: 3.665 | E50: 0 | F50: 0 | G50: 0 | H50: 0 | I50: 0 | J50: 0 | K50: 0 | L50: 0 | M50: 0 | Q50: 3.465 | R50: 3.665
B51: N2607 | C51: 6 | D51: 3.96 | E51: 0 | F51: 0 | G51: 0 | H51: 0 | I51: 0 | J51: 0 | K51: 0 | L51: 0 | M51: 0 | Q51: 3.74 | R51: 3.96
B52: N2707 | C52: 7 | D52: 4.65 | E52: 0 | F52: 0 | G52: 0 | H52: 0 | I52: 0 | J52: 0 | K52: 0 | L52: 0 | M52: 0 | Q52: 4.4 | R52: 4.65
A53: Nhóm III | B53: (tạm để để xử lý nhân công nhóm 3 cũ)
B54: N3207 | C54: 2 | D54: =IF(CF_TDNCXD=0,R54,Q54) -> 2.07 | E54: =IF(CF_TDNCXD=0,D54*LNC_dauvao,D54*LTTV) -> 0 | F54: =$F$9*CF_TDNCXD -> 0 | G54: =PC_LP*$E54*CF_TDNCXD -> 0 | H54: =PC_K*$E54*CF_TDNCXD -> 0 | I54: =PC_KODSX*$E54*CF_TDNCXD -> 0 | J54: =PC_TH*$E54*CF_TDNCXD -> 0 | K54: =PC_DB*$E54*CF_TDNCXD -> 0 | L54: =PC_CD*$E54*CF_TDNCXD -> 0 | M54: =ROUND(SUM(E54:L54)/26,0) -> 0 | Q54: 2.18 | R54: 2.07
B55: N3257 | C55: 2.5 | D55: 2.255 | E55: 0 | F55: 0 | G55: 0 | H55: 0 | I55: 0 | J55: 0 | K55: 0 | L55: 0 | M55: 0 | Q55: 2.37 | R55: 2.255
B56: N3277 | C56: 2.7 | D56: 2.329 | E56: 0 | F56: 0 | G56: 0 | H56: 0 | I56: 0 | J56: 0 | K56: 0 | L56: 0 | M56: 0 | Q56: 2.446 | R56: 2.329
B57: N3307 | C57: 3 | D57: 2.44 | E57: 0 | F57: 0 | G57: 0 | H57: 0 | I57: 0 | J57: 0 | K57: 0 | L57: 0 | M57: 0 | Q57: 2.56 | R57: 2.44
B58: N3327 | C58: 3.2 | D58: 2.524 | E58: 0 | F58: 0 | G58: 0 | H58: 0 | I58: 0 | J58: 0 | K58: 0 | L58: 0 | M58: 0 | Q58: 2.65 | R58: 2.524
B59: N3357 | C59: 3.5 | D59: 2.65 | E59: 0 | F59: 0 | G59: 0 | H59: 0 | I59: 0 | J59: 0 | K59: 0 | L59: 0 | M59: 0 | Q59: 2.785 | R59: 2.65
B60: N3377 | C60: 3.7 | D60: 2.734 | E60: 0 | F60: 0 | G60: 0 | H60: 0 | I60: 0 | J60: 0 | K60: 0 | L60: 0 | M60: 0 | Q60: 2.875 | R60: 2.734
B61: N3407 | C61: 4 | D61: 2.86 | E61: 0 | F61: 0 | G61: 0 | H61: 0 | I61: 0 | J61: 0 | K61: 0 | L61: 0 | M61: 0 | Q61: 3.01 | R61: 2.86
B62: N3427 | C62: 4.2 | D62: 2.962 | E62: 0 | F62: 0 | G62: 0 | H62: 0 | I62: 0 | J62: 0 | K62: 0 | L62: 0 | M62: 0 | Q62: 3.116 | R62: 2.962
B63: N3437 | C63: 4.3 | D63: 3.013 | E63: 0 | F63: 0 | G63: 0 | H63: 0 | I63: 0 | J63: 0 | K63: 0 | L63: 0 | M63: 0 | Q63: 3.169 | R63: 3.013
B64: N3457 | C64: 4.5 | D64: 3.115 | E64: 0 | F64: 0 | G64: 0 | H64: 0 | I64: 0 | J64: 0 | K64: 0 | L64: 0 | M64: 0 | Q64: 3.275 | R64: 3.115
B65: N3477 | C65: 4.7 | D65: 3.217 | E65: 0 | F65: 0 | G65: 0 | H65: 0 | I65: 0 | J65: 0 | K65: 0 | L65: 0 | M65: 0 | Q65: 3.381 | R65: 3.217
B66: N3507 | C66: 5 | D66: 3.37 | E66: 0 | F66: 0 | G66: 0 | H66: 0 | I66: 0 | J66: 0 | K66: 0 | L66: 0 | M66: 0 | Q66: 3.54 | R66: 3.37
B67: N3527 | C67: 5.2 | D67: 3.488 | E67: 0 | F67: 0 | G67: 0 | H67: 0 | I67: 0 | J67: 0 | K67: 0 | L67: 0 | M67: 0 | Q67: 3.666 | R67: 3.488
B68: N3557 | C68: 5.5 | D68: 3.665 | E68: 0 | F68: 0 | G68: 0 | H68: 0 | I68: 0 | J68: 0 | K68: 0 | L68: 0 | M68: 0 | Q68: 3.855 | R68: 3.665
B69: N3607 | C69: 6 | D69: 3.96 | E69: 0 | F69: 0 | G69: 0 | H69: 0 | I69: 0 | J69: 0 | K69: 0 | L69: 0 | M69: 0 | Q69: 4.17 | R69: 3.96
B70: N3707 | C70: 7 | D70: 4.65 | E70: 0 | F70: 0 | G70: 0 | H70: 0 | I70: 0 | J70: 0 | K70: 0 | L70: 0 | M70: 0 | Q70: 4.9 | R70: 4.65
A72: Nhóm I
B73: N1307dt | C73: 3 | D73: =IF(CF_TDNCXD=0,R73,Q73) -> 2.16 | E73: =IF(CF_TDNCXD=0,D73*LNC_dauvao,D73*LTTV) -> 0 | F73: =$F$9*CF_TDNCXD -> 0 | G73: =PC_LP*$E73*CF_TDNCXD -> 0 | H73: =PC_K*$E73*CF_TDNCXD -> 0 | I73: =PC_KODSX*$E73*CF_TDNCXD -> 0 | J73: =PC_TH*$E73*CF_TDNCXD -> 0 | K73: =PC_DB*$E73*CF_TDNCXD -> 0 | L73: =PC_CD*$E73*CF_TDNCXD -> 0 | M73: =ROUND(SUM(E73:L73)/26,0) -> 0 | Q73: 2.16 | R73: 2.16
B74: N1357dt | C74: 3.5 | D74: 2.355 | E74: 0 | F74: 0 | G74: 0 | H74: 0 | I74: 0 | J74: 0 | K74: 0 | L74: 0 | M74: 0 | Q74: 2.355 | R74: 2.355
B75: N1407dt | C75: 4 | D75: 2.55 | E75: 0 | F75: 0 | G75: 0 | H75: 0 | I75: 0 | J75: 0 | K75: 0 | L75: 0 | M75: 0 | Q75: 2.55 | R75: 2.55
B76: N1457dt | C76: 4.5 | D76: 2.78 | E76: 0 | F76: 0 | G76: 0 | H76: 0 | I76: 0 | J76: 0 | K76: 0 | L76: 0 | M76: 0 | Q76: 2.78 | R76: 2.78
B77: N1507dt | C77: 5 | D77: 3.01 | E77: 0 | F77: 0 | G77: 0 | H77: 0 | I77: 0 | J77: 0 | K77: 0 | L77: 0 | M77: 0 | Q77: 3.01 | R77: 3.01
B78: N1557dt | C78: 5.5 | D78: 3.285 | E78: 0 | F78: 0 | G78: 0 | H78: 0 | I78: 0 | J78: 0 | K78: 0 | L78: 0 | M78: 0 | Q78: 3.285 | R78: 3.285
B79: N1607dt | C79: 6 | D79: 3.56 | E79: 0 | F79: 0 | G79: 0 | H79: 0 | I79: 0 | J79: 0 | K79: 0 | L79: 0 | M79: 0 | Q79: 3.56 | R79: 3.56
B80: N1707dt | C80: 7 | D80: 4.2 | E80: 0 | F80: 0 | G80: 0 | H80: 0 | I80: 0 | J80: 0 | K80: 0 | L80: 0 | M80: 0 | Q80: 4.2 | R80: 4.2
A81: Nhóm II
B82: N2307dt | C82: 3 | D82: =IF(CF_TDNCXD=0,R82,Q82) -> 2.31 | E82: =IF(CF_TDNCXD=0,D82*LNC_dauvao,D82*LTTV) -> 0 | F82: =$F$9*CF_TDNCXD -> 0 | G82: =PC_LP*$E82*CF_TDNCXD -> 0 | H82: =PC_K*$E82*CF_TDNCXD -> 0 | I82: =PC_KODSX*$E82*CF_TDNCXD -> 0 | J82: =PC_TH*$E82*CF_TDNCXD -> 0 | K82: =PC_DB*$E82*CF_TDNCXD -> 0 | L82: =PC_CD*$E82*CF_TDNCXD -> 0 | M82: =ROUND(SUM(E82:L82)/26,0) -> 0 | Q82: 2.31 | R82: 2.31
B83: N2357dt | C83: 3.5 | D83: 2.51 | E83: 0 | F83: 0 | G83: 0 | H83: 0 | I83: 0 | J83: 0 | K83: 0 | L83: 0 | M83: 0 | Q83: 2.51 | R83: 2.51
B84: N2407dt | C84: 4 | D84: 2.71 | E84: 0 | F84: 0 | G84: 0 | H84: 0 | I84: 0 | J84: 0 | K84: 0 | L84: 0 | M84: 0 | Q84: 2.71 | R84: 2.71
B85: N2457dt | C85: 4.5 | D85: 2.95 | E85: 0 | F85: 0 | G85: 0 | H85: 0 | I85: 0 | J85: 0 | K85: 0 | L85: 0 | M85: 0 | Q85: 2.95 | R85: 2.95
B86: N2507dt | C86: 5 | D86: 3.19 | E86: 0 | F86: 0 | G86: 0 | H86: 0 | I86: 0 | J86: 0 | K86: 0 | L86: 0 | M86: 0 | Q86: 3.19 | R86: 3.19
B87: N2557dt | C87: 5.5 | D87: 3.465 | E87: 0 | F87: 0 | G87: 0 | H87: 0 | I87: 0 | J87: 0 | K87: 0 | L87: 0 | M87: 0 | Q87: 3.465 | R87: 3.465
B88: N2607dt | C88: 6 | D88: 3.74 | E88: 0 | F88: 0 | G88: 0 | H88: 0 | I88: 0 | J88: 0 | K88: 0 | L88: 0 | M88: 0 | Q88: 3.74 | R88: 3.74
B89: N2707dt | C89: 7 | D89: 4.4 | E89: 0 | F89: 0 | G89: 0 | H89: 0 | I89: 0 | J89: 0 | K89: 0 | L89: 0 | M89: 0 | Q89: 4.4 | R89: 4.4
A90: Nhóm III
B91: N3307dt | C91: 3 | D91: =IF(CF_TDNCXD=0,R91,Q91) -> 2.48 | E91: =IF(CF_TDNCXD=0,D91*LNC_dauvao,D91*LTTV) -> 0 | F91: =$F$9*CF_TDNCXD -> 0 | G91: =PC_LP*$E91*CF_TDNCXD -> 0 | H91: =PC_K*$E91*CF_TDNCXD -> 0 | I91: =PC_KODSX*$E91*CF_TDNCXD -> 0 | J91: =PC_TH*$E91*CF_TDNCXD -> 0 | K91: =PC_DB*$E91*CF_TDNCXD -> 0 | L91: =PC_CD*$E91*CF_TDNCXD -> 0 | M91: =ROUND(SUM(E91:L91)/26,0) -> 0 | Q91: 2.48 | R91: 2.48
B92: N3357dt | C92: 3.5 | D92: 2.7 | E92: 0 | F92: 0 | G92: 0 | H92: 0 | I92: 0 | J92: 0 | K92: 0 | L92: 0 | M92: 0 | Q92: 2.7 | R92: 2.7
B93: N3407dt | C93: 4 | D93: 2.92 | E93: 0 | F93: 0 | G93: 0 | H93: 0 | I93: 0 | J93: 0 | K93: 0 | L93: 0 | M93: 0 | Q93: 2.92 | R93: 2.92
B94: N3457dt | C94: 4.5 | D94: 3.185 | E94: 0 | F94: 0 | G94: 0 | H94: 0 | I94: 0 | J94: 0 | K94: 0 | L94: 0 | M94: 0 | Q94: 3.185 | R94: 3.185
B95: N3507dt | C95: 5 | D95: 3.45 | E95: 0 | F95: 0 | G95: 0 | H95: 0 | I95: 0 | J95: 0 | K95: 0 | L95: 0 | M95: 0 | Q95: 3.45 | R95: 3.45
B96: N3557dt | C96: 5.5 | D96: 3.76 | E96: 0 | F96: 0 | G96: 0 | H96: 0 | I96: 0 | J96: 0 | K96: 0 | L96: 0 | M96: 0 | Q96: 3.76 | R96: 3.76
B97: N3607dt | C97: 6 | D97: 4.07 | E97: 0 | F97: 0 | G97: 0 | H97: 0 | I97: 0 | J97: 0 | K97: 0 | L97: 0 | M97: 0 | Q97: 4.07 | R97: 4.07
B98: N3707dt | C98: 7 | D98: 4.8 | E98: 0 | F98: 0 | G98: 0 | H98: 0 | I98: 0 | J98: 0 | K98: 0 | L98: 0 | M98: 0 | Q98: 4.8 | R98: 4.8
A99: II. BẢNG LƯƠNG THỢ LẶN
A100: 1. Thợ lặn
B101: NTL01 | C101: I | D101: =IF(CF_TDNCXD=0,R101,Q101) -> 2.99 | E101: =IF(CF_TDNCXD=0,D101*LNC_dauvao,D101*LTTV) -> 0 | F101: =$F$9*CF_TDNCXD -> 0 | G101: =PC_LP*$E101*CF_TDNCXD -> 0 | H101: =PC_K*$E101*CF_TDNCXD -> 0 | I101: =PC_KODSX*$E101*CF_TDNCXD -> 0 | J101: =PC_TH*$E101*CF_TDNCXD -> 0 | K101: =PC_DB*$E101*CF_TDNCXD -> 0 | L101: =PC_CD*$E101*CF_TDNCXD -> 0 | M101: =ROUND(SUM(E101:L101)/26,0) -> 0 | Q101: 2.99 | R101: 2.99
B102: NTL02 | C102: II | D102: 3.28 | E102: =IF(CF_TDNCXD=0,D102*LNC_dauvao,D102*LTTV) -> 0 | F102: 0 | G102: 0 | H102: 0 | I102: 0 | J102: 0 | K102: 0 | L102: 0 | M102: =ROUND(SUM(E102:L102)/26,0) -> 0 | Q102: 3.28 | R102: 3.28
B103: NTL03 | C103: III | D103: 3.72 | E103: =IF(CF_TDNCXD=0,D103*LNC_dauvao,D103*LTTV) -> 0 | F103: 0 | G103: 0 | H103: 0 | I103: 0 | J103: 0 | K103: 0 | L103: 0 | M103: =ROUND(SUM(E103:L103)/26,0) -> 0 | Q103: 3.72 | R103: 3.72
B104: NTL04 | C104: IV | D104: 4.15 | E104: =IF(CF_TDNCXD=0,D104*LNC_dauvao,D104*LTTV) -> 0 | F104: 0 | G104: 0 | H104: 0 | I104: 0 | J104: 0 | K104: 0 | L104: 0 | M104: =ROUND(SUM(E104:L104)/26,0) -> 0 | Q104: 4.15 | R104: 4.15
A105: 2. Thợ lặn cấp I | D105: 0 | F105: 0 | G105: 0 | H105: 0 | I105: 0 | J105: 0 | K105: 0 | L105: 0
B106: NTL11 | C106: I | D106: 4.67 | E106: =IF(CF_TDNCXD=0,D106*LNC_dauvao,D106*LTTV) -> 0 | F106: 0 | G106: 0 | H106: 0 | I106: 0 | J106: 0 | K106: 0 | L106: 0 | M106: =ROUND(SUM(E106:L106)/26,0) -> 0 | Q106: 4.67 | R106: 4.67
B107: NTL12 | C107: II | D107: 5.27 | E107: =IF(CF_TDNCXD=0,D107*LNC_dauvao,D107*LTTV) -> 0 | F107: 0 | G107: 0 | H107: 0 | I107: 0 | J107: 0 | K107: 0 | L107: 0 | M107: =ROUND(SUM(E107:L107)/26,0) -> 0 | Q107: 5.27 | R107: 5.27
A108: 3. Thợ lặn cấp III | D108: 0 | F108: 0 | G108: 0 | H108: 0 | I108: 0 | J108: 0 | K108: 0 | L108: 0
B109: NTL31 | C109: I | D109: 5.75 | E109: =IF(CF_TDNCXD=0,D109*LNC_dauvao,D109*LTTV) -> 0 | F109: 0 | G109: 0 | H109: 0 | I109: 0 | J109: 0 | K109: 0 | L109: 0 | M109: =ROUND(SUM(E109:L109)/26,0) -> 0 | Q109: 5.75 | R109: 5.75
A110: B.12. BẢNG LƯƠNG CÔNG NHÂN LÁI XE
A111: 1. Xe con, xe tắc xi, xe tải, xe cẩu dưới 3,5 tấn, xe khách dưới 20 ghế
B112: NLX11 | C112: I | D112: =IF(CF_TDNCXD=0,R112,Q112) -> 2.18 | E112: =IF(CF_TDNCXD=0,D112*LNC_dauvao,D112*LTTV) -> 0 | F112: =$F$9*CF_TDNCXD -> 0 | G112: =PC_LP*$E112*CF_TDNCXD -> 0 | H112: =PC_K*$E112*CF_TDNCXD -> 0 | I112: =PC_KODSX*$E112*CF_TDNCXD -> 0 | J112: =PC_TH*$E112*CF_TDNCXD -> 0 | K112: =PC_DB*$E112*CF_TDNCXD -> 0 | L112: =PC_CD*$E112*CF_TDNCXD -> 0 | M112: =ROUND(SUM(E112:L112)/26,0) -> 0 | Q112: 2.18 | R112: 2.18
B113: NLX12 | C113: II | D113: =IF(CF_TDNCXD=0,R113,Q113) -> 2.57 | E113: =IF(CF_TDNCXD=0,D113*LNC_dauvao,D113*LTTV) -> 0 | F113: =$F$9*CF_TDNCXD -> 0 | G113: =PC_LP*$E113*CF_TDNCXD -> 0 | H113: =PC_K*$E113*CF_TDNCXD -> 0 | I113: =PC_KODSX*$E113*CF_TDNCXD -> 0 | J113: =PC_TH*$E113*CF_TDNCXD -> 0 | K113: =PC_DB*$E113*CF_TDNCXD -> 0 | L113: =PC_CD*$E113*CF_TDNCXD -> 0 | M113: =ROUND(SUM(E113:L113)/26,0) -> 0 | Q113: 2.57 | R113: 2.57
B114: NLX13 | C114: III | D114: =IF(CF_TDNCXD=0,R114,Q114) -> 3.05 | E114: =IF(CF_TDNCXD=0,D114*LNC_dauvao,D114*LTTV) -> 0 | F114: =$F$9*CF_TDNCXD -> 0 | G114: =PC_LP*$E114*CF_TDNCXD -> 0 | H114: =PC_K*$E114*CF_TDNCXD -> 0 | I114: =PC_KODSX*$E114*CF_TDNCXD -> 0 | J114: =PC_TH*$E114*CF_TDNCXD -> 0 | K114: =PC_DB*$E114*CF_TDNCXD -> 0 | L114: =PC_CD*$E114*CF_TDNCXD -> 0 | M114: =ROUND(SUM(E114:L114)/26,0) -> 0 | Q114: 3.05 | R114: 3.05
B115: NLX14 | C115: IV | D115: =IF(CF_TDNCXD=0,R115,Q115) -> 3.6 | E115: =IF(CF_TDNCXD=0,D115*LNC_dauvao,D115*LTTV) -> 0 | F115: =$F$9*CF_TDNCXD -> 0 | G115: =PC_LP*$E115*CF_TDNCXD -> 0 | H115: =PC_K*$E115*CF_TDNCXD -> 0 | I115: =PC_KODSX*$E115*CF_TDNCXD -> 0 | J115: =PC_TH*$E115*CF_TDNCXD -> 0 | K115: =PC_DB*$E115*CF_TDNCXD -> 0 | L115: =PC_CD*$E115*CF_TDNCXD -> 0 | M115: =ROUND(SUM(E115:L115)/26,0) -> 0 | Q115: 3.6 | R115: 3.6
A116: 2. Xe tải, xe cẩu từ 3,5 tấn đến dưới 7,5 tấn, xe khách từ 20 ghế đến dưới 40 ghế
B117: NLX21 | C117: I | D117: =IF(CF_TDNCXD=0,R117,Q117) -> 2.18 | E117: =IF(CF_TDNCXD=0,D117*LNC_dauvao,D117*LTTV) -> 0 | F117: =$F$9*CF_TDNCXD -> 0 | G117: =PC_LP*$E117*CF_TDNCXD -> 0 | H117: =PC_K*$E117*CF_TDNCXD -> 0 | I117: =PC_KODSX*$E117*CF_TDNCXD -> 0 | J117: =PC_TH*$E117*CF_TDNCXD -> 0 | K117: =PC_DB*$E117*CF_TDNCXD -> 0 | L117: =PC_CD*$E117*CF_TDNCXD -> 0 | M117: =ROUND(SUM(E117:L117)/26,0) -> 0 | Q117: 2.35 | R117: 2.18
B118: NLX22 | C118: II | D118: =IF(CF_TDNCXD=0,R118,Q118) -> 2.57 | E118: =IF(CF_TDNCXD=0,D118*LNC_dauvao,D118*LTTV) -> 0 | F118: =$F$9*CF_TDNCXD -> 0 | G118: =PC_LP*$E118*CF_TDNCXD -> 0 | H118: =PC_K*$E118*CF_TDNCXD -> 0 | I118: =PC_KODSX*$E118*CF_TDNCXD -> 0 | J118: =PC_TH*$E118*CF_TDNCXD -> 0 | K118: =PC_DB*$E118*CF_TDNCXD -> 0 | L118: =PC_CD*$E118*CF_TDNCXD -> 0 | M118: =ROUND(SUM(E118:L118)/26,0) -> 0 | Q118: 2.76 | R118: 2.57
B119: NLX23 | C119: III | D119: =IF(CF_TDNCXD=0,R119,Q119) -> 3.05 | E119: =IF(CF_TDNCXD=0,D119*LNC_dauvao,D119*LTTV) -> 0 | F119: =$F$9*CF_TDNCXD -> 0 | G119: =PC_LP*$E119*CF_TDNCXD -> 0 | H119: =PC_K*$E119*CF_TDNCXD -> 0 | I119: =PC_KODSX*$E119*CF_TDNCXD -> 0 | J119: =PC_TH*$E119*CF_TDNCXD -> 0 | K119: =PC_DB*$E119*CF_TDNCXD -> 0 | L119: =PC_CD*$E119*CF_TDNCXD -> 0 | M119: =ROUND(SUM(E119:L119)/26,0) -> 0 | Q119: 3.25 | R119: 3.05
B120: NLX24 | C120: IV | D120: =IF(CF_TDNCXD=0,R120,Q120) -> 3.6 | E120: =IF(CF_TDNCXD=0,D120*LNC_dauvao,D120*LTTV) -> 0 | F120: =$F$9*CF_TDNCXD -> 0 | G120: =PC_LP*$E120*CF_TDNCXD -> 0 | H120: =PC_K*$E120*CF_TDNCXD -> 0 | I120: =PC_KODSX*$E120*CF_TDNCXD -> 0 | J120: =PC_TH*$E120*CF_TDNCXD -> 0 | K120: =PC_DB*$E120*CF_TDNCXD -> 0 | L120: =PC_CD*$E120*CF_TDNCXD -> 0 | M120: =ROUND(SUM(E120:L120)/26,0) -> 0 | Q120: 3.82 | R120: 3.6
A121: 3. Xe tải, xe cẩu từ 7,5 tấn đến dưới 16,5 tấn, xe khách từ 40 ghế đến dưới 60 ghế
B122: NLX31 | C122: I | D122: =IF(CF_TDNCXD=0,R122,Q122) -> 2.51 | E122: =IF(CF_TDNCXD=0,D122*LNC_dauvao,D122*LTTV) -> 0 | F122: =$F$9*CF_TDNCXD -> 0 | G122: =PC_LP*$E122*CF_TDNCXD -> 0 | H122: =PC_K*$E122*CF_TDNCXD -> 0 | I122: =PC_KODSX*$E122*CF_TDNCXD -> 0 | J122: =PC_TH*$E122*CF_TDNCXD -> 0 | K122: =PC_DB*$E122*CF_TDNCXD -> 0 | L122: =PC_CD*$E122*CF_TDNCXD -> 0 | M122: =ROUND(SUM(E122:L122)/26,0) -> 0 | Q122: 2.51 | R122: 2.51
B123: NLX32 | C123: II | D123: =IF(CF_TDNCXD=0,R123,Q123) -> 2.94 | E123: =IF(CF_TDNCXD=0,D123*LNC_dauvao,D123*LTTV) -> 0 | F123: =$F$9*CF_TDNCXD -> 0 | G123: =PC_LP*$E123*CF_TDNCXD -> 0 | H123: =PC_K*$E123*CF_TDNCXD -> 0 | I123: =PC_KODSX*$E123*CF_TDNCXD -> 0 | J123: =PC_TH*$E123*CF_TDNCXD -> 0 | K123: =PC_DB*$E123*CF_TDNCXD -> 0 | L123: =PC_CD*$E123*CF_TDNCXD -> 0 | M123: =ROUND(SUM(E123:L123)/26,0) -> 0 | Q123: 2.94 | R123: 2.94
B124: NLX33 | C124: III | D124: =IF(CF_TDNCXD=0,R124,Q124) -> 3.44 | E124: =IF(CF_TDNCXD=0,D124*LNC_dauvao,D124*LTTV) -> 0 | F124: =$F$9*CF_TDNCXD -> 0 | G124: =PC_LP*$E124*CF_TDNCXD -> 0 | H124: =PC_K*$E124*CF_TDNCXD -> 0 | I124: =PC_KODSX*$E124*CF_TDNCXD -> 0 | J124: =PC_TH*$E124*CF_TDNCXD -> 0 | K124: =PC_DB*$E124*CF_TDNCXD -> 0 | L124: =PC_CD*$E124*CF_TDNCXD -> 0 | M124: =ROUND(SUM(E124:L124)/26,0) -> 0 | Q124: 3.44 | R124: 3.44
B125: NLX34 | C125: IV | D125: =IF(CF_TDNCXD=0,R125,Q125) -> 4.05 | E125: =IF(CF_TDNCXD=0,D125*LNC_dauvao,D125*LTTV) -> 0 | F125: =$F$9*CF_TDNCXD -> 0 | G125: =PC_LP*$E125*CF_TDNCXD -> 0 | H125: =PC_K*$E125*CF_TDNCXD -> 0 | I125: =PC_KODSX*$E125*CF_TDNCXD -> 0 | J125: =PC_TH*$E125*CF_TDNCXD -> 0 | K125: =PC_DB*$E125*CF_TDNCXD -> 0 | L125: =PC_CD*$E125*CF_TDNCXD -> 0 | M125: =ROUND(SUM(E125:L125)/26,0) -> 0 | Q125: 4.05 | R125: 4.05
A126: 4. Xe tải, xe cẩu từ 16,5 tấn đến dưới 25 tấn, xe khách từ 60 ghế đến dưới 80 ghế
B127: NLX41 | C127: I | D127: =IF(CF_TDNCXD=0,R127,Q127) -> 2.51 | E127: =IF(CF_TDNCXD=0,D127*LNC_dauvao,D127*LTTV) -> 0 | F127: =$F$9*CF_TDNCXD -> 0 | G127: =PC_LP*$E127*CF_TDNCXD -> 0 | H127: =PC_K*$E127*CF_TDNCXD -> 0 | I127: =PC_KODSX*$E127*CF_TDNCXD -> 0 | J127: =PC_TH*$E127*CF_TDNCXD -> 0 | K127: =PC_DB*$E127*CF_TDNCXD -> 0 | L127: =PC_CD*$E127*CF_TDNCXD -> 0 | M127: =ROUND(SUM(E127:L127)/26,0) -> 0 | Q127: 2.66 | R127: 2.51
B128: NLX42 | C128: II | D128: =IF(CF_TDNCXD=0,R128,Q128) -> 2.94 | E128: =IF(CF_TDNCXD=0,D128*LNC_dauvao,D128*LTTV) -> 0 | F128: =$F$9*CF_TDNCXD -> 0 | G128: =PC_LP*$E128*CF_TDNCXD -> 0 | H128: =PC_K*$E128*CF_TDNCXD -> 0 | I128: =PC_KODSX*$E128*CF_TDNCXD -> 0 | J128: =PC_TH*$E128*CF_TDNCXD -> 0 | K128: =PC_DB*$E128*CF_TDNCXD -> 0 | L128: =PC_CD*$E128*CF_TDNCXD -> 0 | M128: =ROUND(SUM(E128:L128)/26,0) -> 0 | Q128: 3.11 | R128: 2.94
B129: NLX43 | C129: III | D129: =IF(CF_TDNCXD=0,R129,Q129) -> 3.44 | E129: =IF(CF_TDNCXD=0,D129*LNC_dauvao,D129*LTTV) -> 0 | F129: =$F$9*CF_TDNCXD -> 0 | G129: =PC_LP*$E129*CF_TDNCXD -> 0 | H129: =PC_K*$E129*CF_TDNCXD -> 0 | I129: =PC_KODSX*$E129*CF_TDNCXD -> 0 | J129: =PC_TH*$E129*CF_TDNCXD -> 0 | K129: =PC_DB*$E129*CF_TDNCXD -> 0 | L129: =PC_CD*$E129*CF_TDNCXD -> 0 | M129: =ROUND(SUM(E129:L129)/26,0) -> 0 | Q129: 3.64 | R129: 3.44
B130: NLX44 | C130: IV | D130: =IF(CF_TDNCXD=0,R130,Q130) -> 4.05 | E130: =IF(CF_TDNCXD=0,D130*LNC_dauvao,D130*LTTV) -> 0 | F130: =$F$9*CF_TDNCXD -> 0 | G130: =PC_LP*$E130*CF_TDNCXD -> 0 | H130: =PC_K*$E130*CF_TDNCXD -> 0 | I130: =PC_KODSX*$E130*CF_TDNCXD -> 0 | J130: =PC_TH*$E130*CF_TDNCXD -> 0 | K130: =PC_DB*$E130*CF_TDNCXD -> 0 | L130: =PC_CD*$E130*CF_TDNCXD -> 0 | M130: =ROUND(SUM(E130:L130)/26,0) -> 0 | Q130: 4.2 | R130: 4.05
A131: 5. Xe tải, xe cẩu từ 25 tấn đến dưới 40 tấn, xe khách từ 80 ghế trở lên
B132: NLX51 | C132: I | D132: =IF(CF_TDNCXD=0,R132,Q132) -> 2.99 | E132: =IF(CF_TDNCXD=0,D132*LNC_dauvao,D132*LTTV) -> 0 | F132: =$F$9*CF_TDNCXD -> 0 | G132: =PC_LP*$E132*CF_TDNCXD -> 0 | H132: =PC_K*$E132*CF_TDNCXD -> 0 | I132: =PC_KODSX*$E132*CF_TDNCXD -> 0 | J132: =PC_TH*$E132*CF_TDNCXD -> 0 | K132: =PC_DB*$E132*CF_TDNCXD -> 0 | L132: =PC_CD*$E132*CF_TDNCXD -> 0 | M132: =ROUND(SUM(E132:L132)/26,0) -> 0 | Q132: 2.99 | R132: 2.99
B133: NLX52 | C133: II | D133: =IF(CF_TDNCXD=0,R133,Q133) -> 3.5 | E133: =IF(CF_TDNCXD=0,D133*LNC_dauvao,D133*LTTV) -> 0 | F133: =$F$9*CF_TDNCXD -> 0 | G133: =PC_LP*$E133*CF_TDNCXD -> 0 | H133: =PC_K*$E133*CF_TDNCXD -> 0 | I133: =PC_KODSX*$E133*CF_TDNCXD -> 0 | J133: =PC_TH*$E133*CF_TDNCXD -> 0 | K133: =PC_DB*$E133*CF_TDNCXD -> 0 | L133: =PC_CD*$E133*CF_TDNCXD -> 0 | M133: =ROUND(SUM(E133:L133)/26,0) -> 0 | Q133: 3.5 | R133: 3.5
B134: NLX53 | C134: III | D134: =IF(CF_TDNCXD=0,R134,Q134) -> 4.11 | E134: =IF(CF_TDNCXD=0,D134*LNC_dauvao,D134*LTTV) -> 0 | F134: =$F$9*CF_TDNCXD -> 0 | G134: =PC_LP*$E134*CF_TDNCXD -> 0 | H134: =PC_K*$E134*CF_TDNCXD -> 0 | I134: =PC_KODSX*$E134*CF_TDNCXD -> 0 | J134: =PC_TH*$E134*CF_TDNCXD -> 0 | K134: =PC_DB*$E134*CF_TDNCXD -> 0 | L134: =PC_CD*$E134*CF_TDNCXD -> 0 | M134: =ROUND(SUM(E134:L134)/26,0) -> 0 | Q134: 4.11 | R134: 4.11
B135: NLX54 | C135: IV | D135: =IF(CF_TDNCXD=0,R135,Q135) -> 4.82 | E135: =IF(CF_TDNCXD=0,D135*LNC_dauvao,D135*LTTV) -> 0 | F135: =$F$9*CF_TDNCXD -> 0 | G135: =PC_LP*$E135*CF_TDNCXD -> 0 | H135: =PC_K*$E135*CF_TDNCXD -> 0 | I135: =PC_KODSX*$E135*CF_TDNCXD -> 0 | J135: =PC_TH*$E135*CF_TDNCXD -> 0 | K135: =PC_DB*$E135*CF_TDNCXD -> 0 | L135: =PC_CD*$E135*CF_TDNCXD -> 0 | M135: =ROUND(SUM(E135:L135)/26,0) -> 0 | Q135: 4.82 | R135: 4.82
A136: 6. Xe tải, xe cẩu từ 40 tấn trở lên
B137: NLX61 | C137: I | D137: =IF(CF_TDNCXD=0,R137,Q137) -> 2.99 | E137: =IF(CF_TDNCXD=0,D137*LNC_dauvao,D137*LTTV) -> 0 | F137: =$F$9*CF_TDNCXD -> 0 | G137: =PC_LP*$E137*CF_TDNCXD -> 0 | H137: =PC_K*$E137*CF_TDNCXD -> 0 | I137: =PC_KODSX*$E137*CF_TDNCXD -> 0 | J137: =PC_TH*$E137*CF_TDNCXD -> 0 | K137: =PC_DB*$E137*CF_TDNCXD -> 0 | L137: =PC_CD*$E137*CF_TDNCXD -> 0 | M137: =ROUND(SUM(E137:L137)/26,0) -> 0 | Q137: 3.2 | R137: 2.99
B138: NLX62 | C138: II | D138: =IF(CF_TDNCXD=0,R138,Q138) -> 3.5 | E138: =IF(CF_TDNCXD=0,D138*LNC_dauvao,D138*LTTV) -> 0 | F138: =$F$9*CF_TDNCXD -> 0 | G138: =PC_LP*$E138*CF_TDNCXD -> 0 | H138: =PC_K*$E138*CF_TDNCXD -> 0 | I138: =PC_KODSX*$E138*CF_TDNCXD -> 0 | J138: =PC_TH*$E138*CF_TDNCXD -> 0 | K138: =PC_DB*$E138*CF_TDNCXD -> 0 | L138: =PC_CD*$E138*CF_TDNCXD -> 0 | M138: =ROUND(SUM(E138:L138)/26,0) -> 0 | Q138: 3.75 | R138: 3.5
B139: NLX63 | C139: III | D139: =IF(CF_TDNCXD=0,R139,Q139) -> 4.11 | E139: =IF(CF_TDNCXD=0,D139*LNC_dauvao,D139*LTTV) -> 0 | F139: =$F$9*CF_TDNCXD -> 0 | G139: =PC_LP*$E139*CF_TDNCXD -> 0 | H139: =PC_K*$E139*CF_TDNCXD -> 0 | I139: =PC_KODSX*$E139*CF_TDNCXD -> 0 | J139: =PC_TH*$E139*CF_TDNCXD -> 0 | K139: =PC_DB*$E139*CF_TDNCXD -> 0 | L139: =PC_CD*$E139*CF_TDNCXD -> 0 | M139: =ROUND(SUM(E139:L139)/26,0) -> 0 | Q139: 4.39 | R139: 4.11
B140: NLX64 | C140: IV | D140: =IF(CF_TDNCXD=0,R140,Q140) -> 4.82 | E140: =IF(CF_TDNCXD=0,D140*LNC_dauvao,D140*LTTV) -> 0 | F140: =$F$9*CF_TDNCXD -> 0 | G140: =PC_LP*$E140*CF_TDNCXD -> 0 | H140: =PC_K*$E140*CF_TDNCXD -> 0 | I140: =PC_KODSX*$E140*CF_TDNCXD -> 0 | J140: =PC_TH*$E140*CF_TDNCXD -> 0 | K140: =PC_DB*$E140*CF_TDNCXD -> 0 | L140: =PC_CD*$E140*CF_TDNCXD -> 0 | M140: =ROUND(SUM(E140:L140)/26,0) -> 0 | Q140: 5.15 | R140: 4.82
A141: B.2. BẢNG LƯƠNG THUYỀN VIÊN VÀ CÔNG NHÂN VIÊN TÀU VẬN TẢI BIỂN, VẬN TẢI SÔNG, TÀU DỊCH VỤ DẦU KHÍ, TÀU CẨU DẦU KHÍ
A142: B.2.I. TÀU VẬN TẢI BIỂN, VẬN TẢI SÔNG
A143: B.2.I.1. Tàu vận tải biển, vận tải sông không theo nhóm tàu
A144: CHỨC DANH KHÔNG THEO NHÓM TÀU
A145: I/ Tàu vận tải biển
A146: 1. Thuỷ thủ
B147: NBTT11 | D147: =IF(CF_TDNCXD=0,R147,Q147) -> 2.18 | E147: =IF(CF_TDNCXD=0,D147*LNC_dauvao,D147*LTTV) -> 0 | F147: =$F$9*CF_TDNCXD -> 0 | G147: =PC_LP*$E147*CF_TDNCXD -> 0 | H147: =PC_K*$E147*CF_TDNCXD -> 0 | I147: =PC_KODSX*$E147*CF_TDNCXD -> 0 | J147: =PC_TH*$E147*CF_TDNCXD -> 0 | K147: =PC_DB*$E147*CF_TDNCXD -> 0 | L147: =PC_CD*$E147*CF_TDNCXD -> 0 | M147: =ROUND(SUM(E147:L147)/26,0) -> 0 | Q147: 2.18 | R147: 2.18
B148: NBTT12 | D148: =IF(CF_TDNCXD=0,R148,Q148) -> 2.59 | E148: =IF(CF_TDNCXD=0,D148*LNC_dauvao,D148*LTTV) -> 0 | F148: =$F$9*CF_TDNCXD -> 0 | G148: =PC_LP*$E148*CF_TDNCXD -> 0 | H148: =PC_K*$E148*CF_TDNCXD -> 0 | I148: =PC_KODSX*$E148*CF_TDNCXD -> 0 | J148: =PC_TH*$E148*CF_TDNCXD -> 0 | K148: =PC_DB*$E148*CF_TDNCXD -> 0 | L148: =PC_CD*$E148*CF_TDNCXD -> 0 | M148: =ROUND(SUM(E148:L148)/26,0) -> 0 | Q148: 2.59 | R148: 2.59
B149: NBTT13 | D149: =IF(CF_TDNCXD=0,R149,Q149) -> 3.08 | E149: =IF(CF_TDNCXD=0,D149*LNC_dauvao,D149*LTTV) -> 0 | F149: =$F$9*CF_TDNCXD -> 0 | G149: =PC_LP*$E149*CF_TDNCXD -> 0 | H149: =PC_K*$E149*CF_TDNCXD -> 0 | I149: =PC_KODSX*$E149*CF_TDNCXD -> 0 | J149: =PC_TH*$E149*CF_TDNCXD -> 0 | K149: =PC_DB*$E149*CF_TDNCXD -> 0 | L149: =PC_CD*$E149*CF_TDNCXD -> 0 | M149: =ROUND(SUM(E149:L149)/26,0) -> 0 | Q149: 3.08 | R149: 3.08
B150: NBTT14 | D150: =IF(CF_TDNCXD=0,R150,Q150) -> 3.73 | E150: =IF(CF_TDNCXD=0,D150*LNC_dauvao,D150*LTTV) -> 0 | F150: =$F$9*CF_TDNCXD -> 0 | G150: =PC_LP*$E150*CF_TDNCXD -> 0 | H150: =PC_K*$E150*CF_TDNCXD -> 0 | I150: =PC_KODSX*$E150*CF_TDNCXD -> 0 | J150: =PC_TH*$E150*CF_TDNCXD -> 0 | K150: =PC_DB*$E150*CF_TDNCXD -> 0 | L150: =PC_CD*$E150*CF_TDNCXD -> 0 | M150: =ROUND(SUM(E150:L150)/26,0) -> 0 | Q150: 3.73 | R150: 3.73
A151: 2. Thợ máy kiêm cơ khí, thợ bơm
B152: NBCK11 | D152: =IF(CF_TDNCXD=0,R152,Q152) -> 2.51 | E152: =IF(CF_TDNCXD=0,D152*LNC_dauvao,D152*LTTV) -> 0 | F152: =$F$9*CF_TDNCXD -> 0 | G152: =PC_LP*$E152*CF_TDNCXD -> 0 | H152: =PC_K*$E152*CF_TDNCXD -> 0 | I152: =PC_KODSX*$E152*CF_TDNCXD -> 0 | J152: =PC_TH*$E152*CF_TDNCXD -> 0 | K152: =PC_DB*$E152*CF_TDNCXD -> 0 | L152: =PC_CD*$E152*CF_TDNCXD -> 0 | M152: =ROUND(SUM(E152:L152)/26,0) -> 0 | Q152: 2.51 | R152: 2.51
B153: NBCK12 | D153: =IF(CF_TDNCXD=0,R153,Q153) -> 2.93 | E153: =IF(CF_TDNCXD=0,D153*LNC_dauvao,D153*LTTV) -> 0 | F153: =$F$9*CF_TDNCXD -> 0 | G153: =PC_LP*$E153*CF_TDNCXD -> 0 | H153: =PC_K*$E153*CF_TDNCXD -> 0 | I153: =PC_KODSX*$E153*CF_TDNCXD -> 0 | J153: =PC_TH*$E153*CF_TDNCXD -> 0 | K153: =PC_DB*$E153*CF_TDNCXD -> 0 | L153: =PC_CD*$E153*CF_TDNCXD -> 0 | M153: =ROUND(SUM(E153:L153)/26,0) -> 0 | Q153: 2.93 | R153: 2.93
B154: NBCK13 | D154: =IF(CF_TDNCXD=0,R154,Q154) -> 3.49 | E154: =IF(CF_TDNCXD=0,D154*LNC_dauvao,D154*LTTV) -> 0 | F154: =$F$9*CF_TDNCXD -> 0 | G154: =PC_LP*$E154*CF_TDNCXD -> 0 | H154: =PC_K*$E154*CF_TDNCXD -> 0 | I154: =PC_KODSX*$E154*CF_TDNCXD -> 0 | J154: =PC_TH*$E154*CF_TDNCXD -> 0 | K154: =PC_DB*$E154*CF_TDNCXD -> 0 | L154: =PC_CD*$E154*CF_TDNCXD -> 0 | M154: =ROUND(SUM(E154:L154)/26,0) -> 0 | Q154: 3.49 | R154: 3.49
B155: NBCK14 | D155: =IF(CF_TDNCXD=0,R155,Q155) -> 4.16 | E155: =IF(CF_TDNCXD=0,D155*LNC_dauvao,D155*LTTV) -> 0 | F155: =$F$9*CF_TDNCXD -> 0 | G155: =PC_LP*$E155*CF_TDNCXD -> 0 | H155: =PC_K*$E155*CF_TDNCXD -> 0 | I155: =PC_KODSX*$E155*CF_TDNCXD -> 0 | J155: =PC_TH*$E155*CF_TDNCXD -> 0 | K155: =PC_DB*$E155*CF_TDNCXD -> 0 | L155: =PC_CD*$E155*CF_TDNCXD -> 0 | M155: =ROUND(SUM(E155:L155)/26,0) -> 0 | Q155: 4.16 | R155: 4.16
A156: 3. Thợ máy, điện, vô tuyến điện
B157: NBTM11 | D157: =IF(CF_TDNCXD=0,R157,Q157) -> 2.35 | E157: =IF(CF_TDNCXD=0,D157*LNC_dauvao,D157*LTTV) -> 0 | F157: =$F$9*CF_TDNCXD -> 0 | G157: =PC_LP*$E157*CF_TDNCXD -> 0 | H157: =PC_K*$E157*CF_TDNCXD -> 0 | I157: =PC_KODSX*$E157*CF_TDNCXD -> 0 | J157: =PC_TH*$E157*CF_TDNCXD -> 0 | K157: =PC_DB*$E157*CF_TDNCXD -> 0 | L157: =PC_CD*$E157*CF_TDNCXD -> 0 | M157: =ROUND(SUM(E157:L157)/26,0) -> 0 | Q157: 2.35 | R157: 2.35
B158: NBTM12 | D158: =IF(CF_TDNCXD=0,R158,Q158) -> 2.72 | E158: =IF(CF_TDNCXD=0,D158*LNC_dauvao,D158*LTTV) -> 0 | F158: =$F$9*CF_TDNCXD -> 0 | G158: =PC_LP*$E158*CF_TDNCXD -> 0 | H158: =PC_K*$E158*CF_TDNCXD -> 0 | I158: =PC_KODSX*$E158*CF_TDNCXD -> 0 | J158: =PC_TH*$E158*CF_TDNCXD -> 0 | K158: =PC_DB*$E158*CF_TDNCXD -> 0 | L158: =PC_CD*$E158*CF_TDNCXD -> 0 | M158: =ROUND(SUM(E158:L158)/26,0) -> 0 | Q158: 2.72 | R158: 2.72
B159: NBTM13 | D159: =IF(CF_TDNCXD=0,R159,Q159) -> 3.25 | E159: =IF(CF_TDNCXD=0,D159*LNC_dauvao,D159*LTTV) -> 0 | F159: =$F$9*CF_TDNCXD -> 0 | G159: =PC_LP*$E159*CF_TDNCXD -> 0 | H159: =PC_K*$E159*CF_TDNCXD -> 0 | I159: =PC_KODSX*$E159*CF_TDNCXD -> 0 | J159: =PC_TH*$E159*CF_TDNCXD -> 0 | K159: =PC_DB*$E159*CF_TDNCXD -> 0 | L159: =PC_CD*$E159*CF_TDNCXD -> 0 | M159: =ROUND(SUM(E159:L159)/26,0) -> 0 | Q159: 3.25 | R159: 3.25
B160: NBTM14 | D160: =IF(CF_TDNCXD=0,R160,Q160) -> 3.91 | E160: =IF(CF_TDNCXD=0,D160*LNC_dauvao,D160*LTTV) -> 0 | F160: =$F$9*CF_TDNCXD -> 0 | G160: =PC_LP*$E160*CF_TDNCXD -> 0 | H160: =PC_K*$E160*CF_TDNCXD -> 0 | I160: =PC_KODSX*$E160*CF_TDNCXD -> 0 | J160: =PC_TH*$E160*CF_TDNCXD -> 0 | K160: =PC_DB*$E160*CF_TDNCXD -> 0 | L160: =PC_CD*$E160*CF_TDNCXD -> 0 | M160: =ROUND(SUM(E160:L160)/26,0) -> 0 | Q160: 3.91 | R160: 3.91
A161: 4. Phục vụ viên
B162: NBPV11 | D162: =IF(CF_TDNCXD=0,R162,Q162) -> 1.75 | E162: =IF(CF_TDNCXD=0,D162*LNC_dauvao,D162*LTTV) -> 0 | F162: =$F$9*CF_TDNCXD -> 0 | G162: =PC_LP*$E162*CF_TDNCXD -> 0 | H162: =PC_K*$E162*CF_TDNCXD -> 0 | I162: =PC_KODSX*$E162*CF_TDNCXD -> 0 | J162: =PC_TH*$E162*CF_TDNCXD -> 0 | K162: =PC_DB*$E162*CF_TDNCXD -> 0 | L162: =PC_CD*$E162*CF_TDNCXD -> 0 | M162: =ROUND(SUM(E162:L162)/26,0) -> 0 | Q162: 1.75 | R162: 1.75
B163: NBPV12 | D163: =IF(CF_TDNCXD=0,R163,Q163) -> 1.99 | E163: =IF(CF_TDNCXD=0,D163*LNC_dauvao,D163*LTTV) -> 0 | F163: =$F$9*CF_TDNCXD -> 0 | G163: =PC_LP*$E163*CF_TDNCXD -> 0 | H163: =PC_K*$E163*CF_TDNCXD -> 0 | I163: =PC_KODSX*$E163*CF_TDNCXD -> 0 | J163: =PC_TH*$E163*CF_TDNCXD -> 0 | K163: =PC_DB*$E163*CF_TDNCXD -> 0 | L163: =PC_CD*$E163*CF_TDNCXD -> 0 | M163: =ROUND(SUM(E163:L163)/26,0) -> 0 | Q163: 1.99 | R163: 1.99
B164: NBPV13 | D164: =IF(CF_TDNCXD=0,R164,Q164) -> 2.35 | E164: =IF(CF_TDNCXD=0,D164*LNC_dauvao,D164*LTTV) -> 0 | F164: =$F$9*CF_TDNCXD -> 0 | G164: =PC_LP*$E164*CF_TDNCXD -> 0 | H164: =PC_K*$E164*CF_TDNCXD -> 0 | I164: =PC_KODSX*$E164*CF_TDNCXD -> 0 | J164: =PC_TH*$E164*CF_TDNCXD -> 0 | K164: =PC_DB*$E164*CF_TDNCXD -> 0 | L164: =PC_CD*$E164*CF_TDNCXD -> 0 | M164: =ROUND(SUM(E164:L164)/26,0) -> 0 | Q164: 2.35 | R164: 2.35
B165: NBPV14 | D165: =IF(CF_TDNCXD=0,R165,Q165) -> 2.66 | E165: =IF(CF_TDNCXD=0,D165*LNC_dauvao,D165*LTTV) -> 0 | F165: =$F$9*CF_TDNCXD -> 0 | G165: =PC_LP*$E165*CF_TDNCXD -> 0 | H165: =PC_K*$E165*CF_TDNCXD -> 0 | I165: =PC_KODSX*$E165*CF_TDNCXD -> 0 | J165: =PC_TH*$E165*CF_TDNCXD -> 0 | K165: =PC_DB*$E165*CF_TDNCXD -> 0 | L165: =PC_CD*$E165*CF_TDNCXD -> 0 | M165: =ROUND(SUM(E165:L165)/26,0) -> 0 | Q165: 2.66 | R165: 2.66
A166: 5. Cấp dưỡng
B167: NBCD11 | D167: =IF(CF_TDNCXD=0,R167,Q167) -> 1.93 | E167: =IF(CF_TDNCXD=0,D167*LNC_dauvao,D167*LTTV) -> 0 | F167: =$F$9*CF_TDNCXD -> 0 | G167: =PC_LP*$E167*CF_TDNCXD -> 0 | H167: =PC_K*$E167*CF_TDNCXD -> 0 | I167: =PC_KODSX*$E167*CF_TDNCXD -> 0 | J167: =PC_TH*$E167*CF_TDNCXD -> 0 | K167: =PC_DB*$E167*CF_TDNCXD -> 0 | L167: =PC_CD*$E167*CF_TDNCXD -> 0 | M167: =ROUND(SUM(E167:L167)/26,0) -> 0 | Q167: 1.93 | R167: 1.93
B168: NBCD12 | D168: =IF(CF_TDNCXD=0,R168,Q168) -> 2.38 | E168: =IF(CF_TDNCXD=0,D168*LNC_dauvao,D168*LTTV) -> 0 | F168: =$F$9*CF_TDNCXD -> 0 | G168: =PC_LP*$E168*CF_TDNCXD -> 0 | H168: =PC_K*$E168*CF_TDNCXD -> 0 | I168: =PC_KODSX*$E168*CF_TDNCXD -> 0 | J168: =PC_TH*$E168*CF_TDNCXD -> 0 | K168: =PC_DB*$E168*CF_TDNCXD -> 0 | L168: =PC_CD*$E168*CF_TDNCXD -> 0 | M168: =ROUND(SUM(E168:L168)/26,0) -> 0 | Q168: 2.38 | R168: 2.38
B169: NBCD13 | D169: =IF(CF_TDNCXD=0,R169,Q169) -> 2.74 | E169: =IF(CF_TDNCXD=0,D169*LNC_dauvao,D169*LTTV) -> 0 | F169: =$F$9*CF_TDNCXD -> 0 | G169: =PC_LP*$E169*CF_TDNCXD -> 0 | H169: =PC_K*$E169*CF_TDNCXD -> 0 | I169: =PC_KODSX*$E169*CF_TDNCXD -> 0 | J169: =PC_TH*$E169*CF_TDNCXD -> 0 | K169: =PC_DB*$E169*CF_TDNCXD -> 0 | L169: =PC_CD*$E169*CF_TDNCXD -> 0 | M169: =ROUND(SUM(E169:L169)/26,0) -> 0 | Q169: 2.74 | R169: 2.74
B170: NBCD14 | D170: =IF(CF_TDNCXD=0,R170,Q170) -> 3.15 | E170: =IF(CF_TDNCXD=0,D170*LNC_dauvao,D170*LTTV) -> 0 | F170: =$F$9*CF_TDNCXD -> 0 | G170: =PC_LP*$E170*CF_TDNCXD -> 0 | H170: =PC_K*$E170*CF_TDNCXD -> 0 | I170: =PC_KODSX*$E170*CF_TDNCXD -> 0 | J170: =PC_TH*$E170*CF_TDNCXD -> 0 | K170: =PC_DB*$E170*CF_TDNCXD -> 0 | L170: =PC_CD*$E170*CF_TDNCXD -> 0 | M170: =ROUND(SUM(E170:L170)/26,0) -> 0 | Q170: 3.15 | R170: 3.15
A171: II/ Tàu vận tải sông và sang ngang
A172: 1. Thuỷ thủ
A173: Nhóm I (vận tải dọc sông)
B174: NDSTT11 | D174: =IF(CF_TDNCXD=0,R174,Q174) -> 1.93 | E174: =IF(CF_TDNCXD=0,D174*LNC_dauvao,D174*LTTV) -> 0 | F174: =$F$9*CF_TDNCXD -> 0 | G174: =PC_LP*$E174*CF_TDNCXD -> 0 | H174: =PC_K*$E174*CF_TDNCXD -> 0 | I174: =PC_KODSX*$E174*CF_TDNCXD -> 0 | J174: =PC_TH*$E174*CF_TDNCXD -> 0 | K174: =PC_DB*$E174*CF_TDNCXD -> 0 | L174: =PC_CD*$E174*CF_TDNCXD -> 0 | M174: =ROUND(SUM(E174:L174)/26,0) -> 0 | Q174: 1.93 | R174: 1.93
B175: NDSTT12 | D175: =IF(CF_TDNCXD=0,R175,Q175) -> 2.18 | E175: =IF(CF_TDNCXD=0,D175*LNC_dauvao,D175*LTTV) -> 0 | F175: =$F$9*CF_TDNCXD -> 0 | G175: =PC_LP*$E175*CF_TDNCXD -> 0 | H175: =PC_K*$E175*CF_TDNCXD -> 0 | I175: =PC_KODSX*$E175*CF_TDNCXD -> 0 | J175: =PC_TH*$E175*CF_TDNCXD -> 0 | K175: =PC_DB*$E175*CF_TDNCXD -> 0 | L175: =PC_CD*$E175*CF_TDNCXD -> 0 | M175: =ROUND(SUM(E175:L175)/26,0) -> 0 | Q175: 2.18 | R175: 2.18
B176: NDSTT13 | D176: =IF(CF_TDNCXD=0,R176,Q176) -> 2.51 | E176: =IF(CF_TDNCXD=0,D176*LNC_dauvao,D176*LTTV) -> 0 | F176: =$F$9*CF_TDNCXD -> 0 | G176: =PC_LP*$E176*CF_TDNCXD -> 0 | H176: =PC_K*$E176*CF_TDNCXD -> 0 | I176: =PC_KODSX*$E176*CF_TDNCXD -> 0 | J176: =PC_TH*$E176*CF_TDNCXD -> 0 | K176: =PC_DB*$E176*CF_TDNCXD -> 0 | L176: =PC_CD*$E176*CF_TDNCXD -> 0 | M176: =ROUND(SUM(E176:L176)/26,0) -> 0 | Q176: 2.51 | R176: 2.51
B177: NDSTT14 | D177: =IF(CF_TDNCXD=0,R177,Q177) -> 2.83 | E177: =IF(CF_TDNCXD=0,D177*LNC_dauvao,D177*LTTV) -> 0 | F177: =$F$9*CF_TDNCXD -> 0 | G177: =PC_LP*$E177*CF_TDNCXD -> 0 | H177: =PC_K*$E177*CF_TDNCXD -> 0 | I177: =PC_KODSX*$E177*CF_TDNCXD -> 0 | J177: =PC_TH*$E177*CF_TDNCXD -> 0 | K177: =PC_DB*$E177*CF_TDNCXD -> 0 | L177: =PC_CD*$E177*CF_TDNCXD -> 0 | M177: =ROUND(SUM(E177:L177)/26,0) -> 0 | Q177: 2.83 | R177: 2.83
A178: Nhóm II (vận tải sang ngang)
B179: NNSTT11 | D179: =IF(CF_TDNCXD=0,R179,Q179) -> 1.93 | E179: =IF(CF_TDNCXD=0,D179*LNC_dauvao,D179*LTTV) -> 0 | F179: =$F$9*CF_TDNCXD -> 0 | G179: =PC_LP*$E179*CF_TDNCXD -> 0 | H179: =PC_K*$E179*CF_TDNCXD -> 0 | I179: =PC_KODSX*$E179*CF_TDNCXD -> 0 | J179: =PC_TH*$E179*CF_TDNCXD -> 0 | K179: =PC_DB*$E179*CF_TDNCXD -> 0 | L179: =PC_CD*$E179*CF_TDNCXD -> 0 | M179: =ROUND(SUM(E179:L179)/26,0) -> 0 | Q179: 2.12 | R179: 1.93
B180: NNSTT12 | D180: =IF(CF_TDNCXD=0,R180,Q180) -> 2.18 | E180: =IF(CF_TDNCXD=0,D180*LNC_dauvao,D180*LTTV) -> 0 | F180: =$F$9*CF_TDNCXD -> 0 | G180: =PC_LP*$E180*CF_TDNCXD -> 0 | H180: =PC_K*$E180*CF_TDNCXD -> 0 | I180: =PC_KODSX*$E180*CF_TDNCXD -> 0 | J180: =PC_TH*$E180*CF_TDNCXD -> 0 | K180: =PC_DB*$E180*CF_TDNCXD -> 0 | L180: =PC_CD*$E180*CF_TDNCXD -> 0 | M180: =ROUND(SUM(E180:L180)/26,0) -> 0 | Q180: 2.39 | R180: 2.18
B181: NNSTT13 | D181: =IF(CF_TDNCXD=0,R181,Q181) -> 2.51 | E181: =IF(CF_TDNCXD=0,D181*LNC_dauvao,D181*LTTV) -> 0 | F181: =$F$9*CF_TDNCXD -> 0 | G181: =PC_LP*$E181*CF_TDNCXD -> 0 | H181: =PC_K*$E181*CF_TDNCXD -> 0 | I181: =PC_KODSX*$E181*CF_TDNCXD -> 0 | J181: =PC_TH*$E181*CF_TDNCXD -> 0 | K181: =PC_DB*$E181*CF_TDNCXD -> 0 | L181: =PC_CD*$E181*CF_TDNCXD -> 0 | M181: =ROUND(SUM(E181:L181)/26,0) -> 0 | Q181: 2.76 | R181: 2.51
B182: NNSTT14 | D182: =IF(CF_TDNCXD=0,R182,Q182) -> 2.83 | E182: =IF(CF_TDNCXD=0,D182*LNC_dauvao,D182*LTTV) -> 0 | F182: =$F$9*CF_TDNCXD -> 0 | G182: =PC_LP*$E182*CF_TDNCXD -> 0 | H182: =PC_K*$E182*CF_TDNCXD -> 0 | I182: =PC_KODSX*$E182*CF_TDNCXD -> 0 | J182: =PC_TH*$E182*CF_TDNCXD -> 0 | K182: =PC_DB*$E182*CF_TDNCXD -> 0 | L182: =PC_CD*$E182*CF_TDNCXD -> 0 | M182: =ROUND(SUM(E182:L182)/26,0) -> 0 | Q182: 3.11 | R182: 2.83
A183: 2. Thợ máy, thợ điện
A184: Nhóm I (vận tải dọc sông)
B185: NDSTM11 | D185: =IF(CF_TDNCXD=0,R185,Q185) -> 2.05 | E185: =IF(CF_TDNCXD=0,D185*LNC_dauvao,D185*LTTV) -> 0 | F185: =$F$9*CF_TDNCXD -> 0 | G185: =PC_LP*$E185*CF_TDNCXD -> 0 | H185: =PC_K*$E185*CF_TDNCXD -> 0 | I185: =PC_KODSX*$E185*CF_TDNCXD -> 0 | J185: =PC_TH*$E185*CF_TDNCXD -> 0 | K185: =PC_DB*$E185*CF_TDNCXD -> 0 | L185: =PC_CD*$E185*CF_TDNCXD -> 0 | M185: =ROUND(SUM(E185:L185)/26,0) -> 0 | Q185: 2.05 | R185: 2.05
B186: NDSTM12 | D186: =IF(CF_TDNCXD=0,R186,Q186) -> 2.35 | E186: =IF(CF_TDNCXD=0,D186*LNC_dauvao,D186*LTTV) -> 0 | F186: =$F$9*CF_TDNCXD -> 0 | G186: =PC_LP*$E186*CF_TDNCXD -> 0 | H186: =PC_K*$E186*CF_TDNCXD -> 0 | I186: =PC_KODSX*$E186*CF_TDNCXD -> 0 | J186: =PC_TH*$E186*CF_TDNCXD -> 0 | K186: =PC_DB*$E186*CF_TDNCXD -> 0 | L186: =PC_CD*$E186*CF_TDNCXD -> 0 | M186: =ROUND(SUM(E186:L186)/26,0) -> 0 | Q186: 2.35 | R186: 2.35
B187: NDSTM13 | D187: =IF(CF_TDNCXD=0,R187,Q187) -> 2.66 | E187: =IF(CF_TDNCXD=0,D187*LNC_dauvao,D187*LTTV) -> 0 | F187: =$F$9*CF_TDNCXD -> 0 | G187: =PC_LP*$E187*CF_TDNCXD -> 0 | H187: =PC_K*$E187*CF_TDNCXD -> 0 | I187: =PC_KODSX*$E187*CF_TDNCXD -> 0 | J187: =PC_TH*$E187*CF_TDNCXD -> 0 | K187: =PC_DB*$E187*CF_TDNCXD -> 0 | L187: =PC_CD*$E187*CF_TDNCXD -> 0 | M187: =ROUND(SUM(E187:L187)/26,0) -> 0 | Q187: 2.66 | R187: 2.66
B188: NDSTM14 | D188: =IF(CF_TDNCXD=0,R188,Q188) -> 2.99 | E188: =IF(CF_TDNCXD=0,D188*LNC_dauvao,D188*LTTV) -> 0 | F188: =$F$9*CF_TDNCXD -> 0 | G188: =PC_LP*$E188*CF_TDNCXD -> 0 | H188: =PC_K*$E188*CF_TDNCXD -> 0 | I188: =PC_KODSX*$E188*CF_TDNCXD -> 0 | J188: =PC_TH*$E188*CF_TDNCXD -> 0 | K188: =PC_DB*$E188*CF_TDNCXD -> 0 | L188: =PC_CD*$E188*CF_TDNCXD -> 0 | M188: =ROUND(SUM(E188:L188)/26,0) -> 0 | Q188: 2.99 | R188: 2.99
A189: Nhóm II (vận tải sang ngang)
B190: NNSTM11 | D190: =IF(CF_TDNCXD=0,R190,Q190) -> 2.05 | E190: =IF(CF_TDNCXD=0,D190*LNC_dauvao,D190*LTTV) -> 0 | F190: =$F$9*CF_TDNCXD -> 0 | G190: =PC_LP*$E190*CF_TDNCXD -> 0 | H190: =PC_K*$E190*CF_TDNCXD -> 0 | I190: =PC_KODSX*$E190*CF_TDNCXD -> 0 | J190: =PC_TH*$E190*CF_TDNCXD -> 0 | K190: =PC_DB*$E190*CF_TDNCXD -> 0 | L190: =PC_CD*$E190*CF_TDNCXD -> 0 | M190: =ROUND(SUM(E190:L190)/26,0) -> 0 | Q190: 2.25 | R190: 2.05
B191: NNSTM12 | D191: =IF(CF_TDNCXD=0,R191,Q191) -> 2.35 | E191: =IF(CF_TDNCXD=0,D191*LNC_dauvao,D191*LTTV) -> 0 | F191: =$F$9*CF_TDNCXD -> 0 | G191: =PC_LP*$E191*CF_TDNCXD -> 0 | H191: =PC_K*$E191*CF_TDNCXD -> 0 | I191: =PC_KODSX*$E191*CF_TDNCXD -> 0 | J191: =PC_TH*$E191*CF_TDNCXD -> 0 | K191: =PC_DB*$E191*CF_TDNCXD -> 0 | L191: =PC_CD*$E191*CF_TDNCXD -> 0 | M191: =ROUND(SUM(E191:L191)/26,0) -> 0 | Q191: 2.58 | R191: 2.35
B192: NNSTM13 | D192: =IF(CF_TDNCXD=0,R192,Q192) -> 2.66 | E192: =IF(CF_TDNCXD=0,D192*LNC_dauvao,D192*LTTV) -> 0 | F192: =$F$9*CF_TDNCXD -> 0 | G192: =PC_LP*$E192*CF_TDNCXD -> 0 | H192: =PC_K*$E192*CF_TDNCXD -> 0 | I192: =PC_KODSX*$E192*CF_TDNCXD -> 0 | J192: =PC_TH*$E192*CF_TDNCXD -> 0 | K192: =PC_DB*$E192*CF_TDNCXD -> 0 | L192: =PC_CD*$E192*CF_TDNCXD -> 0 | M192: =ROUND(SUM(E192:L192)/26,0) -> 0 | Q192: 2.92 | R192: 2.66
B193: NNSTM14 | D193: =IF(CF_TDNCXD=0,R193,Q193) -> 2.99 | E193: =IF(CF_TDNCXD=0,D193*LNC_dauvao,D193*LTTV) -> 0 | F193: =$F$9*CF_TDNCXD -> 0 | G193: =PC_LP*$E193*CF_TDNCXD -> 0 | H193: =PC_K*$E193*CF_TDNCXD -> 0 | I193: =PC_KODSX*$E193*CF_TDNCXD -> 0 | J193: =PC_TH*$E193*CF_TDNCXD -> 0 | K193: =PC_DB*$E193*CF_TDNCXD -> 0 | L193: =PC_CD*$E193*CF_TDNCXD -> 0 | M193: =ROUND(SUM(E193:L193)/26,0) -> 0 | Q193: 3.28 | R193: 2.99
A194: 3. Phục vụ viên
B195: NSPV11 | D195: =IF(CF_TDNCXD=0,R195,Q195) -> 1.55 | E195: =IF(CF_TDNCXD=0,D195*LNC_dauvao,D195*LTTV) -> 0 | F195: =$F$9*CF_TDNCXD -> 0 | G195: =PC_LP*$E195*CF_TDNCXD -> 0 | H195: =PC_K*$E195*CF_TDNCXD -> 0 | I195: =PC_KODSX*$E195*CF_TDNCXD -> 0 | J195: =PC_TH*$E195*CF_TDNCXD -> 0 | K195: =PC_DB*$E195*CF_TDNCXD -> 0 | L195: =PC_CD*$E195*CF_TDNCXD -> 0 | M195: =ROUND(SUM(E195:L195)/26,0) -> 0 | Q195: 1.55 | R195: 1.55
B196: NSPV12 | D196: =IF(CF_TDNCXD=0,R196,Q196) -> 1.75 | E196: =IF(CF_TDNCXD=0,D196*LNC_dauvao,D196*LTTV) -> 0 | F196: =$F$9*CF_TDNCXD -> 0 | G196: =PC_LP*$E196*CF_TDNCXD -> 0 | H196: =PC_K*$E196*CF_TDNCXD -> 0 | I196: =PC_KODSX*$E196*CF_TDNCXD -> 0 | J196: =PC_TH*$E196*CF_TDNCXD -> 0 | K196: =PC_DB*$E196*CF_TDNCXD -> 0 | L196: =PC_CD*$E196*CF_TDNCXD -> 0 | M196: =ROUND(SUM(E196:L196)/26,0) -> 0 | Q196: 1.75 | R196: 1.75
B197: NSPV13 | D197: =IF(CF_TDNCXD=0,R197,Q197) -> 2.05 | E197: =IF(CF_TDNCXD=0,D197*LNC_dauvao,D197*LTTV) -> 0 | F197: =$F$9*CF_TDNCXD -> 0 | G197: =PC_LP*$E197*CF_TDNCXD -> 0 | H197: =PC_K*$E197*CF_TDNCXD -> 0 | I197: =PC_KODSX*$E197*CF_TDNCXD -> 0 | J197: =PC_TH*$E197*CF_TDNCXD -> 0 | K197: =PC_DB*$E197*CF_TDNCXD -> 0 | L197: =PC_CD*$E197*CF_TDNCXD -> 0 | M197: =ROUND(SUM(E197:L197)/26,0) -> 0 | Q197: 2.05 | R197: 2.05
B198: NSPV14 | D198: =IF(CF_TDNCXD=0,R198,Q198) -> 2.35 | E198: =IF(CF_TDNCXD=0,D198*LNC_dauvao,D198*LTTV) -> 0 | F198: =$F$9*CF_TDNCXD -> 0 | G198: =PC_LP*$E198*CF_TDNCXD -> 0 | H198: =PC_K*$E198*CF_TDNCXD -> 0 | I198: =PC_KODSX*$E198*CF_TDNCXD -> 0 | J198: =PC_TH*$E198*CF_TDNCXD -> 0 | K198: =PC_DB*$E198*CF_TDNCXD -> 0 | L198: =PC_CD*$E198*CF_TDNCXD -> 0 | M198: =ROUND(SUM(E198:L198)/26,0) -> 0 | Q198: 2.35 | R198: 2.35
A200: Các chức danh quản lý vận hành luồng tàu biển VTS vận dụng xếp như Kiểm soát viên không lưu Bảng lương công nhân viên Hàng không dân dụng (B.8):
A201: - Kiểm soát viên từ phao số 0 vào cảng toàn tuyến xếp như Kiểm soát viên không lưu cấp III.
A202: - Kiểm soát viên quản lý vận hành luồng tàu xếp như Kiểm soát viên không lưu cấp II.
A203: - Kiểm soát viên quản lý vận hành khu vực luồng tàu xếp như Kiểm soát viên không lưu cấp I.
A204: B.2. BẢNG LƯƠNG THUYỀN VIÊN VÀ CÔNG NHÂN VIÊN TÀU VẬN TẢI BIỂN, VẬN TẢI SÔNG, TÀU DỊCH VỤ DẦU KHÍ, TÀU CẨU DẦU KHÍ (TIẾP THEO)
A205: B.2.I.3. Tàu vận tải sông theo nhóm tàu
... 185 more rows
